BIOGUIDE_ID,OFFICE,QUARTER,CATEGORY,DATE,PAYEE,START DATE,END DATE,PURPOSE,AMOUNT,YEAR,TRANSCODE,TRANSCODELONG,RECORDID,RECIP (orig.)
,OFFICE OF ATTENDING PHYSICIAN,2010Q2,PERSONNEL BENEFITS,,FEDERAL TAX WITHHELD,4/1/10,4/30/10,APRIL WITHHOLDING (ALLOWANCES),"3,370.00",FISCAL YEAR 2010,,,,FEDERAL TAX WITHHELD
,OFFICE OF ATTENDING PHYSICIAN,2010Q2,PERSONNEL BENEFITS,,FEDERAL TAX WITHHELD,6/1/10,6/30/10,JUNE 2010 WITHHOLDING (ALLOWANCES),"3,225.00",FISCAL YEAR 2010,,,,DO
,OFFICE OF ATTENDING PHYSICIAN,2010Q2,PERSONNEL BENEFITS,,FEDERAL TAX WITHHELD,5/1/10,5/31/10,MAY 2010 WITHHOLDING (ALLOWANCES),"3,370.00",FISCAL YEAR 2010,,,,DO
,ADMINISTRATION,2010Q2,SUPPLIES AND MATERIALS,06_30,06_30 C2 NW201018100          BOISE CASCADE,5/19/10,5/19/10,OFFICE SUPPLIES OUTSIDE,554.12,FISCAL YEAR 2010,,,,06_30 C2 NW201018100          BOISE CASCADE
,ARMED SERVICES COMMITTEE,2010Q2,SUPPLIES AND MATERIALS,06_30,06_30   S1   DY100600151,6/1/10,6/30/10,OFFICE SUPPLY (TRANSFER),"1,314.50",2010,,,,06_30   S1   DY100600151
,ARMED SERVICES COMMITTEE,2010Q2,EQUIPMENT,06_30,06_30 S8 MA000959937,6/1/10,6/30/10,EQUIPMENT MAINTENANCE,"1,349.17",2010,,,,06_30 S8 MA000959937
,CAO ADVANCED BUSINESS SOLUTION,2010Q2,SUPPLIES AND MATERIALS,06_30,06_30 S1 DY100600395,6/1/10,6/30/10,OFFICE SUPPLY (TRANSFER),538.6,FISCAL YEAR 2010,,,,06_30 S1 DY100600395
,CAO OPERATIONS MANAGEMENT,2010Q2,TRAVEL,06_30,06_30   P1 10A54000148                  MARGARET E KELLOGG,6/13/10,6/16/10,TRAVEL REIMBURSEMENT,"1,389.87",FISCAL YEAR 2010,,,,06_30   P1 10A54000148                  MARGARET E KELLOGG
,CAO OPERATIONS MANAGEMENT,2010Q2,TRAVEL,06_30,06_30   P1 10A54000149                  STACHIA G CUFFEY,6/13/10,6/16/10,TRAVEL REIMBURSEMENT,"1,410.07",FISCAL YEAR 2010,,,,06_30   P1 10A54000149                  STACHIA G CUFFEY
,CAO OPERATIONS MANAGEMENT,2010Q2,"RENT, COMMUNICATION, UTILITIES",06_30,06_30 P1 10A54000153         VERIZON NEW JERSEY INC,6/2/10,7/1/10,"TELECOM SVC, EQUIP & TOLLS","3,043.92",FISCAL YEAR 2010,,,,06_30 P1 10A54000153         VERIZON NEW JERSEY INC
,CAO OPERATIONS MANAGEMENT,2010Q2,SUPPLIES AND MATERIALS,06_30,06_30   S1   DY100600053,6/1/10,6/30/10,OFFICE SUPPLY (TRANSFER),895.62,FISCAL YEAR 2010,,,,06_30   S1   DY100600053
,CAO OPERATIONS MANAGEMENT,2010Q2,SUPPLIES AND MATERIALS,06_30,06_30   S1   DY100600054,6/1/10,6/30/10,OFFICE SUPPLY (TRANSFER),41.22,FISCAL YEAR 2010,,,,06_30   S1   DY100600054
,CAO OPERATIONS MANAGEMENT,2010Q2,SUPPLIES AND MATERIALS,06_30,06_30   S1   DY100600156,6/1/10,6/30/10,OFFICE SUPPLY (TRANSFER),428.73,FISCAL YEAR 2010,,,,06_30   S1   DY100600156
,CAO OPERATIONS MANAGEMENT,2010Q2,SUPPLIES AND MATERIALS,06_30,06_30   S1   DY100600217,6/1/10,6/30/10,OFFICE SUPPLY (TRANSFER),52.66,FISCAL YEAR 2010,,,,06_30   S1   DY100600217
,CAO OPERATIONS MANAGEMENT,2010Q2,SUPPLIES AND MATERIALS,06_30,06_30   S1   DY100600229,6/1/10,6/30/10,OFFICE SUPPLY (TRANSFER),10,FISCAL YEAR 2010,,,,06_30   S1   DY100600229
,CAO OPERATIONS MANAGEMENT,2010Q2,SUPPLIES AND MATERIALS,06_30,06_30   C2   NW201018100   BOISE CASCADE,5/20/10,5/20/10,OFFICE SUPPLIES OUTSIDE,529.2,FISCAL YEAR 2010,,,,06_30   C2   NW201018100   BOISE CASCADE
,CAO OPERATIONS MANAGEMENT,2010Q2,SUPPLIES AND MATERIALS,06_30,06_30   C2   NW201018100            DO,4/29/10,4/29/10,OFFICE SUPPLIES OUTSIDE,831.25,FISCAL YEAR 2010,,,,06_30   C2   NW201018100            DO
,CAO OPERATIONS MANAGEMENT,2010Q2,SUPPLIES AND MATERIALS,06_30,06_30   C2   NW201018100            DO,5/12/10,5/12/10,OFFICE SUPPLIES OUTSIDE,175.2,FISCAL YEAR 2010,,,,06_30   C2   NW201018100            DO
,CAO OPERATIONS MANAGEMENT,2010Q2,SUPPLIES AND MATERIALS,06_30,06_30   C2   NW201018100            DO,5/20/10,5/20/10,OFFICE SUPPLIES OUTSIDE,278.52,FISCAL YEAR 2010,,,,06_30   C2   NW201018100            DO
,CAO OPERATIONS MANAGEMENT,2010Q2,SUPPLIES AND MATERIALS,06_30,06_30   C2   NW201018100            DO,5/25/10,5/25/10,OFFICE SUPPLIES OUTSIDE,945.48,FISCAL YEAR 2010,,,,06_30   C2   NW201018100            DO
,CAO OPERATIONS MANAGEMENT,2010Q2,EQUIPMENT,06_30,06_30 S8 MA000959588,6/1/10,6/30/10,EQUIPMENT MAINTENANCE,793.83,FISCAL YEAR 2010,,,,06_30 S8 MA000959588
,CHIEF ADMINISTRATIVE OFFICER,2010Q2,"RENT, COMMUNICATION, UTILITIES",06_30,06_30 P1 10A00100343          QUENCH USA LLC,1/28/10,5/31/10,EQUIPMENT RENTAL,41.94,FISCAL YEAR 2010,,,,06_30 P1 10A00100343          QUENCH USA LLC
,CHIEF ADMINISTRATIVE OFFICER,2010Q2,SUPPLIES AND MATERIALS,06_30,06_30   S1 DY100600002,6/1/10,6/30/10,OFFICE SUPPLY (TRANSFER),"1,588.91",FISCAL YEAR 2010,,,,06_30   S1 DY100600002
,CHIEF ADMINISTRATIVE OFFICER,2010Q2,SUPPLIES AND MATERIALS,06_30,06_30   S1 DY100600202,6/1/10,6/30/10,OFFICE SUPPLY (TRANSFER),59.94,FISCAL YEAR 2010,,,,06_30   S1 DY100600202
,CHIEF ADMINISTRATIVE OFFICER,2010Q2,SUPPLIES AND MATERIALS,06_30,06_30   C2 NW201018100                  BOISE CASCADE,5/24/10,5/24/10,OFFICE SUPPLIES OUTSIDE,4.65,FISCAL YEAR 2010,,,,06_30   C2 NW201018100                  BOISE CASCADE
,CHIEF ADMINISTRATIVE OFFICER,2010Q2,EQUIPMENT,06_30,06_30   S8    MA000959645,6/1/10,6/30/10,EQUIPMENT MAINTENANCE,706.51,FISCAL YEAR 2010,,,,06_30   S8    MA000959645
,CHIEF ADMINISTRATIVE OFFICER,2010Q2,"RENT, COMMUNICATION, UTILITIES",06_30,06_30   P2   HCV1002073                 AT&T MOBILITY,6/8/10,6/8/10,"TELECOM SVC, EQUIP & TOLLS",50,FISCAL YEAR 2010,,,,06_30   P2   HCV1002073                 AT&T MOBILITY
,CHIEF ADMINISTRATIVE OFFICER,2010Q2,SUPPLIES AND MATERIALS,06_30,06_30   S1   DY100600003,6/1/10,6/30/10,OFFICE SUPPLY (TRANSFER),10.04,FISCAL YEAR 2010,,,,06_30   S1   DY100600003
,CHIEF ADMINISTRATIVE OFFICER,2010Q2,SUPPLIES AND MATERIALS,06_30,06_30   S1   DY100600203,6/1/10,6/30/10,OFFICE SUPPLY (TRANSFER),85.43,FISCAL YEAR 2010,,,,06_30   S1   DY100600203
,CHIEF ADMINISTRATIVE OFFICER,2010Q2,EQUIPMENT,06_30,06_30   S8   MA000958356,6/1/10,6/30/10,EQUIPMENT MAINTENANCE,282,FISCAL YEAR 2010,,,,06_30   S8   MA000958356
,CHIEF ADMINISTRATIVE OFFICER,2010Q2,EQUIPMENT,06_30,06_30   S8   MA000959539,6/1/10,6/30/10,EQUIPMENT MAINTENANCE,148.28,FISCAL YEAR 2010,,,,06_30   S8   MA000959539
,CHIEF ADMINISTRATIVE OFFICER,2010Q2,EQUIPMENT,06_30,06_30 S8 MA000959557,6/1/10,6/30/10,EQUIPMENT MAINTENANCE,126.5,FISCAL YEAR 2010,,,,06_30 S8 MA000959557
,CLERK OF THE HOUSE,2010Q2,"RENT, COMMUNICATION, UTILITIES",06_30,"06_30 P1 10CL0700086          POSTMASTER, WASHINGTON, D.C",6/4/10,6/4/10,POSTAGE/COURIER/BOX RENTAL,867,FISCAL YEAR 2010,,,,"06_30 P1 10CL0700086          POSTMASTER, WASHINGTON, D.C"
,CLERK OF THE HOUSE,2010Q2,"RENT, COMMUNICATION, UTILITIES",06_30,06_30 P1 10CL0700087                   DO,6/11/10,6/11/10,POSTAGE/COURIER/BOX RENTAL,821.1,FISCAL YEAR 2010,,,,06_30 P1 10CL0700087                   DO
,CLERK OF THE HOUSE,2010Q2,SUPPLIES AND MATERIALS,06_30,06_30 S1 DY100600013,6/1/10,6/30/10,OFFICE SUPPLY (TRANSFER),448.47,FISCAL YEAR 2010,,,,06_30 S1 DY100600013
,CLERK OF THE HOUSE,2010Q2,SUPPLIES AND MATERIALS,06_30,06_30 S1 DY100600064,6/1/10,6/30/10,OFFICE SUPPLY (TRANSFER),97.33,FISCAL YEAR 2010,,,,06_30 S1 DY100600064
,CLERK OF THE HOUSE,2010Q2,SUPPLIES AND MATERIALS,06_30,06_30 S1 DY100600065,6/1/10,6/30/10,OFFICE SUPPLY (TRANSFER),612.82,FISCAL YEAR 2010,,,,06_30 S1 DY100600065
,CLERK OF THE HOUSE,2010Q2,SUPPLIES AND MATERIALS,06_30,06_30 S1 DY100600109,6/1/10,6/30/10,OFFICE SUPPLY (TRANSFER),"1,100.28",FISCAL YEAR 2010,,,,06_30 S1 DY100600109
,CLERK OF THE HOUSE,2010Q2,SUPPLIES AND MATERIALS,06_30,06_30 S1 DY100600155,6/1/10,6/30/10,OFFICE SUPPLY (TRANSFER),91.43,FISCAL YEAR 2010,,,,06_30 S1 DY100600155
,CLERK OF THE HOUSE,2010Q2,SUPPLIES AND MATERIALS,06_30,06_30 S1 DY100600157,6/1/10,6/30/10,OFFICE SUPPLY (TRANSFER),115.79,FISCAL YEAR 2010,,,,06_30 S1 DY100600157
,CLERK OF THE HOUSE,2010Q2,SUPPLIES AND MATERIALS,06_30,06_30 S1 DY100600158,6/1/10,6/30/10,OFFICE SUPPLY (TRANSFER),41.5,FISCAL YEAR 2010,,,,06_30 S1 DY100600158
,CLERK OF THE HOUSE,2010Q2,SUPPLIES AND MATERIALS,06_30,06_30 S1 DY100600161,6/1/10,6/30/10,OFFICE SUPPLY (TRANSFER),"1,263.67",FISCAL YEAR 2010,,,,06_30 S1 DY100600161
,CLERK OF THE HOUSE,2010Q2,SUPPLIES AND MATERIALS,06_30,06_30 S1 DY100600214,6/1/10,6/30/10,OFFICE SUPPLY (TRANSFER),"1,184.89",FISCAL YEAR 2010,,,,06_30 S1 DY100600214
,CLERK OF THE HOUSE,2010Q2,SUPPLIES AND MATERIALS,06_30,06_30 S1 DY100600264,6/1/10,6/30/10,OFFICE SUPPLY (TRANSFER),322.55,FISCAL YEAR 2010,,,,06_30 S1 DY100600264
,CLERK OF THE HOUSE,2010Q2,EQUIPMENT,06_30,06_30       S8    MA000957881,6/1/10,6/30/10,EQUIPMENT MAINTENANCE,270.84,FISCAL YEAR 2010,,,,06_30       S8    MA000957881
,CLERK OF THE HOUSE,2010Q2,EQUIPMENT,06_30,06_30       S8    MA000957886,6/1/10,6/30/10,EQUIPMENT MAINTENANCE,256.1,FISCAL YEAR 2010,,,,06_30       S8    MA000957886
,CLERK OF THE HOUSE,2010Q2,EQUIPMENT,06_30,06_30       S8    MA000957892,6/1/10,6/30/10,EQUIPMENT MAINTENANCE,117.84,FISCAL YEAR 2010,,,,06_30       S8    MA000957892
,CLERK OF THE HOUSE,2010Q2,EQUIPMENT,06_30,06_30       S8    MA000958768,6/1/10,6/30/10,EQUIPMENT MAINTENANCE,81.9,FISCAL YEAR 2010,,,,06_30       S8    MA000958768
,CLERK OF THE HOUSE,2010Q2,EQUIPMENT,06_30,06_30       S8    MA000958965,6/1/10,6/30/10,EQUIPMENT MAINTENANCE,209.58,FISCAL YEAR 2010,,,,06_30       S8    MA000958965
,CLERK OF THE HOUSE,2010Q2,EQUIPMENT,06_30,06_30       S8    MA000958972,6/1/10,6/30/10,EQUIPMENT MAINTENANCE,407.36,FISCAL YEAR 2010,,,,06_30       S8    MA000958972
,CLERK OF THE HOUSE,2010Q2,EQUIPMENT,06_30,06_30       S8    MA000959543,6/1/10,6/30/10,EQUIPMENT MAINTENANCE,212,FISCAL YEAR 2010,,,,06_30       S8    MA000959543
,CLERK OF THE HOUSE,2010Q2,EQUIPMENT,06_30,06_30       S8    MA000959773,6/1/10,6/30/10,EQUIPMENT MAINTENANCE,369.44,FISCAL YEAR 2010,,,,06_30       S8    MA000959773
,CLERK OF THE HOUSE,2010Q2,EQUIPMENT,06_30,06_30       S8    MA000959779,6/1/10,6/30/10,EQUIPMENT MAINTENANCE,183,FISCAL YEAR 2010,,,,06_30       S8    MA000959779
,CLERK OF THE HOUSE,2010Q2,EQUIPMENT,06_30,06_30       S8    MA000959790,6/1/10,6/30/10,EQUIPMENT MAINTENANCE,"5,469.91",FISCAL YEAR 2010,,,,06_30       S8    MA000959790
,COMM ON SCIENCE AND TECHNOLOGY,2010Q2,SUPPLIES AND MATERIALS,06_30,06_30 S1 DY100600310,6/1/10,6/30/10,OFFICE SUPPLY (TRANSFER),304.97,2010,,,,06_30 S1 DY100600310
,COMM ON SCIENCE AND TECHNOLOGY,2010Q2,EQUIPMENT,06_30,06_30      S8   MA000957988,6/1/10,6/30/10,EQUIPMENT MAINTENANCE,989.21,2010,,,,06_30      S8   MA000957988
,COMMITTEE ON AGRICULTURE,2010Q2,SUPPLIES AND MATERIALS,06_30,06_30   S1   DY100600051,6/1/10,6/30/10,OFFICE SUPPLY (TRANSFER),474.11,2010,,,,06_30   S1   DY100600051
,COMMITTEE ON AGRICULTURE,2010Q2,EQUIPMENT,06_30,06_30 S8 MA000957919,6/1/10,6/30/10,EQUIPMENT MAINTENANCE,396.9,2010,,,,06_30 S8 MA000957919
,COMMITTEE ON APPROPRIATIONS,2010Q2,SUPPLIES AND MATERIALS,06_30,06_30    S1    DY100600055,6/1/10,6/30/10,OFFICE SUPPLY (TRANSFER),"4,686.26",FISCAL YEAR 2010,,,,06_30    S1    DY100600055
,COMMITTEE ON APPROPRIATIONS,2010Q2,EQUIPMENT,06_30,06_30    S8    MA000957947,6/1/10,6/30/10,EQUIPMENT MAINTENANCE,"2,554.68",FISCAL YEAR 2010,,,,06_30    S8    MA000957947
,COMMITTEE ON BUDGET,2010Q2,SUPPLIES AND MATERIALS,06_30,06_30   S1   DY100600206,6/1/10,6/30/10,OFFICE SUPPLY (TRANSFER),808.58,2010,,,,06_30   S1   DY100600206
,COMMITTEE ON BUDGET,2010Q2,EQUIPMENT,06_30,06_30 S8 MA000957909,6/1/10,6/30/10,EQUIPMENT MAINTENANCE,"3,123.57",2010,,,,06_30 S8 MA000957909
,COMMITTEE ON ENERGY & COMMERCE,2010Q2,TRAVEL,06_30,06_30 P1 10CM0000312         JENNIFER D OWENS,6/6/10,6/8/10,TRAVEL REIMBURSEMENT,416.65,2010,,,,06_30 P1 10CM0000312         JENNIFER D OWENS
,COMMITTEE ON ENERGY & COMMERCE,2010Q2,TRAVEL,06_30,06_30 P1 10CM0000310         KELBY LINN,6/6/10,6/7/10,WITNESS TRAVEL/RELATED EXP,320.8,2010,,,,06_30 P1 10CM0000310         KELBY LINN
,COMMITTEE ON ENERGY & COMMERCE,2010Q2,TRAVEL,06_30,06_30 P1 10CM0000308         KEVIN KOHL,6/6/10,6/8/10,TRAVEL REIMBURSEMENT,336.61,2010,,,,06_30 P1 10CM0000308         KEVIN KOHL
,COMMITTEE ON ENERGY & COMMERCE,2010Q2,SUPPLIES AND MATERIALS,06_30,06_30 S1 DY100600172,6/1/10,6/30/10,OFFICE SUPPLY (TRANSFER),"2,686.77",2010,,,,06_30 S1 DY100600172
,COMMITTEE ON ENERGY & COMMERCE,2010Q2,SUPPLIES AND MATERIALS,06_30,06_30 S1 DY100600469,6/1/10,6/30/10,OFFICE SUPPLY (TRANSFER),806.75,2010,,,,06_30 S1 DY100600469
,COMMITTEE ON ENERGY & COMMERCE,2010Q2,SUPPLIES AND MATERIALS,06_30,06_30 P1 10CM0000309         WEST GROUP PAYMENT CENTER,5/10/10,6/9/10,PUBLICATION REF MATERIAL,274.12,2010,,,,06_30 P1 10CM0000309         WEST GROUP PAYMENT CENTER
,COMMITTEE ON ENERGY & COMMERCE,2010Q2,SUPPLIES AND MATERIALS,06_30,06_30 P1 10CM0000307         ZHONGRUI DENG,6/1/10,6/1/10,PUBLICATION REF MATERIAL,263.94,2010,,,,06_30 P1 10CM0000307         ZHONGRUI DENG
,COMMITTEE ON ENERGY & COMMERCE,2010Q2,EQUIPMENT,06_30,06_30       S8     MA000959944,6/1/10,6/30/10,EQUIPMENT MAINTENANCE,"4,139.79",2010,,,,06_30       S8     MA000959944
,COMMITTEE ON FINANCIAL SERVICE,2010Q2,"RENT, COMMUNICATION, UTILITIES",06_30,06_30 P1 10BA0000196         VERIZON WIRELESS,5/19/10,6/18/10,"TELECOM SVC, EQUIP & TOLLS",109.54,2010,,,,06_30 P1 10BA0000196         VERIZON WIRELESS
,COMMITTEE ON FINANCIAL SERVICE,2010Q2,PRINTING AND REPRODUCTION,06_30,06_30       P1     10BA0000193      ACCURATE WORD LLC,5/28/10,5/28/10,PRINTING AND REPRODUCTION,39.9,2010,,,,06_30       P1     10BA0000193      ACCURATE WORD LLC
,COMMITTEE ON FINANCIAL SERVICE,2010Q2,OTHER SERVICES,06_30,06_30       P1     10BA0000194                GOVTRENDS-A DIALOGCONCEPTS CO,5/1/10,5/31/10,"WEB DEV,HOSTNG,EMAIL & REL SVC",150,2010,,,,06_30       P1     10BA0000194                GOVTRENDS-A DIALOGCONCEPTS CO
,COMMITTEE ON FINANCIAL SERVICE,2010Q2,SUPPLIES AND MATERIALS,06_30,06_30   S1   DY100600256,6/1/10,6/30/10,OFFICE SUPPLY (TRANSFER),"2,941.82",2010,,,,06_30   S1   DY100600256
,COMMITTEE ON FINANCIAL SERVICE,2010Q2,SUPPLIES AND MATERIALS,06_30,06_30   S1   DY100600257,6/1/10,6/30/10,OFFICE SUPPLY (TRANSFER),618.17,2010,,,,06_30   S1   DY100600257
,COMMITTEE ON FINANCIAL SERVICE,2010Q2,SUPPLIES AND MATERIALS,06_30,06_30   C2   NW201018100   BOISE CASCADE,5/25/10,5/25/10,FOOD & BEVERAGE,13.03,2010,,,,06_30   C2   NW201018100   BOISE CASCADE
,COMMITTEE ON FINANCIAL SERVICE,2010Q2,SUPPLIES AND MATERIALS,06_30,06_30   C2   NW201018100            DO,5/25/10,5/25/10,OFFICE SUPPLIES OUTSIDE,320.98,2010,,,,06_30   C2   NW201018100            DO
,COMMITTEE ON FINANCIAL SERVICE,2010Q2,SUPPLIES AND MATERIALS,06_30,06_30   P1   10BA0000197   CAPITOLHOST,5/18/10,5/18/10,FOOD & BEVERAGE,66,2010,,,,06_30   P1   10BA0000197   CAPITOLHOST
,COMMITTEE ON FINANCIAL SERVICE,2010Q2,SUPPLIES AND MATERIALS,06_30,06_30   P1   10BA0000198            DO,5/19/10,5/19/10,FOOD & BEVERAGE,66,2010,,,,06_30   P1   10BA0000198            DO
,COMMITTEE ON FINANCIAL SERVICE,2010Q2,SUPPLIES AND MATERIALS,06_30,06_30   P1   10BA0000199            DO,5/20/10,5/20/10,FOOD & BEVERAGE,49.5,2010,,,,06_30   P1   10BA0000199            DO
,COMMITTEE ON FINANCIAL SERVICE,2010Q2,SUPPLIES AND MATERIALS,06_30,06_30   P1   10BA0000200            DO,5/21/10,5/21/10,FOOD & BEVERAGE,49.5,2010,,,,06_30   P1   10BA0000200            DO
,COMMITTEE ON FINANCIAL SERVICE,2010Q2,SUPPLIES AND MATERIALS,06_30,06_30   P1   10BA0000201            DO,5/25/10,5/25/10,FOOD & BEVERAGE,66,2010,,,,06_30   P1   10BA0000201            DO
,COMMITTEE ON FINANCIAL SERVICE,2010Q2,SUPPLIES AND MATERIALS,06_30,06_30   P1   10BA0000202            DO,5/26/10,5/26/10,FOOD & BEVERAGE,49.5,2010,,,,06_30   P1   10BA0000202            DO
,COMMITTEE ON FINANCIAL SERVICE,2010Q2,SUPPLIES AND MATERIALS,06_30,06_30   P1   10BA0000203            DO,5/27/10,5/27/10,FOOD & BEVERAGE,49.5,2010,,,,06_30   P1   10BA0000203            DO
,COMMITTEE ON FINANCIAL SERVICE,2010Q2,SUPPLIES AND MATERIALS,06_30,06_30   P1   10BA0000204            DO,6/10/10,6/10/10,FOOD & BEVERAGE,66,2010,,,,06_30   P1   10BA0000204            DO
,COMMITTEE ON FINANCIAL SERVICE,2010Q2,SUPPLIES AND MATERIALS,06_30,"06_30   P1   10BA0000207   DOW JONES & COMPANY, INC",8/28/10,8/28/11,PUBLICATION REF MATERIAL,467.97,2010,,,,"06_30   P1   10BA0000207   DOW JONES & COMPANY, INC"
,COMMITTEE ON FINANCIAL SERVICE,2010Q2,SUPPLIES AND MATERIALS,06_30,06_30   P1   10BA0000195   FILTERFRESH COFFEE,5/30/10,5/30/10,FOOD & BEVERAGE,99,2010,,,,06_30   P1   10BA0000195   FILTERFRESH COFFEE
,COMMITTEE ON FINANCIAL SERVICE,2010Q2,SUPPLIES AND MATERIALS,06_30,06_30   P1   10BA0000205            DO,6/16/10,6/16/10,FOOD & BEVERAGE,268.88,2010,,,,06_30   P1   10BA0000205            DO
,COMMITTEE ON FINANCIAL SERVICE,2010Q2,SUPPLIES AND MATERIALS,06_30,06_30   P1   10BA0000206   THE ECONOMIST,8/14/10,8/14/12,PUBLICATION REF MATERIAL,258.41,2010,,,,06_30   P1   10BA0000206   THE ECONOMIST
,COMMITTEE ON FINANCIAL SERVICE,2010Q2,EQUIPMENT,06_30,06_30   S8   MA000959957,6/1/10,6/30/10,EQUIPMENT MAINTENANCE,"1,496.21",2010,,,,06_30   S8   MA000959957
,COMMITTEE ON FOREIGN AFFAIRS,2010Q2,"RENT, COMMUNICATION, UTILITIES",06_30,06_30   P2   HCV1002097      AT&T MOBILITY,6/18/10,6/18/10,"TELECOM SVC, EQUIP & TOLLS",99.99,2010,,,,06_30   P2   HCV1002097      AT&T MOBILITY
,COMMITTEE ON FOREIGN AFFAIRS,2010Q2,SUPPLIES AND MATERIALS,06_30,06_30 S1 DY100600462,6/1/10,6/30/10,OFFICE SUPPLY (TRANSFER),"2,403.34",2010,,,,06_30 S1 DY100600462
,COMMITTEE ON FOREIGN AFFAIRS,2010Q2,EQUIPMENT,06_30,06_30       S8     MA000959973,6/1/10,6/30/10,EQUIPMENT MAINTENANCE,"2,891.50",2010,,,,06_30       S8     MA000959973
,COMMITTEE ON JUDICIARY,2010Q2,SUPPLIES AND MATERIALS,06_30,06_30 S1 DY100600474,6/1/10,6/30/10,OFFICE SUPPLY (TRANSFER),"1,204.71",2010,,,,06_30 S1 DY100600474
,COMMITTEE ON JUDICIARY,2010Q2,EQUIPMENT,06_30,06_30       S8 MA000959379,6/1/10,6/30/10,EQUIPMENT MAINTENANCE,"2,262.16",2010,,,,06_30       S8 MA000959379
,COMMITTEE ON NATURAL RESOURCES,2010Q2,SUPPLIES AND MATERIALS,06_30,06_30       S1 DY100600234,6/1/10,6/30/10,OFFICE SUPPLY (TRANSFER),"1,325.48",2010,,,,06_30       S1 DY100600234
,COMMITTEE ON NATURAL RESOURCES,2010Q2,EQUIPMENT,06_30,06_30       S8 MA000959715,6/1/10,6/30/10,EQUIPMENT MAINTENANCE,"2,887.38",2010,,,,06_30       S8 MA000959715
,COMMITTEE ON RULES,2010Q2,SUPPLIES AND MATERIALS,06_30,06_30       S1 DY100600146,6/1/10,6/30/10,OFFICE SUPPLY (TRANSFER),502,2010,,,,06_30       S1 DY100600146
,COMMITTEE ON RULES,2010Q2,EQUIPMENT,06_30,06_30       S8 MA000959633,6/1/10,6/30/10,EQUIPMENT MAINTENANCE,"1,350.00",2010,,,,06_30       S8 MA000959633
,COMMITTEE ON RULES,2010Q2,OTHER SERVICES,06_30,"06_30 HV 10A90300895         COMPUTER ENTERPRISES, INC",1/1/10,2/28/10,TECHNOLOGY SERVICE CONTRACTS,"26,780.00",2009,,,,"06_30 HV 10A90300895         COMPUTER ENTERPRISES, INC"
,COMMITTEE ON RULES,2010Q2,OTHER SERVICES,06_30,06_30 HV 10A90300896             DO,3/1/10,3/31/10,TECHNOLOGY SERVICE CONTRACTS,"8,580.00",2009,,,,06_30 HV 10A90300896             DO
,COMMITTEE ON RULES,2010Q2,OTHER SERVICES,06_30,06_30 HV 10A90300897             DO,4/1/10,4/30/10,TECHNOLOGY SERVICE CONTRACTS,"1,560.00",2009,,,,06_30 HV 10A90300897             DO
,COMMITTEE ON SMALL BUSINESS,2010Q2,SUPPLIES AND MATERIALS,06_30,06_30       S1    DY100600338,6/1/10,6/30/10,OFFICE SUPPLY (TRANSFER),160.98,2010,,,,06_30       S1    DY100600338
,COMMITTEE ON SMALL BUSINESS,2010Q2,SUPPLIES AND MATERIALS,06_30,06_30       S1    DY100600523,6/1/10,6/30/10,OFFICE SUPPLY (TRANSFER),175.9,2010,,,,06_30       S1    DY100600523
,COMMITTEE ON SMALL BUSINESS,2010Q2,SUPPLIES AND MATERIALS,06_30,06_30       C2    NW201018101               BOISE CASCADE,5/24/10,5/24/10,OFFICE SUPPLIES OUTSIDE,9.3,2010,,,,06_30       C2    NW201018101               BOISE CASCADE
,COMMITTEE ON SMALL BUSINESS,2010Q2,EQUIPMENT,06_30,06_30       S8    MA000959643,6/1/10,6/30/10,EQUIPMENT MAINTENANCE,859.58,2010,,,,06_30       S8    MA000959643
,COMMITTEE ON SMALL BUSINESS,2010Q2,EQUIPMENT,06_30,06_30       S8    PL000962820,6/1/10,6/30/10,EQUIPMENT PURCHASE _ $25000,737.37,2010,,,,06_30       S8    PL000962820
,COMMITTEE ON WAYS AND MEANS,2010Q2,SUPPLIES AND MATERIALS,06_30,06_30      S1   DY100600375,6/1/10,6/30/10,OFFICE SUPPLY (TRANSFER),429.71,2010,,,,06_30      S1   DY100600375
,COMMITTEE ON WAYS AND MEANS,2010Q2,SUPPLIES AND MATERIALS,06_30,06_30      S1   DY100600512,6/1/10,6/30/10,OFFICE SUPPLY (TRANSFER),227.95,2010,,,,06_30      S1   DY100600512
,COMMITTEE ON WAYS AND MEANS,2010Q2,EQUIPMENT,06_30,06_30      S8   MA000959265,6/1/10,6/30/10,EQUIPMENT MAINTENANCE,"1,149.51",2010,,,,06_30      S8   MA000959265
,COMMUNICATIONS,2010Q2,EQUIPMENT,06_30,06_30   S8   MA000959118,6/1/10,6/30/10,EQUIPMENT MAINTENANCE,9.06,FISCAL YEAR 2010,,,,06_30   S8   MA000959118
,COMMUNICATIONS,2010Q2,TRAVEL,06_30,06_30   P1 10A61000049      BERNARD BEIDEL,11/4/09,11/4/09,TRAVEL REIMBURSEMENT,78.3,FISCAL YEAR 2010,,,,06_30   P1 10A61000049      BERNARD BEIDEL
,COMMUNICATIONS,2010Q2,TRAVEL,06_30,06_30 P1 10A61000050             DO,1/12/10,6/10/10,TRAVEL REIMBURSEMENT,541.05,FISCAL YEAR 2010,,,,06_30 P1 10A61000050             DO
,COMMUNICATIONS,2010Q2,SUPPLIES AND MATERIALS,06_30,06_30   S1    DY100600017,6/1/10,6/30/10,OFFICE SUPPLY (TRANSFER),24.82,FISCAL YEAR 2010,,,,06_30   S1    DY100600017
,COMMUNICATIONS,2010Q2,SUPPLIES AND MATERIALS,06_30,06_30   S1    DY100600121,6/1/10,6/30/10,OFFICE SUPPLY (TRANSFER),432.37,FISCAL YEAR 2010,,,,06_30   S1    DY100600121
,COMMUNICATIONS,2010Q2,SUPPLIES AND MATERIALS,06_30,06_30   C2    NW201018100                BOISE CASCADE,5/20/10,5/20/10,OFFICE SUPPLIES OUTSIDE,20.88,FISCAL YEAR 2010,,,,06_30   C2    NW201018100                BOISE CASCADE
,COMMUNICATIONS,2010Q2,SUPPLIES AND MATERIALS,06_30,06_30   C2    NW201018100                         DO,5/20/10,5/20/10,OFFICE SUPPLIES OUTSIDE,23.72,FISCAL YEAR 2010,,,,06_30   C2    NW201018100                         DO
,COMMUNICATIONS,2010Q2,EQUIPMENT,06_30,06_30   S8    MA000959740,6/1/10,6/30/10,EQUIPMENT MAINTENANCE,435.85,FISCAL YEAR 2010,,,,06_30   S8    MA000959740
,COMMUNICATIONS,2010Q2,SUPPLIES AND MATERIALS,06_30,06_30 C2 NW201018100         BOISE CASCADE,5/24/10,5/24/10,OFFICE SUPPLIES OUTSIDE,57.68,FISCAL YEAR 2010,,,,06_30 C2 NW201018100         BOISE CASCADE
,DEMOCRATIC CAUCUS,2010Q2,TRAVEL,06_30,06_30       P1 10DA0100264           DO,6/14/10,6/14/10,"TAXI, PARKING, TOLLS",11,FISCAL YEAR 2010,,,,06_30       P1 10DA0100264           DO
,DEMOCRATIC CAUCUS,2010Q2,SUPPLIES AND MATERIALS,06_30,06_30 P1 10DA0100263        ELIZABETH MALERBA,6/10/10,6/10/10,FOOD & BEVERAGE,45,FISCAL YEAR 2010,,,,06_30 P1 10DA0100263        ELIZABETH MALERBA
,DEMOCRATIC CAUCUS,2010Q2,SUPPLIES AND MATERIALS,06_30,06_30 P1 10DA0100266              DO,6/21/10,6/21/10,FOOD & BEVERAGE,114.63,FISCAL YEAR 2010,,,,06_30 P1 10DA0100266              DO
,DEMOCRATIC CAUCUS,2010Q2,SUPPLIES AND MATERIALS,06_30,06_30 P1 10DA0100267        GEORGE F SHEVLIN,6/22/10,6/22/10,FOOD & BEVERAGE,198.51,FISCAL YEAR 2010,,,,06_30 P1 10DA0100267        GEORGE F SHEVLIN
,DEMOCRATIC CAUCUS,2010Q2,SUPPLIES AND MATERIALS,06_30,06_30 P1 10DA0100265        SHELEY M RUBINO,6/14/10,6/14/10,FOOD & BEVERAGE,"1,387.00",FISCAL YEAR 2010,,,,06_30 P1 10DA0100265        SHELEY M RUBINO
,EDUCATION AND LABOR,2010Q2,SUPPLIES AND MATERIALS,06_30,06_30       S1 DY100600067,6/1/10,6/30/10,OFFICE SUPPLY (TRANSFER),"1,640.38",2010,,,,06_30       S1 DY100600067
,EDUCATION AND LABOR,2010Q2,SUPPLIES AND MATERIALS,06_30,06_30       S1 DY100600461,6/1/10,6/30/10,OFFICE SUPPLY (TRANSFER),"1,056.91",2010,,,,06_30       S1 DY100600461
,EDUCATION AND LABOR,2010Q2,EQUIPMENT,06_30,06_30       S8    MA000959552,6/1/10,6/30/10,EQUIPMENT MAINTENANCE,"2,876.75",2010,,,,06_30       S8    MA000959552
,ENERGY INDEP & GLOBAL WARMING,2010Q2,SUPPLIES AND MATERIALS,06_30,06_30       S1    DY100600168,6/1/10,6/30/10,OFFICE SUPPLY (TRANSFER),191.31,2010,,,,06_30       S1    DY100600168
,ENERGY INDEP & GLOBAL WARMING,2010Q2,EQUIPMENT,06_30,06_30       S8    MA000959176,6/1/10,6/30/10,EQUIPMENT MAINTENANCE,178,2010,,,,06_30       S8    MA000959176
,GOVERNMENT CONTRIBUTIONS,2010Q2,PERSONNEL BENEFITS,06_30,06_30       PR     P1009200001,6/1/10,6/30/10,LEAVE WITHOUT PAY (LWOP),"13,395.54",FISCAL YEAR 2010,,,,06_30       PR     P1009200001
,GOVERNMENT CONTRIBUTIONS,2010Q2,PERSONNEL BENEFITS,06_30,06_30       P1     10MA0900345                MEGHAN ALDRIDGE,6/1/10,6/30/10,TRANSIT BENEFITS-DISTRICT OFC,163,FISCAL YEAR 2010,,,,06_30       P1     10MA0900345                MEGHAN ALDRIDGE
,GOVERNMENT CONTRIBUTIONS,2010Q2,PERSONNEL BENEFITS,06_30,06_30       PR     G1000630028                OFFICE OF FINANCE,6/1/10,6/30/10,TSP - BASIC,44.86,FISCAL YEAR 2010,,,,06_30       PR     G1000630028                OFFICE OF FINANCE
,HOMELAND SECURITY,2010Q2,SUPPLIES AND MATERIALS,06_30,06_30 S1 DY100600073,6/1/10,6/30/10,OFFICE SUPPLY (TRANSFER),"1,016.96",2010,,,,06_30 S1 DY100600073
,HOMELAND SECURITY,2010Q2,SUPPLIES AND MATERIALS,06_30,06_30 S1 DY100600120,6/1/10,6/30/10,OFFICE SUPPLY (TRANSFER),169.81,2010,,,,06_30 S1 DY100600120
,HOMELAND SECURITY,2010Q2,EQUIPMENT,06_30,06_30      S8    MA000959767,6/1/10,6/30/10,EQUIPMENT MAINTENANCE,"1,810.41",2010,,,,06_30      S8    MA000959767
S001179,HON. AARON SCHOCK,2010Q2,"RENT, COMMUNICATION, UTILITIES",06_30,"06_30   P1   10IL1800392                  CITY WATER, LIGHT & POWER",6/16/10,6/16/10,UTILITIES,250.81,2010,,,,"06_30   P1   10IL1800392                  CITY WATER, LIGHT & POWER"
S001179,HON. AARON SCHOCK,2010Q2,SUPPLIES AND MATERIALS,06_30,06_30 S1 DY100600175,6/1/10,6/30/10,OFFICE SUPPLY (TRANSFER),302.84,2010,,,,06_30 S1 DY100600175
S001179,HON. AARON SCHOCK,2010Q2,EQUIPMENT,06_30,06_30       S8     MA000959981,6/1/10,6/30/10,EQUIPMENT MAINTENANCE,335.2,2010,,,,06_30       S8     MA000959981
S001179,HON. AARON SCHOCK,2010Q2,EQUIPMENT,06_30,06_30      S8 PL000962272,6/1/10,6/30/10,COMP HARDWARE PURCH _ $25000,88.26,2010,,,,06_30      S8 PL000962272
S001150,HON. ADAM B. SCHIFF,2010Q2,SUPPLIES AND MATERIALS,06_30,06_30 S1 DY100600401,6/1/10,6/30/10,OFFICE SUPPLY (TRANSFER),"1,240.04",2010,,,,06_30 S1 DY100600401
S001150,HON. ADAM B. SCHIFF,2010Q2,EQUIPMENT,06_30,06_30       S8    MA000959684,6/1/10,6/30/10,EQUIPMENT MAINTENANCE,350,2010,,,,06_30       S8    MA000959684
P000586,HON. ADAM H. PUTNAM,2010Q2,TRAVEL,06_30,"06_30   HV   10A90300949                 FULFORD, CHERYL L",5/3/10,5/6/10,COMMERCIAL TRANSPORTATION,50,2010,,,,"06_30   HV   10A90300949                 FULFORD, CHERYL L"
P000586,HON. ADAM H. PUTNAM,2010Q2,SUPPLIES AND MATERIALS,06_30,06_30       S1    DY100600464,6/1/10,6/30/10,OFFICE SUPPLY (TRANSFER),307.54,2010,,,,06_30       S1    DY100600464
S000510,HON. ADAM SMITH,2010Q2,SUPPLIES AND MATERIALS,06_30,06_30      S1    DY100600348,6/1/10,6/30/10,OFFICE SUPPLY (TRANSFER),106.64,2010,,,,06_30      S1    DY100600348
S000510,HON. ADAM SMITH,2010Q2,EQUIPMENT,06_30,06_30      S8    MA000959968,6/1/10,6/30/10,EQUIPMENT MAINTENANCE,303,2010,,,,06_30      S8    MA000959968
S001172,HON. ADRIAN SMITH,2010Q2,TRAVEL,06_30,06_30 P1 10NE0300694               DO,1/20/10,6/4/10,MEALS,26.24,2010,,,,06_30 P1 10NE0300694               DO
S001172,HON. ADRIAN SMITH,2010Q2,"RENT, COMMUNICATION, UTILITIES",06_30,"06_30 P1 10NE0300693         CITIZEN DIALOG, LLC",5/12/10,5/12/10,"TELECOM SVC, EQUIP & TOLLS","2,750.00",2010,,,,"06_30 P1 10NE0300693         CITIZEN DIALOG, LLC"
S001172,HON. ADRIAN SMITH,2010Q2,PRINTING AND REPRODUCTION,06_30,"06_30       P1     10NE0300691      CITIZEN DIALOG, LLC",6/13/10,6/13/10,ADVERTISEMENTS,200,2010,,,,"06_30       P1     10NE0300691      CITIZEN DIALOG, LLC"
S001172,HON. ADRIAN SMITH,2010Q2,OTHER SERVICES,06_30,06_30   P1   10NE0300692                  SPOKEN WITH AUTHORITY,6/17/10,6/18/10,TRAINING EXPENSES,300,2010,,,,06_30   P1   10NE0300692                  SPOKEN WITH AUTHORITY
S001172,HON. ADRIAN SMITH,2010Q2,SUPPLIES AND MATERIALS,06_30,06_30 S1 DY100600134,6/1/10,6/30/10,OFFICE SUPPLY (TRANSFER),832.57,2010,,,,06_30 S1 DY100600134
S001172,HON. ADRIAN SMITH,2010Q2,EQUIPMENT,06_30,06_30       S8     MA000959540,6/1/10,6/30/10,EQUIPMENT MAINTENANCE,186.21,2010,,,,06_30       S8     MA000959540
G000553,HON. AL GREEN,2010Q2,SUPPLIES AND MATERIALS,06_30,06_30      S1    DY100600503,6/1/10,6/30/10,OFFICE SUPPLY (TRANSFER),"1,282.23",2010,,,,06_30      S1    DY100600503
G000553,HON. AL GREEN,2010Q2,EQUIPMENT,06_30,06_30      S8    MA000959702,6/1/10,6/30/10,EQUIPMENT MAINTENANCE,462.64,2010,,,,06_30      S8    MA000959702
M000844,HON. ALAN B MOLLOHAN,2010Q2,TRAVEL,06_30,06_30   P1   10WV0100197                CATHLEEN M JOHNSON,5/4/10,5/27/10,PRIVATE OWNED VEHICLE MILEAGE,401,2010,,,,06_30   P1   10WV0100197                CATHLEEN M JOHNSON
M000844,HON. ALAN B MOLLOHAN,2010Q2,"RENT, COMMUNICATION, UTILITIES",06_30,06_30 P1 10WV0100201         VERIZON,4/16/10,5/15/10,"TELECOM SVC, EQUIP & TOLLS","1,209.08",2010,,,,06_30 P1 10WV0100201         VERIZON
M000844,HON. ALAN B MOLLOHAN,2010Q2,OTHER SERVICES,06_30,06_30   P1   10WV0100200                  GOVTRENDS-A DIALOGCONCEPTS CO,5/1/10,5/31/10,"WEB DEV,HOSTNG,EMAIL & REL SVC",185,2010,,,,06_30   P1   10WV0100200                  GOVTRENDS-A DIALOGCONCEPTS CO
M000844,HON. ALAN B MOLLOHAN,2010Q2,SUPPLIES AND MATERIALS,06_30,06_30 S1 DY100600350,6/1/10,6/30/10,OFFICE SUPPLY (TRANSFER),323.95,2010,,,,06_30 S1 DY100600350
M000844,HON. ALAN B MOLLOHAN,2010Q2,SUPPLIES AND MATERIALS,06_30,06_30 P1 10WV0100198         SALLY GAINES MOORHEAD,6/14/10,6/14/10,OFFICE SUPPLIES OUTSIDE,4.35,2010,,,,06_30 P1 10WV0100198         SALLY GAINES MOORHEAD
M000844,HON. ALAN B MOLLOHAN,2010Q2,EQUIPMENT,06_30,06_30       S8 MA000959542,6/1/10,6/30/10,EQUIPMENT MAINTENANCE,258.33,2010,,,,06_30       S8 MA000959542
G000556,HON. ALAN GRAYSON,2010Q2,SUPPLIES AND MATERIALS,06_30,06_30 S1 DY100600014,6/1/10,6/30/10,OFFICE SUPPLY (TRANSFER),185.24,2010,,,,06_30 S1 DY100600014
G000556,HON. ALAN GRAYSON,2010Q2,EQUIPMENT,06_30,06_30       S8     MA000958697,6/1/10,6/30/10,EQUIPMENT MAINTENANCE,188.19,2010,,,,06_30       S8     MA000958697
G000556,HON. ALAN GRAYSON,2010Q2,EQUIPMENT,06_30,06_30       S8     PL000962215,6/1/10,6/30/10,COMP HARDWARE PURCH _ $25000,441.3,2010,,,,06_30       S8     PL000962215
S001165,HON. ALBIO SIRES,2010Q2,SUPPLIES AND MATERIALS,06_30,06_30 S1 DY100600294,6/1/10,6/30/10,OFFICE SUPPLY (TRANSFER),157.84,2010,,,,06_30 S1 DY100600294
S001165,HON. ALBIO SIRES,2010Q2,EQUIPMENT,06_30,06_30       S8     MA000959450,6/1/10,6/30/10,EQUIPMENT MAINTENANCE,639.27,2010,,,,06_30       S8     MA000959450
H000324,HON. ALCEE L HASTINGS,2010Q2,SUPPLIES AND MATERIALS,06_30,06_30   S1   DY100600269,6/1/10,6/30/10,OFFICE SUPPLY (TRANSFER),582.63,2010,,,,06_30   S1   DY100600269
H000324,HON. ALCEE L HASTINGS,2010Q2,EQUIPMENT,06_30,06_30 S8 MA000959065,6/1/10,6/30/10,EQUIPMENT MAINTENANCE,84,2010,,,,06_30 S8 MA000959065
H000324,HON. ALCEE L HASTINGS,2010Q2,EQUIPMENT,06_30,06_30 S8 PL000962831,6/1/10,6/30/10,FURNITURE _ $25000,78.25,2010,,,,06_30 S8 PL000962831
B000716,HON. ALLEN BOYD,2010Q2,FRANKED MAIL,06_30,06_30 OP 10USPS04006                 DO,4/1/10,4/30/10,FRANKED MAIL,"9,004.84",2010,,,,06_30 OP 10USPS04006                 DO
B000716,HON. ALLEN BOYD,2010Q2,SUPPLIES AND MATERIALS,06_30,06_30 S1 DY100600266,6/1/10,6/30/10,OFFICE SUPPLY (TRANSFER),277.04,2010,,,,06_30 S1 DY100600266
B000716,HON. ALLEN BOYD,2010Q2,EQUIPMENT,06_30,06_30      S8    MA000959995,6/1/10,6/30/10,EQUIPMENT MAINTENANCE,267.75,2010,,,,06_30      S8    MA000959995
B000716,HON. ALLEN BOYD,2010Q2,EQUIPMENT,06_30,06_30      S8    PL000962205,6/1/10,6/30/10,COMP HARDWARE PURCH _ $25000,111.9,2010,,,,06_30      S8    PL000962205
S001162,HON. ALLYSON Y. SCHWARTZ,2010Q2,SUPPLIES AND MATERIALS,06_30,06_30 S1 DY100600495,6/1/10,6/30/10,OFFICE SUPPLY (TRANSFER),424.93,2010,,,,06_30 S1 DY100600495
S001162,HON. ALLYSON Y. SCHWARTZ,2010Q2,SUPPLIES AND MATERIALS,06_30,06_30 C2 NW201018101         BOISE CASCADE,5/19/10,5/19/10,OFFICE SUPPLIES OUTSIDE,54.18,2010,,,,06_30 C2 NW201018101         BOISE CASCADE
S001162,HON. ALLYSON Y. SCHWARTZ,2010Q2,SUPPLIES AND MATERIALS,06_30,06_30 C2 NW201018101                  DO,5/21/10,5/21/10,FOOD & BEVERAGE,57.69,2010,,,,06_30 C2 NW201018101                  DO
S001162,HON. ALLYSON Y. SCHWARTZ,2010Q2,SUPPLIES AND MATERIALS,06_30,06_30 C2 NW201018101                  DO,5/21/10,5/21/10,OFFICE SUPPLIES OUTSIDE,72.23,2010,,,,06_30 C2 NW201018101                  DO
S001162,HON. ALLYSON Y. SCHWARTZ,2010Q2,SUPPLIES AND MATERIALS,06_30,06_30 C2 NW201018101                  DO,5/25/10,5/25/10,FOOD & BEVERAGE,13.74,2010,,,,06_30 C2 NW201018101                  DO
S001162,HON. ALLYSON Y. SCHWARTZ,2010Q2,SUPPLIES AND MATERIALS,06_30,06_30 C2 NW201018101                  DO,5/25/10,5/25/10,OFFICE SUPPLIES OUTSIDE,4.95,2010,,,,06_30 C2 NW201018101                  DO
S001162,HON. ALLYSON Y. SCHWARTZ,2010Q2,SUPPLIES AND MATERIALS,06_30,06_30 C2 NW201018101                  DO,5/25/10,5/25/10,OFFICE SUPPLIES OUTSIDE,895.41,2010,,,,06_30 C2 NW201018101                  DO
S001162,HON. ALLYSON Y. SCHWARTZ,2010Q2,SUPPLIES AND MATERIALS,06_30,06_30 C2 NW201018101                  DO,5/26/10,5/26/10,OFFICE SUPPLIES OUTSIDE,108.15,2010,,,,06_30 C2 NW201018101                  DO
S001162,HON. ALLYSON Y. SCHWARTZ,2010Q2,EQUIPMENT,06_30,06_30       S8 MA000959182,6/1/10,6/30/10,EQUIPMENT MAINTENANCE,200.84,2010,,,,06_30       S8 MA000959182
C001045,HON. ANDER CRENSHAW,2010Q2,TRAVEL,06_30,06_30 P1 10FL0400307        NATHAN E. RISKA,5/3/10,5/31/10,PRIVATE OWNED VEHICLE MILEAGE,454.5,2010,,,,06_30 P1 10FL0400307        NATHAN E. RISKA
C001045,HON. ANDER CRENSHAW,2010Q2,"RENT, COMMUNICATION, UTILITIES",06_30,06_30   P1   10FL0400305                  VERIZON WIRELESS,6/6/10,7/4/10,"TELECOM SVC, EQUIP & TOLLS",93.2,2010,,,,06_30   P1   10FL0400305                  VERIZON WIRELESS
C001045,HON. ANDER CRENSHAW,2010Q2,OTHER SERVICES,06_30,06_30   P1   10FL0400304                  ADVANCED TECHNOLOGY,6/1/10,6/30/10,JANITORIAL & MAINTENANCE SVCS,167,2010,,,,06_30   P1   10FL0400304                  ADVANCED TECHNOLOGY
C001045,HON. ANDER CRENSHAW,2010Q2,SUPPLIES AND MATERIALS,06_30,06_30 S1 DY100600115,6/1/10,6/30/10,OFFICE SUPPLY (TRANSFER),"1,555.72",2010,,,,06_30 S1 DY100600115
C001045,HON. ANDER CRENSHAW,2010Q2,EQUIPMENT,06_30,06_30       S8     MA000959986,6/1/10,6/30/10,EQUIPMENT MAINTENANCE,375.25,2010,,,,06_30       S8     MA000959986
C001072,HON. ANDRE CARSON,2010Q2,TRAVEL,06_30,06_30   P1   10IN0700299                      DO,6/11/10,6/14/10,"TAXI, PARKING, TOLLS",40,2010,,,,06_30   P1   10IN0700299                      DO
C001072,HON. ANDRE CARSON,2010Q2,"RENT, COMMUNICATION, UTILITIES",06_30,06_30 P1 10IN0700296        VERIZON WIRELESS,5/5/10,6/4/10,"TELECOM SVC, EQUIP & TOLLS",186.28,2010,,,,06_30 P1 10IN0700296        VERIZON WIRELESS
C001072,HON. ANDRE CARSON,2010Q2,OTHER SERVICES,06_30,06_30   P1 10IN0700300                    ARTHUR C. ROWLEY JR,6/12/10,6/13/10,SECURITY SERVICE,165,2010,,,,06_30   P1 10IN0700300                    ARTHUR C. ROWLEY JR
C001072,HON. ANDRE CARSON,2010Q2,SUPPLIES AND MATERIALS,06_30,06_30 S1 DY100600124,6/1/10,6/30/10,OFFICE SUPPLY (TRANSFER),168.59,2010,,,,06_30 S1 DY100600124
C001072,HON. ANDRE CARSON,2010Q2,SUPPLIES AND MATERIALS,06_30,06_30 P1 10IN0700297        DEER PARK WATER,5/1/10,5/31/10,BOTTLED WATER,2,2010,,,,06_30 P1 10IN0700297        DEER PARK WATER
C001072,HON. ANDRE CARSON,2010Q2,SUPPLIES AND MATERIALS,06_30,06_30 P1 10IN0700298        THE NEW YORK TIMES,6/2/10,6/29/10,PUBLICATION REF MATERIAL,31.38,2010,,,,06_30 P1 10IN0700298        THE NEW YORK TIMES
C001072,HON. ANDRE CARSON,2010Q2,EQUIPMENT,06_30,06_30       S8     MA000959691,6/1/10,6/30/10,EQUIPMENT MAINTENANCE,168.8,2010,,,,06_30       S8     MA000959691
C001072,HON. ANDRE CARSON,2010Q2,EQUIPMENT,06_30,06_30       S8     PL000962755,6/1/10,6/30/10,COMP HARDWARE PURCH _ $25000,74.92,2010,,,,06_30       S8     PL000962755
C001079,HON. ANH JOSEPH CAO,2010Q2,SUPPLIES AND MATERIALS,06_30,06_30 S1 DY100600178,6/1/10,6/30/10,OFFICE SUPPLY (TRANSFER),243.72,2010,,,,06_30 S1 DY100600178
C001079,HON. ANH JOSEPH CAO,2010Q2,EQUIPMENT,06_30,06_30       S8     MA000959730,6/1/10,6/30/10,EQUIPMENT MAINTENANCE,370,2010,,,,06_30       S8     MA000959730
C001079,HON. ANH JOSEPH CAO,2010Q2,EQUIPMENT,06_30,06_30       S8     PL000962662,6/1/10,6/30/10,COMP HARDWARE PURCH _ $25000,376.98,2010,,,,06_30       S8     PL000962662
K000368,HON. ANN KIRKPATRICK,2010Q2,SUPPLIES AND MATERIALS,06_30,06_30       S1    DY100600447,6/1/10,6/30/10,OFFICE SUPPLY (TRANSFER),187.77,2010,,,,06_30       S1    DY100600447
K000368,HON. ANN KIRKPATRICK,2010Q2,EQUIPMENT,06_30,06_30      S8    MA000957823,6/1/10,6/30/10,EQUIPMENT MAINTENANCE,309.75,2010,,,,06_30      S8    MA000957823
K000368,HON. ANN KIRKPATRICK,2010Q2,EQUIPMENT,06_30,06_30      S8    PL000962724,6/1/10,6/30/10,COMP HARDWARE PURCH _ $25000,441.2,2010,,,,06_30      S8    PL000962724
E000215,HON. ANNA G ESHOO,2010Q2,TRAVEL,06_30,06_30   P1   10CA1400389   HON. ANNA ESHOO,6/18/10,6/18/10,COMMERCIAL TRANSPORTATION,179.7,2010,,,,06_30   P1   10CA1400389   HON. ANNA ESHOO
E000215,HON. ANNA G ESHOO,2010Q2,TRAVEL,06_30,06_30 P1 10CA1400390             DO,6/18/10,6/18/10,"TAXI, PARKING, TOLLS",75,2010,,,,06_30 P1 10CA1400390             DO
E000215,HON. ANNA G ESHOO,2010Q2,TRAVEL,06_30,06_30 P1 10CA1400391             DO,6/22/10,6/22/10,MEALS,179,2010,,,,06_30 P1 10CA1400391             DO
E000215,HON. ANNA G ESHOO,2010Q2,PRINTING AND REPRODUCTION,06_30,06_30   P1   10CA1400392           DO,6/14/10,6/14/10,PRINTING AND REPRODUCTION,87.5,2010,,,,06_30   P1   10CA1400392           DO
E000215,HON. ANNA G ESHOO,2010Q2,SUPPLIES AND MATERIALS,06_30,06_30       S1    DY100600058,6/1/10,6/30/10,OFFICE SUPPLY (TRANSFER),541.06,2010,,,,06_30       S1    DY100600058
E000215,HON. ANNA G ESHOO,2010Q2,SUPPLIES AND MATERIALS,06_30,06_30       P1    10CA1400393                LAYERS LLC,6/11/10,6/11/10,FOOD & BEVERAGE,49.54,2010,,,,06_30       P1    10CA1400393                LAYERS LLC
E000215,HON. ANNA G ESHOO,2010Q2,EQUIPMENT,06_30,06_30       S8    MA000958094,6/1/10,6/30/10,EQUIPMENT MAINTENANCE,205.58,2010,,,,06_30       S8    MA000958094
W000792,HON. ANTHONY D. WEINER,2010Q2,"RENT, COMMUNICATION, UTILITIES",06_30,06_30 P2 HCV1002016          AT&T MOBILITY,5/25/10,5/25/10,"TELECOM SVC, EQUIP & TOLLS",125,2010,,,,06_30 P2 HCV1002016          AT&T MOBILITY
W000792,HON. ANTHONY D. WEINER,2010Q2,"RENT, COMMUNICATION, UTILITIES",06_30,06_30 P2 HCV1002016               DO,5/25/10,5/25/10,"TELECOM SVC, EQUIP & TOLLS",14.95,2010,,,,06_30 P2 HCV1002016               DO
W000792,HON. ANTHONY D. WEINER,2010Q2,"RENT, COMMUNICATION, UTILITIES",06_30,06_30 P2 HCV1002119               DO,6/21/10,6/21/10,"TELECOM SVC, EQUIP & TOLLS",149.99,2010,,,,06_30 P2 HCV1002119               DO
W000792,HON. ANTHONY D. WEINER,2010Q2,SUPPLIES AND MATERIALS,06_30,06_30 S1 DY100600297,6/1/10,6/30/10,OFFICE SUPPLY (TRANSFER),527.77,2010,,,,06_30 S1 DY100600297
W000792,HON. ANTHONY D. WEINER,2010Q2,EQUIPMENT,06_30,06_30       S8 MA000959783,6/1/10,6/30/10,EQUIPMENT MAINTENANCE,548,2010,,,,06_30       S8 MA000959783
D000602,HON. ARTUR DAVIS,2010Q2,SUPPLIES AND MATERIALS,06_30,06_30 S1 DY100600052,6/1/10,6/30/10,OFFICE SUPPLY (TRANSFER),219.88,2010,,,,06_30 S1 DY100600052
D000602,HON. ARTUR DAVIS,2010Q2,EQUIPMENT,06_30,06_30       S8     MA000957838,6/1/10,6/30/10,EQUIPMENT MAINTENANCE,272,2010,,,,06_30       S8     MA000957838
L000551,HON. BARBARA LEE,2010Q2,TRAVEL,06_30,06_30 P1 10CA0900483        DANIELA QUINTANILLA,6/4/10,6/7/10,"TAXI, PARKING, TOLLS",19.5,2010,,,,06_30 P1 10CA0900483        DANIELA QUINTANILLA
L000551,HON. BARBARA LEE,2010Q2,TRAVEL,06_30,06_30 P1 10CA0900484        JAMILA PIERSON-JASE,5/5/10,5/27/10,"TAXI, PARKING, TOLLS",12,2010,,,,06_30 P1 10CA0900484        JAMILA PIERSON-JASE
L000551,HON. BARBARA LEE,2010Q2,"RENT, COMMUNICATION, UTILITIES",06_30,06_30   P1   10CA0900481                  ACCESS INFORMATION MANAGEMENT,6/1/10,6/30/10,TEMPORARY SPACE RENTAL,52.05,2010,,,,06_30   P1   10CA0900481                  ACCESS INFORMATION MANAGEMENT
L000551,HON. BARBARA LEE,2010Q2,"RENT, COMMUNICATION, UTILITIES",06_30,06_30   P1   10CA0900486                  AT & T,5/10/10,6/9/10,"TELECOM SVC, EQUIP & TOLLS",689.11,2010,,,,06_30   P1   10CA0900486                  AT & T
L000551,HON. BARBARA LEE,2010Q2,OTHER SERVICES,06_30,"06_30   P1   10CA0900485                  SHRED WORKS, INC",6/14/10,6/14/10,JANITORIAL & MAINTENANCE SVCS,33,2010,,,,"06_30   P1   10CA0900485                  SHRED WORKS, INC"
L000551,HON. BARBARA LEE,2010Q2,SUPPLIES AND MATERIALS,06_30,06_30       S1    DY100600451,6/1/10,6/30/10,OFFICE SUPPLY (TRANSFER),279.84,2010,,,,06_30       S1    DY100600451
L000551,HON. BARBARA LEE,2010Q2,SUPPLIES AND MATERIALS,06_30,06_30       P1    10CA0900482               ALHAMBRA & SIERRA SPRINGS,5/14/10,6/1/10,BOTTLED WATER,76.53,2010,,,,06_30       P1    10CA0900482               ALHAMBRA & SIERRA SPRINGS
L000551,HON. BARBARA LEE,2010Q2,SUPPLIES AND MATERIALS,06_30,06_30       C2    NW201018100               BOISE CASCADE,5/18/10,5/18/10,FOOD & BEVERAGE,69.9,2010,,,,06_30       C2    NW201018100               BOISE CASCADE
L000551,HON. BARBARA LEE,2010Q2,SUPPLIES AND MATERIALS,06_30,06_30       C2    NW201018100                        DO,5/18/10,5/18/10,OFFICE SUPPLIES OUTSIDE,141.23,2010,,,,06_30       C2    NW201018100                        DO
L000551,HON. BARBARA LEE,2010Q2,SUPPLIES AND MATERIALS,06_30,06_30       C2    NW201018100                        DO,5/26/10,5/26/10,FOOD & BEVERAGE,41.22,2010,,,,06_30       C2    NW201018100                        DO
L000551,HON. BARBARA LEE,2010Q2,SUPPLIES AND MATERIALS,06_30,06_30       C2    NW201018100                        DO,5/26/10,5/26/10,OFFICE SUPPLIES OUTSIDE,96.81,2010,,,,06_30       C2    NW201018100                        DO
L000551,HON. BARBARA LEE,2010Q2,SUPPLIES AND MATERIALS,06_30,06_30       P1    10CA0900487               GIVE SOMETHING BACK,6/8/10,6/8/10,OFFICE SUPPLIES OUTSIDE,65.9,2010,,,,06_30       P1    10CA0900487               GIVE SOMETHING BACK
L000551,HON. BARBARA LEE,2010Q2,EQUIPMENT,06_30,06_30       S8    MA000959997,6/1/10,6/30/10,EQUIPMENT MAINTENANCE,172,2010,,,,06_30       S8    MA000959997
L000551,HON. BARBARA LEE,2010Q2,EQUIPMENT,06_30,06_30       S8    PL000962407,6/1/10,6/30/10,COMP HARDWARE PURCH _ $25000,586.75,2010,,,,06_30       S8    PL000962407
F000339,HON. BARNEY FRANK,2010Q2,SUPPLIES AND MATERIALS,06_30,06_30      S1   DY100600425,6/1/10,6/30/10,OFFICE SUPPLY (TRANSFER),733.38,2010,,,,06_30      S1   DY100600425
F000339,HON. BARNEY FRANK,2010Q2,EQUIPMENT,06_30,06_30      S8    MA000959021,6/1/10,6/30/10,EQUIPMENT MAINTENANCE,234,2010,,,,06_30      S8    MA000959021
F000339,HON. BARNEY FRANK,2010Q2,EQUIPMENT,06_30,06_30      S8    PL000962842,6/1/10,6/30/10,COMP HARDWARE PURCH _ $25000,122.31,2010,,,,06_30      S8    PL000962842
H001030,HON. BARON P. HILL,2010Q2,SUPPLIES AND MATERIALS,06_30,06_30      S1 DY100600125,6/1/10,6/30/10,OFFICE SUPPLY (TRANSFER),"1,231.93",2010,,,,06_30      S1 DY100600125
H001030,HON. BARON P. HILL,2010Q2,EQUIPMENT,06_30,06_30      S8 MA000959644,6/1/10,6/30/10,EQUIPMENT MAINTENANCE,285.58,2010,,,,06_30      S8 MA000959644
H001030,HON. BARON P. HILL,2010Q2,SUPPLIES AND MATERIALS,06_30,06_30      P2    OSM42766         CDW GOVERNMENT INC,2/24/10,2/24/10,OFFICE SUPPLIES OUTSIDE,319.19,2009,,,,06_30      P2    OSM42766         CDW GOVERNMENT INC
H001030,HON. BARON P. HILL,2010Q2,SUPPLIES AND MATERIALS,06_30,06_30      P2    OSM42768              DO,4/23/10,4/23/10,OFFICE SUPPLIES OUTSIDE,479.19,2009,,,,06_30      P2    OSM42768              DO
G000309,HON. BART GORDON,2010Q2,"RENT, COMMUNICATION, UTILITIES",06_30,06_30 P1 10TN0600150        CHARTER COMMUNICATIONS,6/8/10,7/7/10,UTILITIES,77.89,2010,,,,06_30 P1 10TN0600150        CHARTER COMMUNICATIONS
G000309,HON. BART GORDON,2010Q2,PRINTING AND REPRODUCTION,06_30,06_30       P1     10TN0600151           DO,6/14/10,6/14/10,PRINTING AND REPRODUCTION,31.9,2010,,,,06_30       P1     10TN0600151           DO
G000309,HON. BART GORDON,2010Q2,OTHER SERVICES,06_30,06_30       P1     10TN0600148                  BLESS YOU CLEANING SERVICE,5/13/10,5/25/10,JANITORIAL & MAINTENANCE SVCS,125,2010,,,,06_30       P1     10TN0600148                  BLESS YOU CLEANING SERVICE
G000309,HON. BART GORDON,2010Q2,SUPPLIES AND MATERIALS,06_30,06_30      S1   DY100600312,6/1/10,6/30/10,OFFICE SUPPLY (TRANSFER),"1,043.80",2010,,,,06_30      S1   DY100600312
G000309,HON. BART GORDON,2010Q2,SUPPLIES AND MATERIALS,06_30,06_30      P1   10TN0600149              MACON COUNTY TIMES,6/19/10,12/18/10,PUBLICATION REF MATERIAL,14,2010,,,,06_30      P1   10TN0600149              MACON COUNTY TIMES
G000309,HON. BART GORDON,2010Q2,SUPPLIES AND MATERIALS,06_30,06_30      P1   10TN0600147              THE WATERTOWN GAZETTE,7/1/10,12/31/10,PUBLICATION REF MATERIAL,13,2010,,,,06_30      P1   10TN0600147              THE WATERTOWN GAZETTE
G000309,HON. BART GORDON,2010Q2,EQUIPMENT,06_30,06_30      S8   MA000958236,6/1/10,6/30/10,EQUIPMENT MAINTENANCE,125.36,2010,,,,06_30      S8   MA000958236
S001045,HON. BART STUPAK,2010Q2,SUPPLIES AND MATERIALS,06_30,06_30 S1 DY100600027,6/1/10,6/30/10,OFFICE SUPPLY (TRANSFER),"1,029.45",2010,,,,06_30 S1 DY100600027
S001045,HON. BART STUPAK,2010Q2,EQUIPMENT,06_30,06_30       S8 MA000959812,6/1/10,6/30/10,EQUIPMENT MAINTENANCE,818.04,2010,,,,06_30       S8 MA000959812
C001058,HON. BEN CHANDLER,2010Q2,SUPPLIES AND MATERIALS,06_30,06_30      S1    DY100600278,6/1/10,6/30/10,OFFICE SUPPLY (TRANSFER),126.36,2010,,,,06_30      S1    DY100600278
C001058,HON. BEN CHANDLER,2010Q2,EQUIPMENT,06_30,06_30      S8    MA000959723,6/1/10,6/30/10,EQUIPMENT MAINTENANCE,170,2010,,,,06_30      S8    MA000959723
C001058,HON. BEN CHANDLER,2010Q2,EQUIPMENT,06_30,06_30      S8    PL000962576,6/1/10,6/30/10,EQUIPMENT PURCHASE _ $25000,569.58,2010,,,,06_30      S8    PL000962576
L000570,HON. BEN RAY LUJAN,2010Q2,SUPPLIES AND MATERIALS,06_30,06_30 S1 DY100600188,6/1/10,6/30/10,OFFICE SUPPLY (TRANSFER),538.35,2010,,,,06_30 S1 DY100600188
L000570,HON. BEN RAY LUJAN,2010Q2,EQUIPMENT,06_30,06_30       S8     MA000958404,6/1/10,6/30/10,EQUIPMENT MAINTENANCE,97,2010,,,,06_30       S8     MA000958404
L000570,HON. BEN RAY LUJAN,2010Q2,EQUIPMENT,06_30,06_30       S8     PL000962408,6/1/10,6/30/10,COMP HARDWARE PURCH _ $25000,643.08,2010,,,,06_30       S8     PL000962408
T000193,HON. BENNIE G. THOMPSON,2010Q2,SUPPLIES AND MATERIALS,06_30,06_30 S1 DY100600249,6/1/10,6/30/10,OFFICE SUPPLY (TRANSFER),582.16,2010,,,,06_30 S1 DY100600249
T000193,HON. BENNIE G. THOMPSON,2010Q2,EQUIPMENT,06_30,06_30       S8     MA000959598,6/1/10,6/30/10,EQUIPMENT MAINTENANCE,992.65,2010,,,,06_30       S8     MA000959598
M001172,HON. BETSY MARKEY,2010Q2,SUPPLIES AND MATERIALS,06_30,06_30      S1    DY100600160,6/1/10,6/30/10,OFFICE SUPPLY (TRANSFER),378.37,2010,,,,06_30      S1    DY100600160
M001172,HON. BETSY MARKEY,2010Q2,SUPPLIES AND MATERIALS,06_30,06_30      C2    NW201018100                BOISE CASCADE,5/20/10,5/20/10,OFFICE SUPPLIES OUTSIDE,202.17,2010,,,,06_30      C2    NW201018100                BOISE CASCADE
M001172,HON. BETSY MARKEY,2010Q2,SUPPLIES AND MATERIALS,06_30,06_30      C2    NW201018100                         DO,5/20/10,5/20/10,OFFICE SUPPLIES OUTSIDE,116.95,2010,,,,06_30      C2    NW201018100                         DO
M001172,HON. BETSY MARKEY,2010Q2,SUPPLIES AND MATERIALS,06_30,06_30      C2    NW201018100                         DO,5/20/10,5/20/10,OFFICE SUPPLIES OUTSIDE,17.99,2010,,,,06_30      C2    NW201018100                         DO
M001172,HON. BETSY MARKEY,2010Q2,EQUIPMENT,06_30,06_30      S8 MA000959833,6/1/10,6/30/10,EQUIPMENT MAINTENANCE,209.16,2010,,,,06_30      S8 MA000959833
M001143,HON. BETTY MCCOLLUM,2010Q2,"RENT, COMMUNICATION, UTILITIES",06_30,06_30   P1   10MN0400451                  QWEST,5/16/10,6/15/10,"TELECOM SVC, EQUIP & TOLLS",670.49,2010,,,,06_30   P1   10MN0400451                  QWEST
M001143,HON. BETTY MCCOLLUM,2010Q2,"RENT, COMMUNICATION, UTILITIES",06_30,06_30   P1   10MN0400450                  TOD HERSKOVITZ,5/21/10,5/21/10,POSTAGE/COURIER/BOX RENTAL,96.21,2010,,,,06_30   P1   10MN0400450                  TOD HERSKOVITZ
M001143,HON. BETTY MCCOLLUM,2010Q2,OTHER SERVICES,06_30,06_30 P1 10MN0400449        STANLEY CSS,6/1/10,6/30/10,SECURITY SERVICE,24.04,2010,,,,06_30 P1 10MN0400449        STANLEY CSS
M001143,HON. BETTY MCCOLLUM,2010Q2,SUPPLIES AND MATERIALS,06_30,06_30   S1   DY100600244,6/1/10,6/30/10,OFFICE SUPPLY (TRANSFER),"1,296.29",2010,,,,06_30   S1   DY100600244
M001143,HON. BETTY MCCOLLUM,2010Q2,SUPPLIES AND MATERIALS,06_30,06_30   P1   10MN0400447   BERTELSON TOTAL OFFICE,6/10/10,6/10/10,OFFICE SUPPLIES OUTSIDE,87.89,2010,,,,06_30   P1   10MN0400447   BERTELSON TOTAL OFFICE
M001143,HON. BETTY MCCOLLUM,2010Q2,EQUIPMENT,06_30,06_30 S8 MA000959114,6/1/10,6/30/10,EQUIPMENT MAINTENANCE,230.66,2010,,,,06_30 S8 MA000959114
S001174,HON. BETTY SUTTON,2010Q2,SUPPLIES AND MATERIALS,06_30,06_30 S1 DY100600382,6/1/10,6/30/10,OFFICE SUPPLY (TRANSFER),866.68,2010,,,,06_30 S1 DY100600382
S001174,HON. BETTY SUTTON,2010Q2,SUPPLIES AND MATERIALS,06_30,06_30 P1 10OH1300443         BCDC,6/17/10,6/17/10,FOOD & BEVERAGE,25,2010,,,,06_30 P1 10OH1300443         BCDC
S001174,HON. BETTY SUTTON,2010Q2,SUPPLIES AND MATERIALS,06_30,06_30 C2 NW201018101         BOISE CASCADE,5/17/10,5/17/10,OFFICE SUPPLIES OUTSIDE,65.95,2010,,,,06_30 C2 NW201018101         BOISE CASCADE
S001174,HON. BETTY SUTTON,2010Q2,EQUIPMENT,06_30,06_30       S8     MA000959865,6/1/10,6/30/10,EQUIPMENT MAINTENANCE,428.89,2010,,,,06_30       S8     MA000959865
S001174,HON. BETTY SUTTON,2010Q2,SUPPLIES AND MATERIALS,06_30,06_30   P2    OSM42298         CDW GOVERNMENT INC,12/17/09,12/17/09,OFFICE SUPPLIES OUTSIDE,145,2009,,,,06_30   P2    OSM42298         CDW GOVERNMENT INC
S001174,HON. BETTY SUTTON,2010Q2,SUPPLIES AND MATERIALS,06_30,06_30   P2    OSM42298              DO,12/17/09,12/17/09,OFFICE SUPPLIES OUTSIDE,12.09,2009,,,,06_30   P2    OSM42298              DO
S001174,HON. BETTY SUTTON,2010Q2,SUPPLIES AND MATERIALS,06_30,06_30   P2    OSM42299              DO,12/18/09,12/18/09,OFFICE SUPPLIES OUTSIDE,129.59,2009,,,,06_30   P2    OSM42299              DO
S001174,HON. BETTY SUTTON,2010Q2,SUPPLIES AND MATERIALS,06_30,06_30   P2    OSM42299              DO,12/18/09,12/18/09,OFFICE SUPPLIES OUTSIDE,46.87,2009,,,,06_30   P2    OSM42299              DO
C001075,HON. BILL CASSIDY,2010Q2,"RENT, COMMUNICATION, UTILITIES",06_30,"06_30 P1 10LA0600307         CITIZEN DIALOG, LLC",4/29/10,4/29/10,"TELECOM SVC, EQUIP & TOLLS","4,250.00",2010,,,,"06_30 P1 10LA0600307         CITIZEN DIALOG, LLC"
C001075,HON. BILL CASSIDY,2010Q2,"RENT, COMMUNICATION, UTILITIES",06_30,06_30 P1 10LA0600308               DO,4/22/10,4/22/10,"TELECOM SVC, EQUIP & TOLLS","5,250.00",2010,,,,06_30 P1 10LA0600308               DO
C001075,HON. BILL CASSIDY,2010Q2,"RENT, COMMUNICATION, UTILITIES",06_30,06_30 P1 10LA0600309               DO,4/15/10,4/15/10,"TELECOM SVC, EQUIP & TOLLS","5,250.00",2010,,,,06_30 P1 10LA0600309               DO
C001075,HON. BILL CASSIDY,2010Q2,"RENT, COMMUNICATION, UTILITIES",06_30,06_30 P1 10LA0600310               DO,3/25/10,3/25/10,"TELECOM SVC, EQUIP & TOLLS","6,250.00",2010,,,,06_30 P1 10LA0600310               DO
C001075,HON. BILL CASSIDY,2010Q2,"RENT, COMMUNICATION, UTILITIES",06_30,06_30 P1 10LA0600311               DO,3/18/10,3/18/10,"TELECOM SVC, EQUIP & TOLLS","6,250.00",2010,,,,06_30 P1 10LA0600311               DO
C001075,HON. BILL CASSIDY,2010Q2,"RENT, COMMUNICATION, UTILITIES",06_30,06_30 P1 10LA0600312               DO,3/9/10,3/9/10,"TELECOM SVC, EQUIP & TOLLS","5,250.00",2010,,,,06_30 P1 10LA0600312               DO
C001075,HON. BILL CASSIDY,2010Q2,"RENT, COMMUNICATION, UTILITIES",06_30,06_30 P1 10LA0600313               DO,1/12/10,1/12/10,"TELECOM SVC, EQUIP & TOLLS","5,250.00",2010,,,,06_30 P1 10LA0600313               DO
C001075,HON. BILL CASSIDY,2010Q2,"RENT, COMMUNICATION, UTILITIES",06_30,06_30 P1 10LA0600314               DO,5/5/10,5/5/10,"TELECOM SVC, EQUIP & TOLLS","5,250.00",2010,,,,06_30 P1 10LA0600314               DO
C001075,HON. BILL CASSIDY,2010Q2,"RENT, COMMUNICATION, UTILITIES",06_30,06_30 P1 10LA0600315               DO,5/25/10,5/25/10,"TELECOM SVC, EQUIP & TOLLS","3,250.00",2010,,,,06_30 P1 10LA0600315               DO
C001075,HON. BILL CASSIDY,2010Q2,SUPPLIES AND MATERIALS,06_30,06_30      S1    DY100600089,6/1/10,6/30/10,OFFICE SUPPLY (TRANSFER),364.66,2010,,,,06_30      S1    DY100600089
C001075,HON. BILL CASSIDY,2010Q2,EQUIPMENT,06_30,06_30      S8    MA000958948,6/1/10,6/30/10,EQUIPMENT MAINTENANCE,83,2010,,,,06_30      S8    MA000958948
C001075,HON. BILL CASSIDY,2010Q2,EQUIPMENT,06_30,06_30      S8    PL000962337,6/1/10,6/30/10,COMP HARDWARE PURCH _ $25000,220.65,2010,,,,06_30      S8    PL000962337
F000454,HON. BILL FOSTER,2010Q2,SUPPLIES AND MATERIALS,06_30,06_30   S1   DY100600419,6/1/10,6/30/10,OFFICE SUPPLY (TRANSFER),309.67,2010,,,,06_30   S1   DY100600419
F000454,HON. BILL FOSTER,2010Q2,EQUIPMENT,06_30,06_30 S8 MA000959593,6/1/10,6/30/10,EQUIPMENT MAINTENANCE,257.43,2010,,,,06_30 S8 MA000959593
F000454,HON. BILL FOSTER,2010Q2,EQUIPMENT,06_30,06_30 S8 PL000962661,6/1/10,6/30/10,COMP HARDWARE PURCH _ $25000,35.24,2010,,,,06_30 S8 PL000962661
P000096,"HON. BILL PASCRELL, JR.",2010Q2,SUPPLIES AND MATERIALS,06_30,06_30 S1 DY100600100,6/1/10,6/30/10,OFFICE SUPPLY (TRANSFER),"1,700.71",2010,,,,06_30 S1 DY100600100
P000096,"HON. BILL PASCRELL, JR.",2010Q2,EQUIPMENT,06_30,06_30       S8 MA000959609,6/1/10,6/30/10,EQUIPMENT MAINTENANCE,270,2010,,,,06_30       S8 MA000959609
P000599,HON. BILL POSEY,2010Q2,TRAVEL,06_30,06_30 P1 10FL1500406              DO,6/22/10,6/22/10,COMMERCIAL TRANSPORTATION,84.7,2010,,,,06_30 P1 10FL1500406              DO
P000599,HON. BILL POSEY,2010Q2,TRAVEL,06_30,06_30 P1 10FL1500407              DO,6/14/10,6/16/10,COMMERCIAL TRANSPORTATION,177.4,2010,,,,06_30 P1 10FL1500407              DO
P000599,HON. BILL POSEY,2010Q2,TRAVEL,06_30,06_30 P1 10FL1500408              DO,6/14/10,6/16/10,COMMERCIAL TRANSPORTATION,177.4,2010,,,,06_30 P1 10FL1500408              DO
P000599,HON. BILL POSEY,2010Q2,TRAVEL,06_30,06_30 P1 10FL1500410              DO,6/14/10,6/16/10,COMMERCIAL TRANSPORTATION,177.4,2010,,,,06_30 P1 10FL1500410              DO
P000599,HON. BILL POSEY,2010Q2,TRAVEL,06_30,06_30 P1 10FL1500414         JOSE MEDINA JR,6/14/10,6/16/10,MEALS,33.53,2010,,,,06_30 P1 10FL1500414         JOSE MEDINA JR
P000599,HON. BILL POSEY,2010Q2,TRAVEL,06_30,06_30 P1 10FL1500415              DO,6/15/10,6/16/10,"TAXI, PARKING, TOLLS",36,2010,,,,06_30 P1 10FL1500415              DO
P000599,HON. BILL POSEY,2010Q2,SUPPLIES AND MATERIALS,06_30,06_30       S1    DY100600118,6/1/10,6/30/10,OFFICE SUPPLY (TRANSFER),814.22,2010,,,,06_30       S1    DY100600118
P000599,HON. BILL POSEY,2010Q2,SUPPLIES AND MATERIALS,06_30,06_30       P1    10FL1500412               ERIN R. HOUG,6/11/10,6/11/10,OFFICE SUPPLIES OUTSIDE,146.98,2010,,,,06_30       P1    10FL1500412               ERIN R. HOUG
P000599,HON. BILL POSEY,2010Q2,SUPPLIES AND MATERIALS,06_30,06_30       P1    10FL1500413                        DO,6/14/10,6/14/10,FOOD & BEVERAGE,68.61,2010,,,,06_30       P1    10FL1500413                        DO
P000599,HON. BILL POSEY,2010Q2,SUPPLIES AND MATERIALS,06_30,06_30       P1    10FL1500411               GEORGE M. CEALA,6/18/10,6/18/10,OFFICE SUPPLIES OUTSIDE,73.73,2010,,,,06_30       P1    10FL1500411               GEORGE M. CEALA
P000599,HON. BILL POSEY,2010Q2,EQUIPMENT,06_30,06_30       S8    MA000957858,6/1/10,6/30/10,EQUIPMENT MAINTENANCE,169.58,2010,,,,06_30       S8    MA000957858
P000599,HON. BILL POSEY,2010Q2,EQUIPMENT,06_30,06_30       S8    PL000962536,6/1/10,6/30/10,EQUIPMENT PURCHASE _ $25000,180.04,2010,,,,06_30       S8    PL000962536
S001154,HON. BILL SHUSTER,2010Q2,SUPPLIES AND MATERIALS,06_30,06_30 S1 DY100600360,6/1/10,6/30/10,OFFICE SUPPLY (TRANSFER),444.9,2010,,,,06_30 S1 DY100600360
S001154,HON. BILL SHUSTER,2010Q2,EQUIPMENT,06_30,06_30       S8     MA000958220,6/1/10,6/30/10,EQUIPMENT MAINTENANCE,524.12,2010,,,,06_30       S8     MA000958220
L000569,HON. BLAINE LUETKEMEYER,2010Q2,"RENT, COMMUNICATION, UTILITIES",06_30,06_30 P1 10MO0900348         BRITTNEY LOCH,5/18/10,5/18/10,POSTAGE/COURIER/BOX RENTAL,11.8,2010,,,,06_30 P1 10MO0900348         BRITTNEY LOCH
L000569,HON. BLAINE LUETKEMEYER,2010Q2,SUPPLIES AND MATERIALS,06_30,06_30     S1   DY100600130,6/1/10,6/30/10,OFFICE SUPPLY (TRANSFER),991.52,2010,,,,06_30     S1   DY100600130
L000569,HON. BLAINE LUETKEMEYER,2010Q2,EQUIPMENT,06_30,06_30     S8   MA000957998,6/1/10,6/30/10,EQUIPMENT MAINTENANCE,257.05,2010,,,,06_30     S8   MA000957998
L000569,HON. BLAINE LUETKEMEYER,2010Q2,EQUIPMENT,06_30,06_30     S8   PL000962220,6/1/10,6/30/10,COMP HARDWARE PURCH _ $25000,44.13,2010,,,,06_30     S8   PL000962220
E000226,HON. BOB ETHERIDGE,2010Q2,SUPPLIES AND MATERIALS,06_30,06_30      S1    DY100600432,6/1/10,6/30/10,OFFICE SUPPLY (TRANSFER),257.12,2010,,,,06_30      S1    DY100600432
E000226,HON. BOB ETHERIDGE,2010Q2,SUPPLIES AND MATERIALS,06_30,06_30      C2    NW201018100              BOISE CASCADE,5/13/10,5/13/10,OFFICE SUPPLIES OUTSIDE,37.14,2010,,,,06_30      C2    NW201018100              BOISE CASCADE
E000226,HON. BOB ETHERIDGE,2010Q2,SUPPLIES AND MATERIALS,06_30,06_30      C2    NW201018100                       DO,5/26/10,5/26/10,FOOD & BEVERAGE,28.68,2010,,,,06_30      C2    NW201018100                       DO
F000116,HON. BOB FILNER,2010Q2,SUPPLIES AND MATERIALS,06_30,06_30 S1 DY100600405,6/1/10,6/30/10,OFFICE SUPPLY (TRANSFER),353.12,2010,,,,06_30 S1 DY100600405
F000116,HON. BOB FILNER,2010Q2,EQUIPMENT,06_30,06_30       S8     MA000959785,6/1/10,6/30/10,EQUIPMENT MAINTENANCE,232.42,2010,,,,06_30       S8     MA000959785
G000289,HON. BOB GOODLATTE,2010Q2,SUPPLIES AND MATERIALS,06_30,06_30      S1    DY100600317,6/1/10,6/30/10,OFFICE SUPPLY (TRANSFER),995.2,2010,,,,06_30      S1    DY100600317
G000289,HON. BOB GOODLATTE,2010Q2,EQUIPMENT,06_30,06_30      S8    MA000958053,6/1/10,6/30/10,EQUIPMENT MAINTENANCE,288.33,2010,,,,06_30      S8    MA000958053
I000023,HON. BOB INGLIS,2010Q2,"RENT, COMMUNICATION, UTILITIES",06_30,06_30 P1 10SC0400309              DO,5/17/10,5/17/10,POSTAGE/COURIER/BOX RENTAL,19.07,2010,,,,06_30 P1 10SC0400309              DO
I000023,HON. BOB INGLIS,2010Q2,"RENT, COMMUNICATION, UTILITIES",06_30,06_30 P1 10SC0400306         VERIZON WIRELESS,4/22/10,5/21/10,"TELECOM SVC, EQUIP & TOLLS",752.7,2010,,,,06_30 P1 10SC0400306         VERIZON WIRELESS
I000023,HON. BOB INGLIS,2010Q2,SUPPLIES AND MATERIALS,06_30,06_30      S1   DY100600521,6/1/10,6/30/10,OFFICE SUPPLY (TRANSFER),99.45,2010,,,,06_30      S1   DY100600521
I000023,HON. BOB INGLIS,2010Q2,SUPPLIES AND MATERIALS,06_30,"06_30      P1   10SC0400311               DIAMOND SPRINGS WATER,INC",5/11/10,5/21/10,BOTTLED WATER,15.73,2010,,,,"06_30      P1   10SC0400311               DIAMOND SPRINGS WATER,INC"
I000023,HON. BOB INGLIS,2010Q2,EQUIPMENT,06_30,06_30      S8   MA000959675,6/1/10,6/30/10,EQUIPMENT MAINTENANCE,248.57,2010,,,,06_30      S8   MA000959675
B001264,HON. BOBBY BRIGHT,2010Q2,SUPPLIES AND MATERIALS,06_30,06_30 S1 DY100600201,6/1/10,6/30/10,OFFICE SUPPLY (TRANSFER),373.74,2010,,,,06_30 S1 DY100600201
B001264,HON. BOBBY BRIGHT,2010Q2,EQUIPMENT,06_30,06_30       S8     MA000959922,6/1/10,6/30/10,EQUIPMENT MAINTENANCE,354.33,2010,,,,06_30       S8     MA000959922
R000515,HON. BOBBY L RUSH,2010Q2,"RENT, COMMUNICATION, UTILITIES",06_30,06_30   P1   10IL0100245                  COMCAST,6/16/10,7/15/10,UTILITIES,128.92,2010,,,,06_30   P1   10IL0100245                  COMCAST
R000515,HON. BOBBY L RUSH,2010Q2,"RENT, COMMUNICATION, UTILITIES",06_30,06_30   P1   10IL0100246                           DO,6/18/10,7/17/10,UTILITIES,123.9,2010,,,,06_30   P1   10IL0100246                           DO
R000515,HON. BOBBY L RUSH,2010Q2,"RENT, COMMUNICATION, UTILITIES",06_30,06_30   P1   10IL0100247                  PEOPLES GAS,5/14/10,6/14/10,UTILITIES,45.85,2010,,,,06_30   P1   10IL0100247                  PEOPLES GAS
R000515,HON. BOBBY L RUSH,2010Q2,SUPPLIES AND MATERIALS,06_30,06_30 S1 DY100600235,6/1/10,6/30/10,OFFICE SUPPLY (TRANSFER),495.11,2010,,,,06_30 S1 DY100600235
R000515,HON. BOBBY L RUSH,2010Q2,EQUIPMENT,06_30,06_30      S8    MA000959179,6/1/10,6/30/10,EQUIPMENT MAINTENANCE,342.95,2010,,,,06_30      S8    MA000959179
R000515,HON. BOBBY L RUSH,2010Q2,EQUIPMENT,06_30,06_30      S8    PL000962548,6/1/10,6/30/10,EQUIPMENT PURCHASE _ $25000,121.28,2010,,,,06_30      S8    PL000962548
R000515,HON. BOBBY L RUSH,2010Q2,EQUIPMENT,06_30,06_30      S8    PL000962549,6/1/10,6/30/10,COMP HARDWARE PURCH _ $25000,"1,033.38",2010,,,,06_30      S8    PL000962549
E000289,HON. BRAD ELLSWORTH,2010Q2,"RENT, COMMUNICATION, UTILITIES",06_30,06_30   P1   10IN0800386                AT&T MOBILITY,5/7/10,6/6/10,"TELECOM SVC, EQUIP & TOLLS",737.58,2010,,,,06_30   P1   10IN0800386                AT&T MOBILITY
E000289,HON. BRAD ELLSWORTH,2010Q2,"RENT, COMMUNICATION, UTILITIES",06_30,06_30   P1   10IN0800385                INSIGHT COMMUNICATIONS,6/16/10,7/15/10,UTILITIES,94.95,2010,,,,06_30   P1   10IN0800385                INSIGHT COMMUNICATIONS
E000289,HON. BRAD ELLSWORTH,2010Q2,SUPPLIES AND MATERIALS,06_30,06_30       S1    DY100600472,6/1/10,6/30/10,OFFICE SUPPLY (TRANSFER),706.05,2010,,,,06_30       S1    DY100600472
E000289,HON. BRAD ELLSWORTH,2010Q2,SUPPLIES AND MATERIALS,06_30,06_30       C2    NW201018100                  BOISE CASCADE,5/21/10,5/21/10,FOOD & BEVERAGE,25.48,2010,,,,06_30       C2    NW201018100                  BOISE CASCADE
E000289,HON. BRAD ELLSWORTH,2010Q2,SUPPLIES AND MATERIALS,06_30,06_30       C2    NW201018100                           DO,5/18/10,5/18/10,OFFICE SUPPLIES OUTSIDE,137.62,2010,,,,06_30       C2    NW201018100                           DO
E000289,HON. BRAD ELLSWORTH,2010Q2,EQUIPMENT,06_30,06_30       S8 MA000959798,6/1/10,6/30/10,EQUIPMENT MAINTENANCE,486.49,2010,,,,06_30       S8 MA000959798
M001154,HON. BRAD MILLER,2010Q2,SUPPLIES AND MATERIALS,06_30,06_30     S1   DY100600132,6/1/10,6/30/10,OFFICE SUPPLY (TRANSFER),343.24,2010,,,,06_30     S1   DY100600132
M001154,HON. BRAD MILLER,2010Q2,EQUIPMENT,06_30,06_30     S8 MA000958908,6/1/10,6/30/10,EQUIPMENT MAINTENANCE,337.58,2010,,,,06_30     S8 MA000958908
S000344,HON. BRAD SHERMAN,2010Q2,SUPPLIES AND MATERIALS,06_30,06_30   S1   DY100600104,6/1/10,6/30/10,OFFICE SUPPLY (TRANSFER),"1,138.48",2010,,,,06_30   S1   DY100600104
S000344,HON. BRAD SHERMAN,2010Q2,EQUIPMENT,06_30,06_30 S8 MA000958239,6/1/10,6/30/10,EQUIPMENT MAINTENANCE,153.33,2010,,,,06_30 S8 MA000958239
S000344,HON. BRAD SHERMAN,2010Q2,EQUIPMENT,06_30,06_30 S8 PL000962726,6/1/10,6/30/10,COMP HARDWARE PURCH _ $25000,133.96,2010,,,,06_30 S8 PL000962726
G000558,HON. BRETT GUTHRIE,2010Q2,SUPPLIES AND MATERIALS,06_30,06_30   S1   DY100600177,6/1/10,6/30/10,OFFICE SUPPLY (TRANSFER),502.66,2010,,,,06_30   S1   DY100600177
G000558,HON. BRETT GUTHRIE,2010Q2,EQUIPMENT,06_30,06_30 S8 MA000957827,6/1/10,6/30/10,EQUIPMENT MAINTENANCE,206,2010,,,,06_30 S8 MA000957827
G000558,HON. BRETT GUTHRIE,2010Q2,EQUIPMENT,06_30,06_30 S8 PL000962793,6/1/10,6/30/10,COMP HARDWARE PURCH _ $25000,642,2010,,,,06_30 S8 PL000962793
B001229,HON. BRIAN BAIRD,2010Q2,SUPPLIES AND MATERIALS,06_30,06_30 S1 DY100600346,6/1/10,6/30/10,OFFICE SUPPLY (TRANSFER),562.86,2010,,,,06_30 S1 DY100600346
B001229,HON. BRIAN BAIRD,2010Q2,EQUIPMENT,06_30,06_30       S8     MA000958511,6/1/10,6/30/10,EQUIPMENT MAINTENANCE,426.67,2010,,,,06_30       S8     MA000958511
B000461,HON. BRIAN BILBRAY,2010Q2,TRAVEL,06_30,06_30   P1   10CA5000384                HON. BRIAN P. BILBRAY,6/18/10,6/22/10,COMMERCIAL TRANSPORTATION,973.4,2010,,,,06_30   P1   10CA5000384                HON. BRIAN P. BILBRAY
B000461,HON. BRIAN BILBRAY,2010Q2,"RENT, COMMUNICATION, UTILITIES",06_30,06_30   P1   10CA5000382                COX COMMUNICATIONS,6/23/10,7/22/10,"TELECOM SVC, EQUIP & TOLLS",400.86,2010,,,,06_30   P1   10CA5000382                COX COMMUNICATIONS
B000461,HON. BRIAN BILBRAY,2010Q2,"RENT, COMMUNICATION, UTILITIES",06_30,06_30   P1   10CA5000377                ESCONDIDO CHAMBER OF,10/17/10,10/17/10,TEMPORARY SPACE RENTAL,150,2010,,,,06_30   P1   10CA5000377                ESCONDIDO CHAMBER OF
B000461,HON. BRIAN BILBRAY,2010Q2,"RENT, COMMUNICATION, UTILITIES",06_30,06_30   P1   10CA5000381                WORLDCELL,6/1/10,6/30/10,"TELECOM SVC, EQUIP & TOLLS",174.52,2010,,,,06_30   P1   10CA5000381                WORLDCELL
B000461,HON. BRIAN BILBRAY,2010Q2,SUPPLIES AND MATERIALS,06_30,06_30      S1    DY100600213,6/1/10,6/30/10,OFFICE SUPPLY (TRANSFER),639.79,2010,,,,06_30      S1    DY100600213
B000461,HON. BRIAN BILBRAY,2010Q2,SUPPLIES AND MATERIALS,06_30,"06_30      P1    10CA5000383                DOW JONES & COMPANY, INC",7/8/10,7/7/11,PUBLICATION REF MATERIAL,395.28,2010,,,,"06_30      P1    10CA5000383                DOW JONES & COMPANY, INC"
B000461,HON. BRIAN BILBRAY,2010Q2,EQUIPMENT,06_30,06_30      S8    MA000959561,6/1/10,6/30/10,EQUIPMENT MAINTENANCE,223.33,2010,,,,06_30      S8    MA000959561
H001038,HON. BRIAN HIGGINS,2010Q2,SUPPLIES AND MATERIALS,06_30,06_30      S1    DY100600493,6/1/10,6/30/10,OFFICE SUPPLY (TRANSFER),926.97,2010,,,,06_30      S1    DY100600493
H001038,HON. BRIAN HIGGINS,2010Q2,EQUIPMENT,06_30,06_30      S8    MA000959555,6/1/10,6/30/10,EQUIPMENT MAINTENANCE,139,2010,,,,06_30      S8    MA000959555
B001259,HON. BRUCE L. BRALEY,2010Q2,SUPPLIES AND MATERIALS,06_30,06_30   S1   DY100600232,6/1/10,6/30/10,OFFICE SUPPLY (TRANSFER),358.42,2010,,,,06_30   S1   DY100600232
B001259,HON. BRUCE L. BRALEY,2010Q2,SUPPLIES AND MATERIALS,06_30,06_30   C2   NW201018100      BOISE CASCADE,5/18/10,5/18/10,OFFICE SUPPLIES OUTSIDE,274.23,2010,,,,06_30   C2   NW201018100      BOISE CASCADE
B001259,HON. BRUCE L. BRALEY,2010Q2,SUPPLIES AND MATERIALS,06_30,06_30   C2   NW201018100               DO,5/18/10,5/18/10,OFFICE SUPPLIES OUTSIDE,201.96,2010,,,,06_30   C2   NW201018100               DO
B001259,HON. BRUCE L. BRALEY,2010Q2,EQUIPMENT,06_30,06_30 S8 MA000959648,6/1/10,6/30/10,EQUIPMENT MAINTENANCE,694.8,2010,,,,06_30 S8 MA000959648
Y000031,HON. C W BILL YOUNG,2010Q2,SUPPLIES AND MATERIALS,06_30,06_30   S1    DY100600463,6/1/10,6/30/10,OFFICE SUPPLY (TRANSFER),"2,915.49",2010,,,,06_30   S1    DY100600463
Y000031,HON. C W BILL YOUNG,2010Q2,EQUIPMENT,06_30,06_30   S8    MA000959618,6/1/10,6/30/10,EQUIPMENT MAINTENANCE,316,2010,,,,06_30   S8    MA000959618
Y000031,HON. C W BILL YOUNG,2010Q2,EQUIPMENT,06_30,06_30   S8    PL000962852,6/1/10,6/1/10,COMP HARDWARE PURCH _ $25000,55.35,2010,,,,06_30   S8    PL000962852
R000576,HON. C. A. DUTCH RUPPERSBERGER,2010Q2,SUPPLIES AND MATERIALS,06_30,06_30       S1    DY100600478,6/1/10,6/30/10,OFFICE SUPPLY (TRANSFER),904.24,2010,,,,06_30       S1    DY100600478
R000576,HON. C. A. DUTCH RUPPERSBERGER,2010Q2,EQUIPMENT,06_30,06_30       S8    MA000959007,6/1/10,6/30/10,EQUIPMENT MAINTENANCE,186,2010,,,,06_30       S8    MA000959007
R000576,HON. C. A. DUTCH RUPPERSBERGER,2010Q2,EQUIPMENT,06_30,06_30       S8    PL000962188,6/1/10,6/1/10,FURNITURE _ $25000,123.43,2010,,,,06_30       S8    PL000962188
M001150,HON. CANDICE S. MILLER,2010Q2,TRAVEL,06_30,06_30 P1 10MI1000413          ERIC VENTIMIGLIA,4/1/10,5/22/10,PRIVATE OWNED VEHICLE MILEAGE,504.6,2010,,,,06_30 P1 10MI1000413          ERIC VENTIMIGLIA
M001150,HON. CANDICE S. MILLER,2010Q2,TRAVEL,06_30,06_30 P1 10MI1000412          JONATHAN CIARKOWSKI,6/16/10,6/16/10,PRIVATE OWNED VEHICLE MILEAGE,161,2010,,,,06_30 P1 10MI1000412          JONATHAN CIARKOWSKI
M001150,HON. CANDICE S. MILLER,2010Q2,"RENT, COMMUNICATION, UTILITIES",06_30,06_30 P2 HCV1001996           AT&T MOBILITY,5/27/10,5/27/10,"TELECOM SVC, EQUIP & TOLLS",25,2010,,,,06_30 P2 HCV1001996           AT&T MOBILITY
M001150,HON. CANDICE S. MILLER,2010Q2,PRINTING AND REPRODUCTION,06_30,06_30       P1 10MI1000414      ACCURATE WORD LLC,5/28/10,5/28/10,PRINTING AND REPRODUCTION,39.9,2010,,,,06_30       P1 10MI1000414      ACCURATE WORD LLC
M001150,HON. CANDICE S. MILLER,2010Q2,SUPPLIES AND MATERIALS,06_30,06_30 S1 DY100600284,6/1/10,6/30/10,OFFICE SUPPLY (TRANSFER),894.42,2010,,,,06_30 S1 DY100600284
M001150,HON. CANDICE S. MILLER,2010Q2,EQUIPMENT,06_30,06_30       S8 MA000958509,6/1/10,6/30/10,EQUIPMENT MAINTENANCE,224.83,2010,,,,06_30       S8 MA000958509
S001170,HON. CAROL SHEA-PORTER,2010Q2,SUPPLIES AND MATERIALS,06_30,06_30   S1   DY100600097,6/1/10,6/30/10,OFFICE SUPPLY (TRANSFER),448.61,2010,,,,06_30   S1   DY100600097
S001170,HON. CAROL SHEA-PORTER,2010Q2,SUPPLIES AND MATERIALS,06_30,06_30   C2   NW201018101   BOISE CASCADE,5/14/10,5/14/10,OFFICE SUPPLIES OUTSIDE,48.88,2010,,,,06_30   C2   NW201018101   BOISE CASCADE
S001170,HON. CAROL SHEA-PORTER,2010Q2,SUPPLIES AND MATERIALS,06_30,06_30   C2   NW201018101            DO,5/20/10,5/20/10,OFFICE SUPPLIES OUTSIDE,76.24,2010,,,,06_30   C2   NW201018101            DO
S001170,HON. CAROL SHEA-PORTER,2010Q2,EQUIPMENT,06_30,06_30 S8 MA000959687,6/1/10,6/30/10,EQUIPMENT MAINTENANCE,192,2010,,,,06_30 S8 MA000959687
S001170,HON. CAROL SHEA-PORTER,2010Q2,EQUIPMENT,06_30,06_30 S8 PL000962537,6/1/10,6/30/10,COMP HARDWARE PURCH _ $25000,120.27,2010,,,,06_30 S8 PL000962537
S001170,HON. CAROL SHEA-PORTER,2010Q2,EQUIPMENT,06_30,06_30 S8 PL000962734,6/1/10,6/30/10,EQUIPMENT PURCHASE _ $25000,108.81,2010,,,,06_30 S8 PL000962734
M000087,HON. CAROLYN B MALONEY,2010Q2,TRAVEL,06_30,06_30   P1   10NY1400289                 JOSEPH SOLDEVERE,5/24/10,5/25/10,LODGING,323.46,2010,,,,06_30   P1   10NY1400289                 JOSEPH SOLDEVERE
M000087,HON. CAROLYN B MALONEY,2010Q2,TRAVEL,06_30,06_30   P1   10NY1400290                      DO,5/15/10,6/9/10,"TAXI, PARKING, TOLLS",354.22,2010,,,,06_30   P1   10NY1400290                      DO
M000087,HON. CAROLYN B MALONEY,2010Q2,TRAVEL,06_30,06_30   P1   10NY1400295                      DO,5/24/10,5/24/10,COMMERCIAL TRANSPORTATION,74,2010,,,,06_30   P1   10NY1400295                      DO
M000087,HON. CAROLYN B MALONEY,2010Q2,TRAVEL,06_30,06_30   P1   10NY1400296                      DO,5/24/10,5/25/10,MEALS,46.35,2010,,,,06_30   P1   10NY1400296                      DO
M000087,HON. CAROLYN B MALONEY,2010Q2,PRINTING AND REPRODUCTION,06_30,06_30   P1   10NY1400294                  MANHATTAN NEWSPAPER GROUP,4/1/10,4/1/10,PRINTING AND REPRODUCTION,345,2010,,,,06_30   P1   10NY1400294                  MANHATTAN NEWSPAPER GROUP
M000087,HON. CAROLYN B MALONEY,2010Q2,PRINTING AND REPRODUCTION,06_30,06_30   P1   10NY1400302                  QUEEN TRIBUNE,3/4/10,3/4/10,PRINTING AND REPRODUCTION,185,2010,,,,06_30   P1   10NY1400302                  QUEEN TRIBUNE
M000087,HON. CAROLYN B MALONEY,2010Q2,SUPPLIES AND MATERIALS,06_30,06_30 S1 DY100600490,6/1/10,6/30/10,OFFICE SUPPLY (TRANSFER),"1,292.86",2010,,,,06_30 S1 DY100600490
M000087,HON. CAROLYN B MALONEY,2010Q2,SUPPLIES AND MATERIALS,06_30,06_30 P1 10NY1400291        JOSEPH SOLDEVERE,6/14/10,6/14/10,OFFICE SUPPLIES OUTSIDE,31.3,2010,,,,06_30 P1 10NY1400291        JOSEPH SOLDEVERE
M000087,HON. CAROLYN B MALONEY,2010Q2,EQUIPMENT,06_30,06_30       S8     MA000958642,6/1/10,6/30/10,EQUIPMENT MAINTENANCE,582.08,2010,,,,06_30       S8     MA000958642
M000087,HON. CAROLYN B MALONEY,2010Q2,EQUIPMENT,06_30,06_30       S8     PL000962578,6/1/10,6/30/10,EQUIPMENT PURCHASE _ $25000,127.04,2010,,,,06_30       S8     PL000962578
K000180,HON. CAROLYN C. KILPATRICK,2010Q2,SUPPLIES AND MATERIALS,06_30,06_30   S1   DY100600286,6/1/10,6/30/10,OFFICE SUPPLY (TRANSFER),"3,345.24",2010,,,,06_30   S1   DY100600286
K000180,HON. CAROLYN C. KILPATRICK,2010Q2,EQUIPMENT,06_30,06_30 S8 MA000959733,6/1/10,6/30/10,EQUIPMENT MAINTENANCE,338,2010,,,,06_30 S8 MA000959733
M000309,HON. CAROLYN MCCARTHY,2010Q2,SUPPLIES AND MATERIALS,06_30,06_30 S1 DY100600377,6/1/10,6/30/10,OFFICE SUPPLY (TRANSFER),830.71,2010,,,,06_30 S1 DY100600377
M000309,HON. CAROLYN MCCARTHY,2010Q2,EQUIPMENT,06_30,06_30       S8 MA000958979,6/1/10,6/30/10,EQUIPMENT MAINTENANCE,231.34,2010,,,,06_30       S8 MA000958979
M001159,HON. CATHY MCMORRIS RODGERS,2010Q2,SUPPLIES AND MATERIALS,06_30,06_30      S1    DY100600509,6/1/10,6/30/10,OFFICE SUPPLY (TRANSFER),"1,356.39",2010,,,,06_30      S1    DY100600509
M001159,HON. CATHY MCMORRIS RODGERS,2010Q2,SUPPLIES AND MATERIALS,06_30,06_30      C2    NW201018104                BOISE CASCADE,5/5/10,5/5/10,OFFICE SUPPLIES OUTSIDE,20.17,2010,,,,06_30      C2    NW201018104                BOISE CASCADE
M001159,HON. CATHY MCMORRIS RODGERS,2010Q2,SUPPLIES AND MATERIALS,06_30,06_30      C2    NW201018104                         DO,5/25/10,5/25/10,OFFICE SUPPLIES OUTSIDE,91.43,2010,,,,06_30      C2    NW201018104                         DO
M001159,HON. CATHY MCMORRIS RODGERS,2010Q2,SUPPLIES AND MATERIALS,06_30,06_30      P2    OSM43978                   CDW GOVERNMENT INC,6/8/10,6/8/10,OFFICE SUPPLIES OUTSIDE,165,2010,,,,06_30      P2    OSM43978                   CDW GOVERNMENT INC
M001159,HON. CATHY MCMORRIS RODGERS,2010Q2,SUPPLIES AND MATERIALS,06_30,06_30      P2    OSM43978                            DO,6/8/10,6/8/10,OFFICE SUPPLIES OUTSIDE,63.01,2010,,,,06_30      P2    OSM43978                            DO
M001159,HON. CATHY MCMORRIS RODGERS,2010Q2,EQUIPMENT,06_30,06_30      S8 MA000959781,6/1/10,6/30/10,EQUIPMENT MAINTENANCE,163.34,2010,,,,06_30      S8 MA000959781
M001159,HON. CATHY MCMORRIS RODGERS,2010Q2,SUPPLIES AND MATERIALS,06_30,06_30      P2    OSM41669         CDW GOVERNMENT INC,9/29/09,9/29/09,OFFICE SUPPLIES OUTSIDE,435,2009,,,,06_30      P2    OSM41669         CDW GOVERNMENT INC
M001159,HON. CATHY MCMORRIS RODGERS,2010Q2,SUPPLIES AND MATERIALS,06_30,06_30      P2    OSM41669              DO,9/29/09,9/29/09,OFFICE SUPPLIES OUTSIDE,12.99,2009,,,,06_30      P2    OSM41669              DO
F000043,HON. CHAKA FATTAH,2010Q2,SUPPLIES AND MATERIALS,06_30,06_30   S1   DY100600199,6/1/10,6/30/10,OFFICE SUPPLY (TRANSFER),260.98,2010,,,,06_30   S1   DY100600199
F000043,HON. CHAKA FATTAH,2010Q2,SUPPLIES AND MATERIALS,06_30,06_30   P1   10PA0200294   THE WASHINGTON TIMES,6/25/10,6/24/11,PUBLICATION REF MATERIAL,195,2010,,,,06_30   P1   10PA0200294   THE WASHINGTON TIMES
F000043,HON. CHAKA FATTAH,2010Q2,EQUIPMENT,06_30,06_30 S8 MA000957977,6/1/10,6/30/10,EQUIPMENT MAINTENANCE,127.42,2010,,,,06_30 S8 MA000957977
F000043,HON. CHAKA FATTAH,2010Q2,EQUIPMENT,06_30,06_30 S8 PL000962649,6/1/10,6/30/10,COMP HARDWARE PURCH _ $25000,448.03,2010,,,,06_30 S8 PL000962649
F000043,HON. CHAKA FATTAH,2010Q2,"RENT, COMMUNICATION, UTILITIES",06_30,06_30       P1 10PA0200292     VERIZON,2/22/09,3/21/09,"TELECOM SVC, EQUIP & TOLLS",203.19,2009,,,,06_30       P1 10PA0200292     VERIZON
F000043,HON. CHAKA FATTAH,2010Q2,"RENT, COMMUNICATION, UTILITIES",06_30,06_30       P1 10PA0200293     VERIZON WIRELESS,7/17/09,8/16/09,"TELECOM SVC, EQUIP & TOLLS",44.45,2009,,,,06_30       P1 10PA0200293     VERIZON WIRELESS
G000544,HON. CHARLES A. GONZALEZ,2010Q2,"RENT, COMMUNICATION, UTILITIES",06_30,06_30 P2 HCV1002076          AT&T MOBILITY,6/9/10,6/9/10,"TELECOM SVC, EQUIP & TOLLS",100,2010,,,,06_30 P2 HCV1002076          AT&T MOBILITY
G000544,HON. CHARLES A. GONZALEZ,2010Q2,"RENT, COMMUNICATION, UTILITIES",06_30,06_30 P2 HCV1002076                   DO,6/9/10,6/9/10,"TELECOM SVC, EQUIP & TOLLS",14.95,2010,,,,06_30 P2 HCV1002076                   DO
G000544,HON. CHARLES A. GONZALEZ,2010Q2,SUPPLIES AND MATERIALS,06_30,06_30 S1 DY100600328,6/1/10,6/30/10,OFFICE SUPPLY (TRANSFER),388.8,2010,,,,06_30 S1 DY100600328
G000544,HON. CHARLES A. GONZALEZ,2010Q2,EQUIPMENT,06_30,06_30       S8 MA000959544,6/1/10,6/30/10,EQUIPMENT MAINTENANCE,213.9,2010,,,,06_30       S8 MA000959544
W000801,HON. CHARLES A. WILSON,2010Q2,TRAVEL,06_30,06_30   P1   10OH0600408                JOAN GREGORY,6/14/10,6/16/10,PRIVATE OWNED VEHICLE MILEAGE,203.7,2010,,,,06_30   P1   10OH0600408                JOAN GREGORY
W000801,HON. CHARLES A. WILSON,2010Q2,"RENT, COMMUNICATION, UTILITIES",06_30,06_30   P1    10OH0600404                AT&T,5/10/10,6/9/10,"TELECOM SVC, EQUIP & TOLLS",186.61,2010,,,,06_30   P1    10OH0600404                AT&T
W000801,HON. CHARLES A. WILSON,2010Q2,"RENT, COMMUNICATION, UTILITIES",06_30,06_30   P1    10OH0600407                         DO,5/7/10,6/6/10,"TELECOM SVC, EQUIP & TOLLS",200.74,2010,,,,06_30   P1    10OH0600407                         DO
W000801,HON. CHARLES A. WILSON,2010Q2,"RENT, COMMUNICATION, UTILITIES",06_30,06_30   P1    10OH0600405                DOMINION EAST OHIO,5/13/10,6/15/10,UTILITIES,17.35,2010,,,,06_30   P1    10OH0600405                DOMINION EAST OHIO
W000801,HON. CHARLES A. WILSON,2010Q2,OTHER SERVICES,06_30,06_30 P1 10OH0600406          SOUTHEASTERN SECURITY,6/1/10,6/30/10,SECURITY SERVICE,25,2010,,,,06_30 P1 10OH0600406          SOUTHEASTERN SECURITY
W000801,HON. CHARLES A. WILSON,2010Q2,SUPPLIES AND MATERIALS,06_30,06_30       S1    DY100600357,6/1/10,6/30/10,OFFICE SUPPLY (TRANSFER),114.72,2010,,,,06_30       S1    DY100600357
W000801,HON. CHARLES A. WILSON,2010Q2,SUPPLIES AND MATERIALS,06_30,06_30       C2    NW201018101               BOISE CASCADE,5/24/10,5/24/10,FOOD & BEVERAGE,28.8,2010,,,,06_30       C2    NW201018101               BOISE CASCADE
W000801,HON. CHARLES A. WILSON,2010Q2,SUPPLIES AND MATERIALS,06_30,06_30       C2    NW201018101                        DO,5/24/10,5/24/10,OFFICE SUPPLIES OUTSIDE,270.41,2010,,,,06_30       C2    NW201018101                        DO
W000801,HON. CHARLES A. WILSON,2010Q2,SUPPLIES AND MATERIALS,06_30,06_30       C2    NW201018101                        DO,5/25/10,5/25/10,OFFICE SUPPLIES OUTSIDE,98.22,2010,,,,06_30       C2    NW201018101                        DO
W000801,HON. CHARLES A. WILSON,2010Q2,SUPPLIES AND MATERIALS,06_30,06_30       C2    NW201018101                        DO,5/24/10,5/24/10,OFFICE SUPPLIES OUTSIDE,6.9,2010,,,,06_30       C2    NW201018101                        DO
W000801,HON. CHARLES A. WILSON,2010Q2,SUPPLIES AND MATERIALS,06_30,06_30       P1    10OH0600409               CLEARLY THE BEST,3/17/10,3/17/10,BOTTLED WATER,12.5,2010,,,,06_30       P1    10OH0600409               CLEARLY THE BEST
W000801,HON. CHARLES A. WILSON,2010Q2,SUPPLIES AND MATERIALS,06_30,06_30       P1    10OH0600411                        DO,6/9/10,6/9/10,BOTTLED WATER,19.5,2010,,,,06_30       P1    10OH0600411                        DO
W000801,HON. CHARLES A. WILSON,2010Q2,SUPPLIES AND MATERIALS,06_30,06_30       P1    10OH0600412               GALLIPOLIS DAILY TRIBUNE,7/12/10,7/12/11,PUBLICATION REF MATERIAL,227.21,2010,,,,06_30       P1    10OH0600412               GALLIPOLIS DAILY TRIBUNE
W000801,HON. CHARLES A. WILSON,2010Q2,EQUIPMENT,06_30,06_30       S8 MA000959669,6/1/10,6/30/10,EQUIPMENT MAINTENANCE,258.42,2010,,,,06_30       S8 MA000959669
W000801,HON. CHARLES A. WILSON,2010Q2,"RENT, COMMUNICATION, UTILITIES",06_30,06_30 P1 10OH0600371          VERIZON,11/13/09,12/12/09,"TELECOM SVC, EQUIP & TOLLS",94,2009,,,,06_30 P1 10OH0600371          VERIZON
R000053,HON. CHARLES B RANGEL,2010Q2,"RENT, COMMUNICATION, UTILITIES",06_30,06_30 P1 10NY1500214         TIME WARNER CABLE OF NY,6/17/10,7/16/10,UTILITIES,174.03,2010,,,,06_30 P1 10NY1500214         TIME WARNER CABLE OF NY
R000053,HON. CHARLES B RANGEL,2010Q2,SUPPLIES AND MATERIALS,06_30,06_30   S1   DY100600040,6/1/10,6/30/10,OFFICE SUPPLY (TRANSFER),292.95,2010,,,,06_30   S1   DY100600040
R000053,HON. CHARLES B RANGEL,2010Q2,SUPPLIES AND MATERIALS,06_30,06_30   P1   10NY1500213   STAPLES CREDIT PLAN,5/19/10,6/1/10,OFFICE SUPPLIES OUTSIDE,401.37,2010,,,,06_30   P1   10NY1500213   STAPLES CREDIT PLAN
R000053,HON. CHARLES B RANGEL,2010Q2,EQUIPMENT,06_30,06_30   S8   MA000959774,6/1/10,6/30/10,EQUIPMENT MAINTENANCE,236.49,2010,,,,06_30   S8   MA000959774
D000611,HON. CHARLES K. DJOU,2010Q2,"RENT, COMMUNICATION, UTILITIES",06_30,06_30       P2    HCV1002051      VERIZON WIRELESS,6/3/10,6/3/10,"TELECOM SVC, EQUIP & TOLLS",59.99,2010,,,,06_30       P2    HCV1002051      VERIZON WIRELESS
D000611,HON. CHARLES K. DJOU,2010Q2,SUPPLIES AND MATERIALS,06_30,06_30       S1 DY100600170,6/1/10,6/30/10,OFFICE SUPPLY (TRANSFER),"1,890.14",2010,,,,06_30       S1 DY100600170
D000611,HON. CHARLES K. DJOU,2010Q2,EQUIPMENT,06_30,06_30       S8 MA000958805,6/1/10,6/30/10,EQUIPMENT MAINTENANCE,327.1,2010,,,,06_30       S8 MA000958805
B001255,"HON. CHARLES W. BOUSTANY, JR",2010Q2,SUPPLIES AND MATERIALS,06_30,06_30      S1    DY100600025,6/1/10,6/30/10,OFFICE SUPPLY (TRANSFER),155.73,2010,,,,06_30      S1    DY100600025
B001255,"HON. CHARLES W. BOUSTANY, JR",2010Q2,EQUIPMENT,06_30,06_30      S8 MA000958225,6/1/10,6/30/10,EQUIPMENT MAINTENANCE,155.08,2010,,,,06_30      S8 MA000958225
D000604,HON. CHARLES W. DENT,2010Q2,TRAVEL,06_30,06_30   P1   10PA1500282               CAROL R. HALPER,6/13/10,6/15/10,MEALS,99.24,2010,,,,06_30   P1   10PA1500282               CAROL R. HALPER
D000604,HON. CHARLES W. DENT,2010Q2,TRAVEL,06_30,06_30   P1   10PA1500283                    DO,6/13/10,6/16/10,COMMERCIAL TRANSPORTATION,166,2010,,,,06_30   P1   10PA1500283                    DO
D000604,HON. CHARLES W. DENT,2010Q2,TRAVEL,06_30,06_30   P1   10PA1500284                    DO,6/14/10,6/16/10,LODGING,582.23,2010,,,,06_30   P1   10PA1500284                    DO
D000604,HON. CHARLES W. DENT,2010Q2,TRAVEL,06_30,06_30   P1   10PA1500285                    DO,6/13/10,6/16/10,"TAXI, PARKING, TOLLS",20.68,2010,,,,06_30   P1   10PA1500285                    DO
D000604,HON. CHARLES W. DENT,2010Q2,TRAVEL,06_30,06_30   P1   10PA1500280               HON. CHARLES W. DENT,6/16/10,6/16/10,"TAXI, PARKING, TOLLS",7.5,2010,,,,06_30   P1   10PA1500280               HON. CHARLES W. DENT
D000604,HON. CHARLES W. DENT,2010Q2,"RENT, COMMUNICATION, UTILITIES",06_30,06_30 P1 10PA1500281         VERIZON PENNSYLVANIA,5/12/10,6/11/10,"TELECOM SVC, EQUIP & TOLLS",462.77,2010,,,,06_30 P1 10PA1500281         VERIZON PENNSYLVANIA
D000604,HON. CHARLES W. DENT,2010Q2,SUPPLIES AND MATERIALS,06_30,06_30 S1 DY100600200,6/1/10,6/30/10,OFFICE SUPPLY (TRANSFER),"1,149.94",2010,,,,06_30 S1 DY100600200
D000604,HON. CHARLES W. DENT,2010Q2,SUPPLIES AND MATERIALS,06_30,06_30 C2 NW201018101         BOISE CASCADE,5/26/10,5/26/10,OFFICE SUPPLIES OUTSIDE,382.06,2010,,,,06_30 C2 NW201018101         BOISE CASCADE
D000604,HON. CHARLES W. DENT,2010Q2,EQUIPMENT,06_30,06_30       S8     MA000958049,6/1/10,6/30/10,EQUIPMENT MAINTENANCE,184.5,2010,,,,06_30       S8     MA000958049
M001161,HON. CHARLIE MELANCON,2010Q2,SUPPLIES AND MATERIALS,06_30,06_30      S1   DY100600024,6/1/10,6/30/10,OFFICE SUPPLY (TRANSFER),105.18,2010,,,,06_30      S1   DY100600024
M001161,HON. CHARLIE MELANCON,2010Q2,EQUIPMENT,06_30,06_30      S8 MA000957930,6/1/10,6/30/10,EQUIPMENT MAINTENANCE,104,2010,,,,06_30      S8 MA000957930
P000597,HON. CHELLIE PINGREE,2010Q2,SUPPLIES AND MATERIALS,06_30,06_30   S1   DY100600127,6/1/10,6/30/10,OFFICE SUPPLY (TRANSFER),292.71,2010,,,,06_30   S1   DY100600127
P000597,HON. CHELLIE PINGREE,2010Q2,EQUIPMENT,06_30,06_30 S8 MA000957878,6/1/10,6/30/10,EQUIPMENT MAINTENANCE,217.58,2010,,,,06_30 S8 MA000957878
E000063,HON. CHET EDWARDS,2010Q2,SUPPLIES AND MATERIALS,06_30,06_30      S1    DY100600392,6/1/10,6/30/10,OFFICE SUPPLY (TRANSFER),"1,094.63",2010,,,,06_30      S1    DY100600392
E000063,HON. CHET EDWARDS,2010Q2,SUPPLIES AND MATERIALS,06_30,06_30      C2    NW201018104                BOISE CASCADE,5/20/10,5/20/10,OFFICE SUPPLIES OUTSIDE,491.36,2010,,,,06_30      C2    NW201018104                BOISE CASCADE
E000063,HON. CHET EDWARDS,2010Q2,SUPPLIES AND MATERIALS,06_30,06_30      C2    NW201018104                         DO,5/20/10,5/20/10,OFFICE SUPPLIES OUTSIDE,5.99,2010,,,,06_30      C2    NW201018104                         DO
E000063,HON. CHET EDWARDS,2010Q2,EQUIPMENT,06_30,06_30      S8 MA000959694,6/1/10,6/30/10,EQUIPMENT MAINTENANCE,401.75,2010,,,,06_30      S8 MA000959694
V000128,HON. CHRIS VAN HOLLEN,2010Q2,SUPPLIES AND MATERIALS,06_30,06_30   S1   DY100600281,6/1/10,6/30/10,OFFICE SUPPLY (TRANSFER),"1,227.83",2010,,,,06_30   S1   DY100600281
V000128,HON. CHRIS VAN HOLLEN,2010Q2,EQUIPMENT,06_30,06_30   S8 MA000958419,6/1/10,6/30/10,EQUIPMENT MAINTENANCE,211,2010,,,,06_30   S8 MA000958419
S000522,HON. CHRISTOPHER H SMITH,2010Q2,SUPPLIES AND MATERIALS,06_30,06_30      S1    DY100600486,6/1/10,6/30/10,OFFICE SUPPLY (TRANSFER),"2,122.09",2010,,,,06_30      S1    DY100600486
S000522,HON. CHRISTOPHER H SMITH,2010Q2,EQUIPMENT,06_30,06_30      S8 MA000958624,6/1/10,6/30/10,EQUIPMENT MAINTENANCE,344,2010,,,,06_30      S8 MA000958624
L000568,HON. CHRISTOPHER J. LEE,2010Q2,TRAVEL,06_30,06_30 P1 10NY2600295          HON. CHRISTOPHER J. LEE,5/1/10,5/24/10,PRIVATE OWNED VEHICLE MILEAGE,267.89,2010,,,,06_30 P1 10NY2600295          HON. CHRISTOPHER J. LEE
L000568,HON. CHRISTOPHER J. LEE,2010Q2,"RENT, COMMUNICATION, UTILITIES",06_30,"06_30   P1   10NY2600296                CITIZEN DIALOG, LLC",6/10/10,6/10/10,"TELECOM SVC, EQUIP & TOLLS","5,850.00",2010,,,,"06_30   P1   10NY2600296                CITIZEN DIALOG, LLC"
L000568,HON. CHRISTOPHER J. LEE,2010Q2,"RENT, COMMUNICATION, UTILITIES",06_30,06_30   P1   10NY2600297                         DO,6/16/10,6/16/10,"TELECOM SVC, EQUIP & TOLLS","6,250.00",2010,,,,06_30   P1   10NY2600297                         DO
L000568,HON. CHRISTOPHER J. LEE,2010Q2,SUPPLIES AND MATERIALS,06_30,06_30       S1    DY100600193,6/1/10,6/30/10,OFFICE SUPPLY (TRANSFER),488.31,2010,,,,06_30       S1    DY100600193
L000568,HON. CHRISTOPHER J. LEE,2010Q2,EQUIPMENT,06_30,06_30       S8    MA000958841,6/1/10,6/30/10,EQUIPMENT MAINTENANCE,169.01,2010,,,,06_30       S8    MA000958841
C001065,HON. CHRISTOPHER P. CARNEY,2010Q2,SUPPLIES AND MATERIALS,06_30,06_30 S1 DY100600361,6/1/10,6/30/10,OFFICE SUPPLY (TRANSFER),858.44,2010,,,,06_30 S1 DY100600361
C001065,HON. CHRISTOPHER P. CARNEY,2010Q2,EQUIPMENT,06_30,06_30       S8     MA000959851,6/1/10,6/30/10,EQUIPMENT MAINTENANCE,117.5,2010,,,,06_30       S8     MA000959851
C001065,HON. CHRISTOPHER P. CARNEY,2010Q2,EQUIPMENT,06_30,06_30       S8     PL000962700,6/1/10,6/30/10,COMP HARDWARE PURCH _ $25000,47.97,2010,,,,06_30       S8     PL000962700
M001169,HON. CHRISTOPHER S. MURPHY,2010Q2,"RENT, COMMUNICATION, UTILITIES",06_30,06_30   P1   10CT0500517                  AT&T,6/15/10,7/14/10,"TELECOM SVC, EQUIP & TOLLS",53.02,2010,,,,06_30   P1   10CT0500517                  AT&T
M001169,HON. CHRISTOPHER S. MURPHY,2010Q2,"RENT, COMMUNICATION, UTILITIES",06_30,06_30   P1   10CT0500519                  UNITED PARCEL SERVICE,6/16/10,6/16/10,POSTAGE/COURIER/BOX RENTAL,5.7,2010,,,,06_30   P1   10CT0500519                  UNITED PARCEL SERVICE
M001169,HON. CHRISTOPHER S. MURPHY,2010Q2,"RENT, COMMUNICATION, UTILITIES",06_30,06_30   P1   10CT0500520                           DO,5/11/10,5/11/10,POSTAGE/COURIER/BOX RENTAL,12.33,2010,,,,06_30   P1   10CT0500520                           DO
M001169,HON. CHRISTOPHER S. MURPHY,2010Q2,PRINTING AND REPRODUCTION,06_30,06_30   P1   10CT0500521      ACCURATE WORD LLC,6/18/10,6/18/10,PRINTING AND REPRODUCTION,36.9,2010,,,,06_30   P1   10CT0500521      ACCURATE WORD LLC
M001169,HON. CHRISTOPHER S. MURPHY,2010Q2,SUPPLIES AND MATERIALS,06_30,06_30       S1    DY100600113,6/1/10,6/30/10,OFFICE SUPPLY (TRANSFER),779.43,2010,,,,06_30       S1    DY100600113
M001169,HON. CHRISTOPHER S. MURPHY,2010Q2,SUPPLIES AND MATERIALS,06_30,06_30       P1    10CT0500518                W.B. MASON CO. INC,6/17/10,6/17/10,OFFICE SUPPLIES OUTSIDE,134.9,2010,,,,06_30       P1    10CT0500518                W.B. MASON CO. INC
M001169,HON. CHRISTOPHER S. MURPHY,2010Q2,EQUIPMENT,06_30,06_30       S8    MA000959955,6/1/10,6/30/10,EQUIPMENT MAINTENANCE,469.72,2010,,,,06_30       S8    MA000959955
R000568,HON. CIRO RODRIGUEZ,2010Q2,SUPPLIES AND MATERIALS,06_30,06_30 S1 DY100600329,6/1/10,6/30/10,OFFICE SUPPLY (TRANSFER),279.65,2010,,,,06_30 S1 DY100600329
R000568,HON. CIRO RODRIGUEZ,2010Q2,EQUIPMENT,06_30,06_30       S8 MA000957821,6/1/10,6/30/10,EQUIPMENT MAINTENANCE,351,2010,,,,06_30       S8 MA000957821
S000822,HON. CLIFF STEARNS,2010Q2,TRAVEL,06_30,06_30   P1   10FL0600449                HON. CLIFF STEARNS,6/18/10,6/18/10,COMMERCIAL TRANSPORTATION,30,2010,,,,06_30   P1   10FL0600449                HON. CLIFF STEARNS
S000822,HON. CLIFF STEARNS,2010Q2,SUPPLIES AND MATERIALS,06_30,06_30       S1    DY100600267,6/1/10,6/30/10,OFFICE SUPPLY (TRANSFER),149.81,2010,,,,06_30       S1    DY100600267
S000822,HON. CLIFF STEARNS,2010Q2,EQUIPMENT,06_30,06_30       S8    MA000957867,6/1/10,6/30/10,EQUIPMENT MAINTENANCE,65.33,2010,,,,06_30       S8    MA000957867
P000258,HON. COLLIN C PETERSON,2010Q2,SUPPLIES AND MATERIALS,06_30,06_30   S1   DY100600429,6/1/10,6/30/10,OFFICE SUPPLY (TRANSFER),472.4,2010,,,,06_30   S1   DY100600429
P000258,HON. COLLIN C PETERSON,2010Q2,EQUIPMENT,06_30,06_30 S8 MA000957864,6/1/10,6/30/10,EQUIPMENT MAINTENANCE,176.72,2010,,,,06_30 S8 MA000957864
P000258,HON. COLLIN C PETERSON,2010Q2,EQUIPMENT,06_30,06_30 S8 PL000962823,6/1/10,6/30/10,COMP HARDWARE PURCH _ $25000,49.45,2010,,,,06_30 S8 PL000962823
M001155,HON. CONNIE MACK,2010Q2,TRAVEL,06_30,06_30   P1   10FL1400375                STEPHANIE L. DUBOIS,6/13/10,6/14/10,MEALS,34.87,2010,,,,06_30   P1   10FL1400375                STEPHANIE L. DUBOIS
M001155,HON. CONNIE MACK,2010Q2,PRINTING AND REPRODUCTION,06_30,06_30   P1   10FL1400370      ACCURATE WORD LLC,6/10/10,6/10/10,PRINTING AND REPRODUCTION,39.9,2010,,,,06_30   P1   10FL1400370      ACCURATE WORD LLC
M001155,HON. CONNIE MACK,2010Q2,PRINTING AND REPRODUCTION,06_30,06_30   P1   10FL1400371      CAPITAL MAIL SERVICES LLC,4/19/10,4/30/10,ADVERTISEMENTS,"8,040.00",2010,,,,06_30   P1   10FL1400371      CAPITAL MAIL SERVICES LLC
M001155,HON. CONNIE MACK,2010Q2,OTHER SERVICES,06_30,06_30 P1 10FL1400369             DO,6/18/10,6/25/10,JANITORIAL & MAINTENANCE SVCS,100,2010,,,,06_30 P1 10FL1400369             DO
M001155,HON. CONNIE MACK,2010Q2,SUPPLIES AND MATERIALS,06_30,06_30       S1    DY100600117,6/1/10,6/30/10,OFFICE SUPPLY (TRANSFER),261.01,2010,,,,06_30       S1    DY100600117
B000911,HON. CORRINE BROWN,2010Q2,FRANKED MAIL,06_30,06_30      OP 10USPS04006        UNITED STATES POSTAL SERVICE,4/1/10,4/30/10,FRANKED MAIL,"8,325.13",2010,,,,06_30      OP 10USPS04006        UNITED STATES POSTAL SERVICE
B000911,HON. CORRINE BROWN,2010Q2,"RENT, COMMUNICATION, UTILITIES",06_30,06_30 P1 10FL0300476                DO,6/7/10,6/7/10,POSTAGE/COURIER/BOX RENTAL,115.13,2010,,,,06_30 P1 10FL0300476                DO
B000911,HON. CORRINE BROWN,2010Q2,SUPPLIES AND MATERIALS,06_30,06_30 S1 DY100600220,6/1/10,6/30/10,OFFICE SUPPLY (TRANSFER),967.27,2010,,,,06_30 S1 DY100600220
B000911,HON. CORRINE BROWN,2010Q2,SUPPLIES AND MATERIALS,06_30,06_30 C2 NW201018100       BOISE CASCADE,5/25/10,5/25/10,FOOD & BEVERAGE,13.74,2010,,,,06_30 C2 NW201018100       BOISE CASCADE
B000911,HON. CORRINE BROWN,2010Q2,SUPPLIES AND MATERIALS,06_30,06_30 C2 NW201018100                DO,5/25/10,5/25/10,OFFICE SUPPLIES OUTSIDE,208.09,2010,,,,06_30 C2 NW201018100                DO
B000911,HON. CORRINE BROWN,2010Q2,SUPPLIES AND MATERIALS,06_30,06_30 C2 NW201018100                DO,5/27/10,5/27/10,OFFICE SUPPLIES OUTSIDE,500.76,2010,,,,06_30 C2 NW201018100                DO
B000911,HON. CORRINE BROWN,2010Q2,EQUIPMENT,06_30,06_30       S8    MA000957913,6/1/10,6/30/10,EQUIPMENT MAINTENANCE,393.03,2010,,,,06_30       S8    MA000957913
L000571,HON. CYNTHIA M. LUMMIS,2010Q2,SUPPLIES AND MATERIALS,06_30,06_30    S1    DY100600319,6/1/10,6/30/10,OFFICE SUPPLY (TRANSFER),358.93,2010,,,,06_30    S1    DY100600319
L000571,HON. CYNTHIA M. LUMMIS,2010Q2,EQUIPMENT,06_30,06_30    S8    MA000957950,6/1/10,6/30/10,EQUIPMENT MAINTENANCE,319,2010,,,,06_30    S8    MA000957950
K000172,HON. DALE E KILDEE,2010Q2,"RENT, COMMUNICATION, UTILITIES",06_30,06_30 P1 10MI0500175         AT&T,5/1/10,5/31/10,"TELECOM SVC, EQUIP & TOLLS",53,2010,,,,06_30 P1 10MI0500175         AT&T
K000172,HON. DALE E KILDEE,2010Q2,"RENT, COMMUNICATION, UTILITIES",06_30,06_30 P1 10MI0500177                   DO,5/4/10,6/3/10,"TELECOM SVC, EQUIP & TOLLS",309.02,2010,,,,06_30 P1 10MI0500177                   DO
K000172,HON. DALE E KILDEE,2010Q2,"RENT, COMMUNICATION, UTILITIES",06_30,06_30 P1 10MI0500176         MCI,5/6/10,6/4/10,"TELECOM SVC, EQUIP & TOLLS",45.23,2010,,,,06_30 P1 10MI0500176         MCI
K000172,HON. DALE E KILDEE,2010Q2,SUPPLIES AND MATERIALS,06_30,06_30       S1    DY100600183,6/1/10,6/30/10,OFFICE SUPPLY (TRANSFER),"1,401.79",2010,,,,06_30       S1    DY100600183
K000172,HON. DALE E KILDEE,2010Q2,EQUIPMENT,06_30,06_30       S8    MA000959976,6/1/10,6/30/10,EQUIPMENT MAINTENANCE,127,2010,,,,06_30       S8    MA000959976
K000172,HON. DALE E KILDEE,2010Q2,EQUIPMENT,06_30,06_30       S8    PL000962385,6/1/10,6/30/10,COMP HARDWARE PURCH _ $25000,326.52,2010,,,,06_30       S8    PL000962385
K000172,HON. DALE E KILDEE,2010Q2,"RENT, COMMUNICATION, UTILITIES",06_30,06_30 P1 10MI0500178              DO,12/10/09,1/9/10,"TELECOM SVC, EQUIP & TOLLS",360.29,2009,,,,06_30 P1 10MI0500178              DO
B001254,HON. DAN BOREN,2010Q2,TRAVEL,06_30,06_30 HV 10A90300890        CITIBANK GOV CARD SERVICE,5/20/10,5/24/10,CAR RENTAL,215.73,2010,,,,06_30 HV 10A90300890        CITIBANK GOV CARD SERVICE
B001254,HON. DAN BOREN,2010Q2,TRAVEL,06_30,06_30 P1 10OK0200494        PEGGY MCGEHEE,6/15/10,6/24/10,PRIVATE OWNED VEHICLE MILEAGE,410.4,2010,,,,06_30 P1 10OK0200494        PEGGY MCGEHEE
B001254,HON. DAN BOREN,2010Q2,SUPPLIES AND MATERIALS,06_30,06_30 S1 DY100600046,6/1/10,6/30/10,OFFICE SUPPLY (TRANSFER),347.17,2010,,,,06_30 S1 DY100600046
B001254,HON. DAN BOREN,2010Q2,EQUIPMENT,06_30,06_30       S8     MA000959591,6/1/10,6/30/10,EQUIPMENT MAINTENANCE,391.5,2010,,,,06_30       S8     MA000959591
B001149,HON. DAN BURTON,2010Q2,SUPPLIES AND MATERIALS,06_30,06_30 S1 DY100600176,6/1/10,6/30/10,OFFICE SUPPLY (TRANSFER),718.53,2010,,,,06_30 S1 DY100600176
B001149,HON. DAN BURTON,2010Q2,EQUIPMENT,06_30,06_30       S8     MA000957934,6/1/10,6/30/10,EQUIPMENT MAINTENANCE,279.67,2010,,,,06_30       S8     MA000957934
R000409,HON. DANA ROHRABACHER,2010Q2,TRAVEL,06_30,06_30   P1   10CA4600284                        DO,6/10/10,6/10/10,CAR RENTAL,55,2010,,,,06_30   P1   10CA4600284                        DO
R000409,HON. DANA ROHRABACHER,2010Q2,PRINTING AND REPRODUCTION,06_30,"06_30 P1 10CA4600285        DAVID L. ANDRUKITUS, INC",6/18/10,6/18/10,PRINTING AND REPRODUCTION,87.5,2010,,,,"06_30 P1 10CA4600285        DAVID L. ANDRUKITUS, INC"
R000409,HON. DANA ROHRABACHER,2010Q2,SUPPLIES AND MATERIALS,06_30,06_30      S1    DY100600108,6/1/10,6/30/10,OFFICE SUPPLY (TRANSFER),535.52,2010,,,,06_30      S1    DY100600108
R000409,HON. DANA ROHRABACHER,2010Q2,SUPPLIES AND MATERIALS,06_30,06_30      P1    10CA4600286                STAPLES,5/25/10,6/11/10,OFFICE SUPPLIES OUTSIDE,670.6,2010,,,,06_30      P1    10CA4600286                STAPLES
R000409,HON. DANA ROHRABACHER,2010Q2,EQUIPMENT,06_30,06_30      S8 MA000958364,6/1/10,6/30/10,EQUIPMENT MAINTENANCE,170,2010,,,,06_30      S8 MA000958364
M001171,HON. DANIEL B. MAFFEI,2010Q2,SUPPLIES AND MATERIALS,06_30,06_30 S1 DY100600299,6/1/10,6/30/10,OFFICE SUPPLY (TRANSFER),390.84,2010,,,,06_30 S1 DY100600299
M001171,HON. DANIEL B. MAFFEI,2010Q2,SUPPLIES AND MATERIALS,06_30,06_30 C2 NW201018101          BOISE CASCADE,5/19/10,5/19/10,OFFICE SUPPLIES OUTSIDE,37.78,2010,,,,06_30 C2 NW201018101          BOISE CASCADE
M001171,HON. DANIEL B. MAFFEI,2010Q2,EQUIPMENT,06_30,06_30       S8     MA000958176,6/1/10,6/30/10,EQUIPMENT MAINTENANCE,272.58,2010,,,,06_30       S8     MA000958176
M001171,HON. DANIEL B. MAFFEI,2010Q2,EQUIPMENT,06_30,06_30       S8     PL000962584,6/1/10,6/30/10,COMP HARDWARE PURCH _ $25000,158.47,2010,,,,06_30       S8     PL000962584
L000517,HON. DANIEL E. LUNGREN,2010Q2,SUPPLIES AND MATERIALS,06_30,06_30       S1    DY100600057,6/1/10,6/30/10,OFFICE SUPPLY (TRANSFER),827.31,2010,,,,06_30       S1    DY100600057
L000517,HON. DANIEL E. LUNGREN,2010Q2,EQUIPMENT,06_30,06_30       S8 MA000957799,6/1/10,6/30/10,EQUIPMENT MAINTENANCE,32.33,2010,,,,06_30       S8 MA000957799
L000563,HON. DANIEL LIPINSKI,2010Q2,SUPPLIES AND MATERIALS,06_30,06_30     S1    DY100600236,6/1/10,6/30/10,OFFICE SUPPLY (TRANSFER),401.99,2010,,,,06_30     S1    DY100600236
L000563,HON. DANIEL LIPINSKI,2010Q2,EQUIPMENT,06_30,06_30     S8    MA000959967,6/1/10,6/30/10,EQUIPMENT MAINTENANCE,416.68,2010,,,,06_30     S8    MA000959967
L000563,HON. DANIEL LIPINSKI,2010Q2,EQUIPMENT,06_30,06_30     S8    PL000962836,6/1/10,6/30/10,EQUIPMENT PURCHASE _ $25000,479.17,2010,,,,06_30     S8    PL000962836
D000096,HON. DANNY K. DAVIS,2010Q2,SUPPLIES AND MATERIALS,06_30,06_30   S1   DY100600081,6/1/10,6/30/10,OFFICE SUPPLY (TRANSFER),659.05,2010,,,,06_30   S1   DY100600081
D000096,HON. DANNY K. DAVIS,2010Q2,EQUIPMENT,06_30,06_30   S8   MA000959604,6/1/10,6/30/10,EQUIPMENT MAINTENANCE,577.92,2010,,,,06_30   S8   MA000959604
D000096,HON. DANNY K. DAVIS,2010Q2,EQUIPMENT,06_30,06_30 S8 PL000962683,6/1/10,6/30/10,COMP HARDWARE PURCH _ $25000,130.41,2010,,,,06_30 S8 PL000962683
I000056,HON. DARRELL E. ISSA,2010Q2,SUPPLIES AND MATERIALS,06_30,06_30 S1 DY100600458,6/1/10,6/30/10,OFFICE SUPPLY (TRANSFER),"1,647.21",2010,,,,06_30 S1 DY100600458
I000056,HON. DARRELL E. ISSA,2010Q2,SUPPLIES AND MATERIALS,06_30,06_30 P1 10CA4900439           DANIEL C BUCHELI,6/9/10,6/9/10,OFFICE SUPPLIES OUTSIDE,31.68,2010,,,,06_30 P1 10CA4900439           DANIEL C BUCHELI
I000056,HON. DARRELL E. ISSA,2010Q2,EQUIPMENT,06_30,06_30       S8 MA000959808,6/1/10,6/30/10,EQUIPMENT MAINTENANCE,304.6,2010,,,,06_30       S8 MA000959808
C000071,HON. DAVE CAMP,2010Q2,SUPPLIES AND MATERIALS,06_30,06_30 S1 DY100600128,6/1/10,6/30/10,OFFICE SUPPLY (TRANSFER),"1,542.65",2010,,,,06_30 S1 DY100600128
C000071,HON. DAVE CAMP,2010Q2,EQUIPMENT,06_30,06_30       S8 MA000957879,6/1/10,6/30/10,EQUIPMENT MAINTENANCE,163.52,2010,,,,06_30       S8 MA000957879
D000492,HON. DAVID DREIER,2010Q2,SUPPLIES AND MATERIALS,06_30,06_30 S1 DY100600455,6/1/10,6/30/10,OFFICE SUPPLY (TRANSFER),468.47,2010,,,,06_30 S1 DY100600455
D000492,HON. DAVID DREIER,2010Q2,EQUIPMENT,06_30,06_30       S8     MA000957847,6/1/10,6/30/10,EQUIPMENT MAINTENANCE,193,2010,,,,06_30       S8     MA000957847
P000523,HON. DAVID E PRICE,2010Q2,OTHER SERVICES,06_30,06_30   P1   10NC0400190                       DO,5/1/10,5/31/10,SECURITY SERVICE,29.95,2010,,,,06_30   P1   10NC0400190                       DO
P000523,HON. DAVID E PRICE,2010Q2,SUPPLIES AND MATERIALS,06_30,06_30 S1 DY100600033,6/1/10,6/30/10,OFFICE SUPPLY (TRANSFER),619.5,2010,,,,06_30 S1 DY100600033
P000523,HON. DAVID E PRICE,2010Q2,SUPPLIES AND MATERIALS,06_30,06_30 C2 NW201018100         BOISE CASCADE,5/25/10,5/25/10,OFFICE SUPPLIES OUTSIDE,20.73,2010,,,,06_30 C2 NW201018100         BOISE CASCADE
P000523,HON. DAVID E PRICE,2010Q2,EQUIPMENT,06_30,06_30       S8 MA000959222,6/1/10,6/30/10,EQUIPMENT MAINTENANCE,631.52,2010,,,,06_30       S8 MA000959222
P000523,HON. DAVID E PRICE,2010Q2,FRANKED MAIL,06_30,06_30 SF DY100600349,12/1/09,12/31/09,FRANKED MAIL,6.2,2009,,,,06_30 SF DY100600349
P000523,HON. DAVID E PRICE,2010Q2,SUPPLIES AND MATERIALS,06_30,06_30       SF DY100600013,12/1/09,12/31/09,OFFICE SUPPLY (TRANSFER),20,2009,,,,06_30       SF DY100600013
P000523,HON. DAVID E PRICE,2010Q2,SUPPLIES AND MATERIALS,06_30,06_30       SF DY100600686,12/1/09,12/31/09,OFFICE SUPPLY (TRANSFER),4.05,2009,,,,06_30       SF DY100600686
R000578,HON. DAVID G. REICHERT,2010Q2,SUPPLIES AND MATERIALS,06_30,06_30 S1 DY100600527,6/1/10,6/30/10,OFFICE SUPPLY (TRANSFER),362.87,2010,,,,06_30 S1 DY100600527
R000578,HON. DAVID G. REICHERT,2010Q2,EQUIPMENT,06_30,06_30       S8 MA000959086,6/1/10,6/30/10,EQUIPMENT MAINTENANCE,190.69,2010,,,,06_30       S8 MA000959086
L000565,HON. DAVID LOEBSACK,2010Q2,SUPPLIES AND MATERIALS,06_30,06_30 S1 DY100600076,6/1/10,6/30/10,OFFICE SUPPLY (TRANSFER),438.48,2010,,,,06_30 S1 DY100600076
L000565,HON. DAVID LOEBSACK,2010Q2,SUPPLIES AND MATERIALS,06_30,06_30 C2 NW201018100        BOISE CASCADE,5/21/10,5/21/10,OFFICE SUPPLIES OUTSIDE,13.85,2010,,,,06_30 C2 NW201018100        BOISE CASCADE
L000565,HON. DAVID LOEBSACK,2010Q2,SUPPLIES AND MATERIALS,06_30,06_30 P1 10IA0200259        ERIC WITTE,5/3/10,5/3/10,PUBLICATION REF MATERIAL,229,2010,,,,06_30 P1 10IA0200259        ERIC WITTE
L000565,HON. DAVID LOEBSACK,2010Q2,EQUIPMENT,06_30,06_30       S8 MA000959680,6/1/10,6/30/10,EQUIPMENT MAINTENANCE,240.42,2010,,,,06_30       S8 MA000959680
R000582,HON. DAVID P. ROE,2010Q2,"RENT, COMMUNICATION, UTILITIES",06_30,"06_30 P1 10TN0100371         POSTMASTER, WASHINGTON, D.C",6/10/10,6/10/10,POSTAGE/COURIER/BOX RENTAL,88,2010,,,,"06_30 P1 10TN0100371         POSTMASTER, WASHINGTON, D.C"
R000582,HON. DAVID P. ROE,2010Q2,SUPPLIES AND MATERIALS,06_30,06_30   S1   DY100600387,6/1/10,6/30/10,OFFICE SUPPLY (TRANSFER),"1,184.46",2010,,,,06_30   S1   DY100600387
R000582,HON. DAVID P. ROE,2010Q2,EQUIPMENT,06_30,06_30   S8   MA000957809,6/1/10,6/30/10,EQUIPMENT MAINTENANCE,127,2010,,,,06_30   S8   MA000957809
R000582,HON. DAVID P. ROE,2010Q2,EQUIPMENT,06_30,06_30   S8   PL000962324,6/1/10,6/30/10,COMP HARDWARE PURCH _ $25000,353.04,2010,,,,06_30   S8   PL000962324
O000007,HON. DAVID R OBEY,2010Q2,SUPPLIES AND MATERIALS,06_30,06_30 S1 DY100600510,6/1/10,6/30/10,OFFICE SUPPLY (TRANSFER),366.18,2010,,,,06_30 S1 DY100600510
O000007,HON. DAVID R OBEY,2010Q2,EQUIPMENT,06_30,06_30       S8 MA000957796,6/1/10,6/30/10,EQUIPMENT MAINTENANCE,585.27,2010,,,,06_30       S8 MA000957796
S001157,HON. DAVID SCOTT,2010Q2,"RENT, COMMUNICATION, UTILITIES",06_30,06_30 P1 10GA1300351         CHARTER COMMUNICATION,5/29/10,6/28/10,UTILITIES,156.58,2010,,,,06_30 P1 10GA1300351         CHARTER COMMUNICATION
S001157,HON. DAVID SCOTT,2010Q2,"RENT, COMMUNICATION, UTILITIES",06_30,06_30 P1 10GA1300350         SCANA ENERGY,4/21/10,5/20/10,UTILITIES,160.77,2010,,,,06_30 P1 10GA1300350         SCANA ENERGY
S001157,HON. DAVID SCOTT,2010Q2,OTHER SERVICES,06_30,06_30   P1   10GA1300354               ATLANTA DIGITAL SECURITY,6/1/10,6/30/10,SECURITY SERVICE,17.95,2010,,,,06_30   P1   10GA1300354               ATLANTA DIGITAL SECURITY
S001157,HON. DAVID SCOTT,2010Q2,OTHER SERVICES,06_30,06_30   P1   10GA1300355                    DO,6/1/10,6/30/10,SECURITY SERVICE,25.95,2010,,,,06_30   P1   10GA1300355                    DO
S001157,HON. DAVID SCOTT,2010Q2,OTHER SERVICES,06_30,06_30   P1   10GA1300353               CITY OF JONESBORO,6/1/10,6/30/10,JANITORIAL & MAINTENANCE SVCS,15,2010,,,,06_30   P1   10GA1300353               CITY OF JONESBORO
S001157,HON. DAVID SCOTT,2010Q2,OTHER SERVICES,06_30,06_30   P1   10GA1300356               NELSON JANITORIAL SERVICES,6/1/10,6/30/10,JANITORIAL & MAINTENANCE SVCS,400,2010,,,,06_30   P1   10GA1300356               NELSON JANITORIAL SERVICES
S001157,HON. DAVID SCOTT,2010Q2,OTHER SERVICES,06_30,06_30   P1   10GA1300357                    DO,6/1/10,6/30/10,JANITORIAL & MAINTENANCE SVCS,400,2010,,,,06_30   P1   10GA1300357                    DO
S001157,HON. DAVID SCOTT,2010Q2,SUPPLIES AND MATERIALS,06_30,06_30 S1 DY100600071,6/1/10,6/30/10,OFFICE SUPPLY (TRANSFER),278.47,2010,,,,06_30 S1 DY100600071
S001157,HON. DAVID SCOTT,2010Q2,SUPPLIES AND MATERIALS,06_30,06_30 P1 10GA1300352         GEORGIA CLIPS,6/1/10,6/1/10,PUBLICATION REF MATERIAL,96,2010,,,,06_30 P1 10GA1300352         GEORGIA CLIPS
S001157,HON. DAVID SCOTT,2010Q2,EQUIPMENT,06_30,06_30       S8 MA000957835,6/1/10,6/30/10,EQUIPMENT MAINTENANCE,520.58,2010,,,,06_30       S8 MA000957835
S001157,HON. DAVID SCOTT,2010Q2,SUPPLIES AND MATERIALS,06_30,06_30      P2 OSM42993         CDW GOVERNMENT INC,1/26/10,1/26/10,OFFICE SUPPLIES OUTSIDE,140,2009,,,,06_30      P2 OSM42993         CDW GOVERNMENT INC
S001157,HON. DAVID SCOTT,2010Q2,SUPPLIES AND MATERIALS,06_30,06_30      P2 OSM42993              DO,1/26/10,1/26/10,OFFICE SUPPLIES OUTSIDE,8.8,2009,,,,06_30      P2 OSM42993              DO
W000793,HON. DAVID WU,2010Q2,SUPPLIES AND MATERIALS,06_30,06_30   S1   DY100600047,6/1/10,6/30/10,OFFICE SUPPLY (TRANSFER),313.93,2010,,,,06_30   S1   DY100600047
W000793,HON. DAVID WU,2010Q2,EQUIPMENT,06_30,06_30   S8   MA000959985,6/1/10,6/30/10,EQUIPMENT MAINTENANCE,142.66,2010,,,,06_30   S8   MA000959985
H001041,HON. DEAN HELLER,2010Q2,TRAVEL,06_30,06_30   P1   10NV0200327                 MATTHEW MORRIS,6/8/10,6/25/10,PRIVATE OWNED VEHICLE MILEAGE,198,2010,,,,06_30   P1   10NV0200327                 MATTHEW MORRIS
H001041,HON. DEAN HELLER,2010Q2,"RENT, COMMUNICATION, UTILITIES",06_30,06_30 P1 10NV0200325        MATTHEW MORRIS,6/9/10,6/9/10,POSTAGE/COURIER/BOX RENTAL,16.18,2010,,,,06_30 P1 10NV0200325        MATTHEW MORRIS
H001041,HON. DEAN HELLER,2010Q2,SUPPLIES AND MATERIALS,06_30,06_30 S1 DY100600353,6/1/10,6/30/10,OFFICE SUPPLY (TRANSFER),730.43,2010,,,,06_30 S1 DY100600353
H001041,HON. DEAN HELLER,2010Q2,SUPPLIES AND MATERIALS,06_30,06_30 P1 10NV0200324        ALHAMBRA & SIERRA SPRINGS,5/24/10,6/16/10,BOTTLED WATER,33.55,2010,,,,06_30 P1 10NV0200324        ALHAMBRA & SIERRA SPRINGS
H001041,HON. DEAN HELLER,2010Q2,SUPPLIES AND MATERIALS,06_30,06_30 P1 10NV0200323        CRYSTAL SPRINGS,5/20/10,6/17/10,BOTTLED WATER,38.42,2010,,,,06_30 P1 10NV0200323        CRYSTAL SPRINGS
H001041,HON. DEAN HELLER,2010Q2,SUPPLIES AND MATERIALS,06_30,06_30 P1 10NV0200321        EDGAR M ABRAMS,6/1/10,6/30/10,PUBLICATION REF MATERIAL,70.82,2010,,,,06_30 P1 10NV0200321        EDGAR M ABRAMS
H001041,HON. DEAN HELLER,2010Q2,SUPPLIES AND MATERIALS,06_30,06_30 P1 10NV0200326        MATTHEW MORRIS,6/8/10,6/8/10,FOOD & BEVERAGE,20,2010,,,,06_30 P1 10NV0200326        MATTHEW MORRIS
H001041,HON. DEAN HELLER,2010Q2,SUPPLIES AND MATERIALS,06_30,06_30 P1 10NV0200322        SPARKLETTS AND SIERRA SPRINGS,6/15/10,6/15/10,BOTTLED WATER,20.57,2010,,,,06_30 P1 10NV0200322        SPARKLETTS AND SIERRA SPRINGS
H001041,HON. DEAN HELLER,2010Q2,EQUIPMENT,06_30,06_30       S8 MA000959959,6/1/10,6/30/10,EQUIPMENT MAINTENANCE,105,2010,,,,06_30       S8 MA000959959
W000797,HON. DEBBIE WASSERMAN SCHULTZ,2010Q2,SUPPLIES AND MATERIALS,06_30,06_30 S1 DY100600070,6/1/10,6/30/10,OFFICE SUPPLY (TRANSFER),725.42,2010,,,,06_30 S1 DY100600070
W000797,HON. DEBBIE WASSERMAN SCHULTZ,2010Q2,EQUIPMENT,06_30,06_30       S8     MA000959728,6/1/10,6/30/10,EQUIPMENT MAINTENANCE,160,2010,,,,06_30       S8     MA000959728
W000797,HON. DEBBIE WASSERMAN SCHULTZ,2010Q2,EQUIPMENT,06_30,06_30       S8     PL000962577,6/1/10,6/30/10,EQUIPMENT PURCHASE _ $25000,506.96,2010,,,,06_30       S8     PL000962577
H001044,HON. DEBORAH L. HALVORSON,2010Q2,"RENT, COMMUNICATION, UTILITIES",06_30,"06_30 P1 10IL1100323         POSTMASTER, WASHINGTON, D.C",5/27/10,5/27/10,POSTAGE/COURIER/BOX RENTAL,26.65,2010,,,,"06_30 P1 10IL1100323         POSTMASTER, WASHINGTON, D.C"
H001044,HON. DEBORAH L. HALVORSON,2010Q2,SUPPLIES AND MATERIALS,06_30,06_30 S1 DY100600020,6/1/10,6/30/10,OFFICE SUPPLY (TRANSFER),"1,328.42",2010,,,,06_30 S1 DY100600020
H001044,HON. DEBORAH L. HALVORSON,2010Q2,SUPPLIES AND MATERIALS,06_30,06_30 HV 10A90300893         HON. DEBORAH L HALVORSON,1/22/10,1/22/10,OFFICE SUPPLIES OUTSIDE,136.48,2010,,,,06_30 HV 10A90300893         HON. DEBORAH L HALVORSON
H001044,HON. DEBORAH L. HALVORSON,2010Q2,EQUIPMENT,06_30,06_30       S8     MA000959810,6/1/10,6/30/10,EQUIPMENT MAINTENANCE,157.33,2010,,,,06_30       S8     MA000959810
H001044,HON. DEBORAH L. HALVORSON,2010Q2,EQUIPMENT,06_30,06_30       S8     PL000962691,6/1/10,6/30/10,COMP HARDWARE PURCH _ $25000,48.24,2010,,,,06_30       S8     PL000962691
C001050,HON. DENNIS A. CARDOZA,2010Q2,TRAVEL,06_30,06_30 P1 10CA1800465         JASON J. LUMIA,5/26/10,6/22/10,"TAXI, PARKING, TOLLS",35,2010,,,,06_30 P1 10CA1800465         JASON J. LUMIA
C001050,HON. DENNIS A. CARDOZA,2010Q2,"RENT, COMMUNICATION, UTILITIES",06_30,06_30 P1 10CA1800467         AT & T,5/13/10,6/12/10,"TELECOM SVC, EQUIP & TOLLS",57.7,2010,,,,06_30 P1 10CA1800467         AT & T
C001050,HON. DENNIS A. CARDOZA,2010Q2,"RENT, COMMUNICATION, UTILITIES",06_30,06_30 P1 10CA1800468                  DO,5/8/10,6/7/10,"TELECOM SVC, EQUIP & TOLLS",176.84,2010,,,,06_30 P1 10CA1800468                  DO
C001050,HON. DENNIS A. CARDOZA,2010Q2,"RENT, COMMUNICATION, UTILITIES",06_30,06_30 P1 10CA1800473                  DO,5/4/10,6/3/10,"TELECOM SVC, EQUIP & TOLLS",241.25,2010,,,,06_30 P1 10CA1800473                  DO
C001050,HON. DENNIS A. CARDOZA,2010Q2,"RENT, COMMUNICATION, UTILITIES",06_30,06_30 P1 10CA1800464         COMCAST,6/16/10,7/15/10,UTILITIES,126.02,2010,,,,06_30 P1 10CA1800464         COMCAST
C001050,HON. DENNIS A. CARDOZA,2010Q2,SUPPLIES AND MATERIALS,06_30,06_30 S1 DY100600208,6/1/10,6/30/10,OFFICE SUPPLY (TRANSFER),383.31,2010,,,,06_30 S1 DY100600208
C001050,HON. DENNIS A. CARDOZA,2010Q2,SUPPLIES AND MATERIALS,06_30,06_30 P1 10CA1800466         ALHAMBRA & SIERRA SPRINGS,6/2/10,6/16/10,BOTTLED WATER,56.33,2010,,,,06_30 P1 10CA1800466         ALHAMBRA & SIERRA SPRINGS
C001050,HON. DENNIS A. CARDOZA,2010Q2,SUPPLIES AND MATERIALS,06_30,06_30 P1 10CA1800470                  DO,5/10/10,6/7/10,BOTTLED WATER,70.67,2010,,,,06_30 P1 10CA1800470                  DO
C001050,HON. DENNIS A. CARDOZA,2010Q2,SUPPLIES AND MATERIALS,06_30,06_30 P1 10CA1800471                  DO,5/25/10,6/8/10,BOTTLED WATER,55.39,2010,,,,06_30 P1 10CA1800471                  DO
C001050,HON. DENNIS A. CARDOZA,2010Q2,SUPPLIES AND MATERIALS,06_30,"06_30 P1 10CA1800469         CAPITOL IDEA TECHNOLOGY, INC",6/23/10,6/23/10,OFFICE SUPPLIES OUTSIDE,"1,992.00",2010,,,,"06_30 P1 10CA1800469         CAPITOL IDEA TECHNOLOGY, INC"
C001050,HON. DENNIS A. CARDOZA,2010Q2,EQUIPMENT,06_30,06_30       S8     MA000959547,6/1/10,6/30/10,EQUIPMENT MAINTENANCE,86.57,2010,,,,06_30       S8     MA000959547
K000336,HON. DENNIS J. KUCINICH,2010Q2,TRAVEL,06_30,06_30   P1   10OH1000274                 CANDACE A. VOSSBRINCK,5/30/10,6/17/10,PRIVATE OWNED VEHICLE MILEAGE,33.6,2010,,,,06_30   P1   10OH1000274                 CANDACE A. VOSSBRINCK
K000336,HON. DENNIS J. KUCINICH,2010Q2,"RENT, COMMUNICATION, UTILITIES",06_30,06_30 P1 10OH1000277           CHRISTINE MILES,5/10/10,5/10/10,POSTAGE/COURIER/BOX RENTAL,50.77,2010,,,,06_30 P1 10OH1000277           CHRISTINE MILES
K000336,HON. DENNIS J. KUCINICH,2010Q2,"RENT, COMMUNICATION, UTILITIES",06_30,06_30 P1 10OH1000275           NATHANIEL D WHITE,5/5/10,6/4/10,"TELECOM SVC, EQUIP & TOLLS",36.5,2010,,,,06_30 P1 10OH1000275           NATHANIEL D WHITE
K000336,HON. DENNIS J. KUCINICH,2010Q2,SUPPLIES AND MATERIALS,06_30,06_30   S1   DY100600300,6/1/10,6/30/10,OFFICE SUPPLY (TRANSFER),709.54,2010,,,,06_30   S1   DY100600300
K000336,HON. DENNIS J. KUCINICH,2010Q2,SUPPLIES AND MATERIALS,06_30,06_30   P1   10OH1000276   CHRISTINE MILES,4/21/10,4/21/10,HABITATION EXPENSES,67.52,2010,,,,06_30   P1   10OH1000276   CHRISTINE MILES
K000336,HON. DENNIS J. KUCINICH,2010Q2,SUPPLIES AND MATERIALS,06_30,06_30   P1   10OH1000278            DO,5/3/10,5/3/10,FOOD & BEVERAGE,44.84,2010,,,,06_30   P1   10OH1000278            DO
K000336,HON. DENNIS J. KUCINICH,2010Q2,SUPPLIES AND MATERIALS,06_30,06_30   P1   10OH1000273   THE NEW YORK TIMES,6/3/10,6/1/11,PUBLICATION REF MATERIAL,407.89,2010,,,,06_30   P1   10OH1000273   THE NEW YORK TIMES
K000336,HON. DENNIS J. KUCINICH,2010Q2,EQUIPMENT,06_30,06_30 S8 MA000959927,6/1/10,6/30/10,EQUIPMENT MAINTENANCE,201,2010,,,,06_30 S8 MA000959927
K000336,HON. DENNIS J. KUCINICH,2010Q2,EQUIPMENT,06_30,06_30 S8 PL000962785,6/1/10,6/30/10,COMP HARDWARE PURCH _ $25000,42.42,2010,,,,06_30 S8 PL000962785
M001140,HON. DENNIS MOORE,2010Q2,TRAVEL,06_30,06_30 P1 10KS0300347        BRANDON J NAYLOR,3/16/10,3/21/10,"TAXI, PARKING, TOLLS",20,2010,,,,06_30 P1 10KS0300347        BRANDON J NAYLOR
M001140,HON. DENNIS MOORE,2010Q2,TRAVEL,06_30,06_30 P1 10KS0300345        CYNTHIA S WENDT,5/6/10,5/20/10,PRIVATE OWNED VEHICLE MILEAGE,42.8,2010,,,,06_30 P1 10KS0300345        CYNTHIA S WENDT
M001140,HON. DENNIS MOORE,2010Q2,TRAVEL,06_30,06_30 P1 10KS0300351        HON. DENNIS MOORE,3/26/10,3/30/10,COMMERCIAL TRANSPORTATION,871.9,2010,,,,06_30 P1 10KS0300351        HON. DENNIS MOORE
M001140,HON. DENNIS MOORE,2010Q2,TRAVEL,06_30,06_30 P1 10KS0300352             DO,4/12/10,4/16/10,COMMERCIAL TRANSPORTATION,565.4,2010,,,,06_30 P1 10KS0300352             DO
M001140,HON. DENNIS MOORE,2010Q2,TRAVEL,06_30,06_30 P1 10KS0300356             DO,5/3/10,5/6/10,COMMERCIAL TRANSPORTATION,565.4,2010,,,,06_30 P1 10KS0300356             DO
M001140,HON. DENNIS MOORE,2010Q2,TRAVEL,06_30,06_30 P1 10KS0300349        RAYMOND F WITTLINGER,2/26/10,3/8/10,PRIVATE OWNED VEHICLE MILEAGE,30.63,2010,,,,06_30 P1 10KS0300349        RAYMOND F WITTLINGER
M001140,HON. DENNIS MOORE,2010Q2,TRAVEL,06_30,06_30 P1 10KS0300350             DO,3/3/10,3/3/10,"TAXI, PARKING, TOLLS",10,2010,,,,06_30 P1 10KS0300350             DO
M001140,HON. DENNIS MOORE,2010Q2,TRAVEL,06_30,06_30 P1 10KS0300344        REID K DAY,3/17/10,5/3/10,PRIVATE OWNED VEHICLE MILEAGE,48.86,2010,,,,06_30 P1 10KS0300344        REID K DAY
M001140,HON. DENNIS MOORE,2010Q2,TRAVEL,06_30,06_30 P1 10KS0300348              DO,5/11/10,5/11/10,"TAXI, PARKING, TOLLS",25,2010,,,,06_30 P1 10KS0300348              DO
M001140,HON. DENNIS MOORE,2010Q2,SUPPLIES AND MATERIALS,06_30,06_30   S1   DY100600277,6/1/10,6/30/10,OFFICE SUPPLY (TRANSFER),"1,252.72",2010,,,,06_30   S1   DY100600277
M001140,HON. DENNIS MOORE,2010Q2,SUPPLIES AND MATERIALS,06_30,06_30   P1   10KS0300346   CYNTHIA S WENDT,5/10/10,5/12/10,FOOD & BEVERAGE,107.98,2010,,,,06_30   P1   10KS0300346   CYNTHIA S WENDT
M001140,HON. DENNIS MOORE,2010Q2,EQUIPMENT,06_30,06_30 S8 MA000959681,6/1/10,6/30/10,EQUIPMENT MAINTENANCE,350.51,2010,,,,06_30 S8 MA000959681
M001140,HON. DENNIS MOORE,2010Q2,EQUIPMENT,06_30,06_30 S8 PL000962490,6/1/10,6/30/10,EQUIPMENT PURCHASE _ $25000,81.46,2010,,,,06_30 S8 PL000962490
R000571,HON. DENNIS R. REHBERG,2010Q2,SUPPLIES AND MATERIALS,06_30,06_30 S1 DY100600094,6/1/10,6/30/10,OFFICE SUPPLY (TRANSFER),491.48,2010,,,,06_30 S1 DY100600094
R000571,HON. DENNIS R. REHBERG,2010Q2,EQUIPMENT,06_30,06_30       S8 MA000959975,6/1/10,6/30/10,EQUIPMENT MAINTENANCE,178.33,2010,,,,06_30       S8 MA000959975
N000181,HON. DEVIN NUNES,2010Q2,TRAVEL,06_30,06_30   P1   10CA2100429                 CITIBANK GOV CARD SERVICE,4/30/10,5/22/10,TRAVEL REIMBURSEMENT,359.62,2010,,,,06_30   P1   10CA2100429                 CITIBANK GOV CARD SERVICE
N000181,HON. DEVIN NUNES,2010Q2,SUPPLIES AND MATERIALS,06_30,06_30   S1   DY100600261,6/1/10,6/30/10,OFFICE SUPPLY (TRANSFER),261.09,2010,,,,06_30   S1   DY100600261
N000181,HON. DEVIN NUNES,2010Q2,SUPPLIES AND MATERIALS,06_30,06_30   C2   NW201018100   BOISE CASCADE,5/19/10,5/19/10,FOOD & BEVERAGE,41.39,2010,,,,06_30   C2   NW201018100   BOISE CASCADE
N000181,HON. DEVIN NUNES,2010Q2,SUPPLIES AND MATERIALS,06_30,06_30   P1   10CA2100360   OFFICE DEPOT,4/22/10,4/22/10,OFFICE SUPPLIES OUTSIDE,112.96,2010,,,,06_30   P1   10CA2100360   OFFICE DEPOT
N000181,HON. DEVIN NUNES,2010Q2,EQUIPMENT,06_30,06_30   S8   MA000959850,6/1/10,6/30/10,EQUIPMENT MAINTENANCE,479.5,2010,,,,06_30   S8   MA000959850
D000197,HON. DIANA DEGETTE,2010Q2,TRAVEL,06_30,06_30 P1 10CO0100377              DO,5/3/10,5/3/10,"TAXI, PARKING, TOLLS",28.75,2010,,,,06_30 P1 10CO0100377              DO
D000197,HON. DIANA DEGETTE,2010Q2,TRAVEL,06_30,06_30 P1 10CO0100378              DO,5/13/10,5/14/10,COMMERCIAL TRANSPORTATION,633.4,2010,,,,06_30 P1 10CO0100378              DO
D000197,HON. DIANA DEGETTE,2010Q2,TRAVEL,06_30,06_30 P1 10CO0100379              DO,5/13/10,5/13/10,COMMERCIAL TRANSPORTATION,50,2010,,,,06_30 P1 10CO0100379              DO
D000197,HON. DIANA DEGETTE,2010Q2,TRAVEL,06_30,06_30 P1 10CO0100380              DO,6/1/10,6/5/10,COMMERCIAL TRANSPORTATION,398.1,2010,,,,06_30 P1 10CO0100380              DO
D000197,HON. DIANA DEGETTE,2010Q2,TRAVEL,06_30,06_30 P1 10CO0100381              DO,5/24/10,5/28/10,COMMERCIAL TRANSPORTATION,339.4,2010,,,,06_30 P1 10CO0100381              DO
D000197,HON. DIANA DEGETTE,2010Q2,TRAVEL,06_30,06_30 P1 10CO0100382              DO,6/4/10,6/4/10,COMMERCIAL TRANSPORTATION,169.7,2010,,,,06_30 P1 10CO0100382              DO
D000197,HON. DIANA DEGETTE,2010Q2,TRAVEL,06_30,06_30 P1 10CO0100383              DO,4/28/10,4/28/10,COMMERCIAL TRANSPORTATION,399,2010,,,,06_30 P1 10CO0100383              DO
D000197,HON. DIANA DEGETTE,2010Q2,TRAVEL,06_30,06_30 P1 10CO0100384              DO,4/29/10,4/29/10,COMMERCIAL TRANSPORTATION,244,2010,,,,06_30 P1 10CO0100384              DO
D000197,HON. DIANA DEGETTE,2010Q2,TRAVEL,06_30,06_30 P1 10CO0100385         HON. DIANA DEGETTE,6/4/10,6/4/10,"TAXI, PARKING, TOLLS",27,2010,,,,06_30 P1 10CO0100385         HON. DIANA DEGETTE
D000197,HON. DIANA DEGETTE,2010Q2,TRAVEL,06_30,06_30 P1 10CO0100386         ISRAPORN PANANON,6/10/10,6/10/10,"TAXI, PARKING, TOLLS",10,2010,,,,06_30 P1 10CO0100386         ISRAPORN PANANON
D000197,HON. DIANA DEGETTE,2010Q2,TRAVEL,06_30,06_30 P1 10CO0100387         JENNIFER CLANAHAN,5/20/10,5/20/10,PRIVATE OWNED VEHICLE MILEAGE,121,2010,,,,06_30 P1 10CO0100387         JENNIFER CLANAHAN
D000197,HON. DIANA DEGETTE,2010Q2,"RENT, COMMUNICATION, UTILITIES",06_30,06_30   P2   HCV1001837                 AT&T MOBILITY,4/30/10,4/30/10,"TELECOM SVC, EQUIP & TOLLS",597,2010,,,,06_30   P2   HCV1001837                 AT&T MOBILITY
D000197,HON. DIANA DEGETTE,2010Q2,"RENT, COMMUNICATION, UTILITIES",06_30,06_30   P2   HCV1001837                          DO,4/30/10,4/30/10,"TELECOM SVC, EQUIP & TOLLS",14.95,2010,,,,06_30   P2   HCV1001837                          DO
D000197,HON. DIANA DEGETTE,2010Q2,"RENT, COMMUNICATION, UTILITIES",06_30,06_30   P1   10CO0100393                COMCAST CABLE,6/3/10,7/2/10,UTILITIES,178.15,2010,,,,06_30   P1   10CO0100393                COMCAST CABLE
D000197,HON. DIANA DEGETTE,2010Q2,OTHER SERVICES,06_30,"06_30 P1 10CO0100389         DCS CONGRESSIONAL, LLC",5/1/10,6/30/10,"WEB DEV,HOSTNG,EMAIL & REL SVC","1,000.00",2010,,,,"06_30 P1 10CO0100389         DCS CONGRESSIONAL, LLC"
D000197,HON. DIANA DEGETTE,2010Q2,SUPPLIES AND MATERIALS,06_30,06_30       S1    DY100600215,6/1/10,6/30/10,OFFICE SUPPLY (TRANSFER),161.82,2010,,,,06_30       S1    DY100600215
D000197,HON. DIANA DEGETTE,2010Q2,SUPPLIES AND MATERIALS,06_30,06_30       P1    10CO0100394               AMBIUS INC. (20),6/1/10,6/30/10,HABITATION EXPENSES,54.5,2010,,,,06_30       P1    10CO0100394               AMBIUS INC. (20)
D000197,HON. DIANA DEGETTE,2010Q2,SUPPLIES AND MATERIALS,06_30,06_30       P1    10CO0100388               CITIBANK GOV CARD SERVICE,4/29/10,4/29/10,AUTOMOBILE EXPENSES,10.95,2010,,,,06_30       P1    10CO0100388               CITIBANK GOV CARD SERVICE
D000197,HON. DIANA DEGETTE,2010Q2,SUPPLIES AND MATERIALS,06_30,06_30       P1    10CO0100395               COLORADO PRESS CLIP SERVICE,5/1/10,5/31/10,PUBLICATION REF MATERIAL,138.25,2010,,,,06_30       P1    10CO0100395               COLORADO PRESS CLIP SERVICE
D000197,HON. DIANA DEGETTE,2010Q2,SUPPLIES AND MATERIALS,06_30,06_30       P1    10CO0100391               HAGUE QUALITY WATER,6/16/10,7/15/10,BOTTLED WATER,59,2010,,,,06_30       P1    10CO0100391               HAGUE QUALITY WATER
D000197,HON. DIANA DEGETTE,2010Q2,SUPPLIES AND MATERIALS,06_30,06_30       P1    10CO0100392               HERALD DISPATCH,6/4/10,6/3/11,PUBLICATION REF MATERIAL,30,2010,,,,06_30       P1    10CO0100392               HERALD DISPATCH
D000197,HON. DIANA DEGETTE,2010Q2,EQUIPMENT,06_30,06_30       S8    MA000959009,6/1/10,6/30/10,EQUIPMENT MAINTENANCE,50,2010,,,,06_30       S8    MA000959009
W000794,HON. DIANE E. WATSON,2010Q2,"RENT, COMMUNICATION, UTILITIES",06_30,06_30   P1   10CA3300364                  UNITED PARCEL SERVICE,5/27/10,5/27/10,POSTAGE/COURIER/BOX RENTAL,10.6,2010,,,,06_30   P1   10CA3300364                  UNITED PARCEL SERVICE
W000794,HON. DIANE E. WATSON,2010Q2,SUPPLIES AND MATERIALS,06_30,06_30 S1 DY100600403,6/1/10,6/30/10,OFFICE SUPPLY (TRANSFER),289.93,2010,,,,06_30 S1 DY100600403
W000794,HON. DIANE E. WATSON,2010Q2,SUPPLIES AND MATERIALS,06_30,06_30 P1 10CA3300365         OFFICE DEPOT,6/3/10,6/3/10,OFFICE SUPPLIES OUTSIDE,167.54,2010,,,,06_30 P1 10CA3300365         OFFICE DEPOT
W000794,HON. DIANE E. WATSON,2010Q2,SUPPLIES AND MATERIALS,06_30,06_30 P1 10CA3300363         SPARKLETTS AND SIERRA SPRINGS,5/18/10,6/1/10,BOTTLED WATER,51.24,2010,,,,06_30 P1 10CA3300363         SPARKLETTS AND SIERRA SPRINGS
W000794,HON. DIANE E. WATSON,2010Q2,EQUIPMENT,06_30,06_30      S8    MA000958169,6/1/10,6/30/10,EQUIPMENT MAINTENANCE,32,2010,,,,06_30      S8    MA000958169
T000468,HON. DINA TITUS,2010Q2,SUPPLIES AND MATERIALS,06_30,06_30     S1   DY100600435,6/1/10,6/30/10,OFFICE SUPPLY (TRANSFER),121.78,2010,,,,06_30     S1   DY100600435
T000468,HON. DINA TITUS,2010Q2,EQUIPMENT,06_30,06_30     S8 MA000959368,6/1/10,6/30/10,EQUIPMENT MAINTENANCE,348.33,2010,,,,06_30     S8 MA000959368
Y000033,HON. DON YOUNG,2010Q2,SUPPLIES AND MATERIALS,06_30,06_30   S1   DY100600251,6/1/10,6/30/10,OFFICE SUPPLY (TRANSFER),236.07,2010,,,,06_30   S1   DY100600251
Y000033,HON. DON YOUNG,2010Q2,EQUIPMENT,06_30,06_30 S8 MA000957870,6/1/10,6/30/10,EQUIPMENT MAINTENANCE,102.11,2010,,,,06_30 S8 MA000957870
M001138,HON. DONALD A MANZULLO,2010Q2,"RENT, COMMUNICATION, UTILITIES",06_30,06_30   P2   HCV1002100                   AT&T MOBILITY,6/17/10,6/17/10,"TELECOM SVC, EQUIP & TOLLS",150,2010,,,,06_30   P2   HCV1002100                   AT&T MOBILITY
M001138,HON. DONALD A MANZULLO,2010Q2,SUPPLIES AND MATERIALS,06_30,06_30 S1 DY100600123,6/1/10,6/30/10,OFFICE SUPPLY (TRANSFER),982.58,2010,,,,06_30 S1 DY100600123
M001138,HON. DONALD A MANZULLO,2010Q2,EQUIPMENT,06_30,06_30       S8     MA000959705,6/1/10,6/30/10,EQUIPMENT MAINTENANCE,180,2010,,,,06_30       S8     MA000959705
P000149,HON. DONALD M PAYNE,2010Q2,SUPPLIES AND MATERIALS,06_30,06_30       S1    DY100600038,6/1/10,6/30/10,OFFICE SUPPLY (TRANSFER),224.49,2010,,,,06_30       S1    DY100600038
P000149,HON. DONALD M PAYNE,2010Q2,EQUIPMENT,06_30,06_30       S8    MA000957798,6/1/10,6/30/10,EQUIPMENT MAINTENANCE,674.02,2010,,,,06_30       S8    MA000957798
E000290,HON. DONNA F. EDWARDS,2010Q2,TRAVEL,06_30,06_30   P1   10MD0400217                 JENNIFER P GORE,6/8/10,6/19/10,PRIVATE OWNED VEHICLE MILEAGE,107.57,2010,,,,06_30   P1   10MD0400217                 JENNIFER P GORE
E000290,HON. DONNA F. EDWARDS,2010Q2,"RENT, COMMUNICATION, UTILITIES",06_30,06_30   P1   10MD0400218     MONTGOMERY COUNTY,7/7/10,7/7/10,TEMPORARY SPACE RENTAL,91,2010,,,,06_30   P1   10MD0400218     MONTGOMERY COUNTY
E000290,HON. DONNA F. EDWARDS,2010Q2,PRINTING AND REPRODUCTION,06_30,06_30 P1 10MD0400219         ACCURATE WORD LLC,3/19/10,3/19/10,PRINTING AND REPRODUCTION,246.45,2010,,,,06_30 P1 10MD0400219         ACCURATE WORD LLC
E000290,HON. DONNA F. EDWARDS,2010Q2,SUPPLIES AND MATERIALS,06_30,06_30 S1 DY100600182,6/1/10,6/30/10,OFFICE SUPPLY (TRANSFER),238.89,2010,,,,06_30 S1 DY100600182
E000290,HON. DONNA F. EDWARDS,2010Q2,EQUIPMENT,06_30,06_30       S8 MA000959615,6/1/10,6/30/10,EQUIPMENT MAINTENANCE,452.6,2010,,,,06_30       S8 MA000959615
C000380,HON. DONNA MC CHRISTENSEN,2010Q2,"RENT, COMMUNICATION, UTILITIES",06_30,"06_30   P1   10VI0000370                  POSTMASTER, WASHINGTON, D.C",5/26/10,5/26/10,POSTAGE/COURIER/BOX RENTAL,5.49,2010,,,,"06_30   P1   10VI0000370                  POSTMASTER, WASHINGTON, D.C"
C000380,HON. DONNA MC CHRISTENSEN,2010Q2,"RENT, COMMUNICATION, UTILITIES",06_30,06_30   P1   10VI0000371                           DO,5/26/10,5/26/10,POSTAGE/COURIER/BOX RENTAL,206.85,2010,,,,06_30   P1   10VI0000371                           DO
C000380,HON. DONNA MC CHRISTENSEN,2010Q2,"RENT, COMMUNICATION, UTILITIES",06_30,06_30   P1   10VI0000372                           DO,5/27/10,5/27/10,POSTAGE/COURIER/BOX RENTAL,13.65,2010,,,,06_30   P1   10VI0000372                           DO
C000380,HON. DONNA MC CHRISTENSEN,2010Q2,"RENT, COMMUNICATION, UTILITIES",06_30,06_30   P1   10VI0000373                           DO,6/3/10,6/3/10,POSTAGE/COURIER/BOX RENTAL,10.7,2010,,,,06_30   P1   10VI0000373                           DO
C000380,HON. DONNA MC CHRISTENSEN,2010Q2,"RENT, COMMUNICATION, UTILITIES",06_30,06_30   P1   10VI0000374                           DO,6/9/10,6/9/10,POSTAGE/COURIER/BOX RENTAL,26.2,2010,,,,06_30   P1   10VI0000374                           DO
C000380,HON. DONNA MC CHRISTENSEN,2010Q2,"RENT, COMMUNICATION, UTILITIES",06_30,06_30   P1   10VI0000375                           DO,6/10/10,6/10/10,POSTAGE/COURIER/BOX RENTAL,33.45,2010,,,,06_30   P1   10VI0000375                           DO
C000380,HON. DONNA MC CHRISTENSEN,2010Q2,"RENT, COMMUNICATION, UTILITIES",06_30,06_30   P1   10VI0000376                           DO,6/11/10,6/11/10,POSTAGE/COURIER/BOX RENTAL,4.9,2010,,,,06_30   P1   10VI0000376                           DO
C000380,HON. DONNA MC CHRISTENSEN,2010Q2,"RENT, COMMUNICATION, UTILITIES",06_30,06_30   P1   10VI0000377                           DO,6/14/10,6/14/10,POSTAGE/COURIER/BOX RENTAL,4.9,2010,,,,06_30   P1   10VI0000377                           DO
C000380,HON. DONNA MC CHRISTENSEN,2010Q2,OTHER SERVICES,06_30,06_30   P1   10VI0000382                  ALARMCO,6/15/10,6/15/10,NON-TECHNOLOGY SERVICE CONTRCT,450,2010,,,,06_30   P1   10VI0000382                  ALARMCO
C000380,HON. DONNA MC CHRISTENSEN,2010Q2,OTHER SERVICES,06_30,06_30   P1   10VI0000378                  KAREEM FELIX,6/15/10,6/25/10,JANITORIAL & MAINTENANCE SVCS,225,2010,,,,06_30   P1   10VI0000378                  KAREEM FELIX
C000380,HON. DONNA MC CHRISTENSEN,2010Q2,OTHER SERVICES,06_30,06_30   P1   10VI0000379                       DO,6/1/10,6/11/10,JANITORIAL & MAINTENANCE SVCS,225,2010,,,,06_30   P1   10VI0000379                       DO
C000380,HON. DONNA MC CHRISTENSEN,2010Q2,OTHER SERVICES,06_30,06_30   P1   10VI0000381                  RAYMOND VENTURA,6/11/10,6/11/10,NON-TECHNOLOGY SERVICE CONTRCT,"2,275.00",2010,,,,06_30   P1   10VI0000381                  RAYMOND VENTURA
C000380,HON. DONNA MC CHRISTENSEN,2010Q2,SUPPLIES AND MATERIALS,06_30,06_30 S1 DY100600507,6/1/10,6/30/10,OFFICE SUPPLY (TRANSFER),268.84,2010,,,,06_30 S1 DY100600507
C000380,HON. DONNA MC CHRISTENSEN,2010Q2,SUPPLIES AND MATERIALS,06_30,06_30 C2 NW201018104        BOISE CASCADE,5/26/10,5/26/10,OFFICE SUPPLIES OUTSIDE,82.08,2010,,,,06_30 C2 NW201018104        BOISE CASCADE
C000380,HON. DONNA MC CHRISTENSEN,2010Q2,SUPPLIES AND MATERIALS,06_30,06_30 P1 10VI0000380        LUZ BELARDO-WEBSTER,5/20/10,5/20/10,HABITATION EXPENSES,42.3,2010,,,,06_30 P1 10VI0000380        LUZ BELARDO-WEBSTER
C000380,HON. DONNA MC CHRISTENSEN,2010Q2,EQUIPMENT,06_30,06_30      S8 MA000959625,6/1/10,6/30/10,EQUIPMENT MAINTENANCE,338.83,2010,,,,06_30      S8 MA000959625
M001163,HON. DORIS MATSUI,2010Q2,SUPPLIES AND MATERIALS,06_30,06_30 S1 DY100600207,6/1/10,6/30/10,OFFICE SUPPLY (TRANSFER),235.5,2010,,,,06_30 S1 DY100600207
M001163,HON. DORIS MATSUI,2010Q2,EQUIPMENT,06_30,06_30       S8     MA000959565,6/1/10,6/30/10,EQUIPMENT MAINTENANCE,218.91,2010,,,,06_30       S8     MA000959565
M001163,HON. DORIS MATSUI,2010Q2,EQUIPMENT,06_30,06_30       S8     PL000962528,6/1/10,6/30/10,COMP HARDWARE PURCH _ $25000,107.96,2010,,,,06_30       S8     PL000962528
L000564,HON. DOUG LAMBORN,2010Q2,TRAVEL,06_30,06_30 P1 10CO0500282        DANIEL NORDBERG,6/17/10,6/18/10,LODGING,204.96,2010,,,,06_30 P1 10CO0500282        DANIEL NORDBERG
L000564,HON. DOUG LAMBORN,2010Q2,TRAVEL,06_30,06_30 P1 10CO0500283             DO,6/13/10,6/17/10,MEALS,121.83,2010,,,,06_30 P1 10CO0500283             DO
L000564,HON. DOUG LAMBORN,2010Q2,TRAVEL,06_30,06_30 P1 10CO0500284             DO,6/13/10,6/17/10,"TAXI, PARKING, TOLLS",50.7,2010,,,,06_30 P1 10CO0500284             DO
L000564,HON. DOUG LAMBORN,2010Q2,TRAVEL,06_30,06_30 P1 10CO0500281        GLORIA GATES,6/16/10,6/19/10,PRIVATE OWNED VEHICLE MILEAGE,112.61,2010,,,,06_30 P1 10CO0500281        GLORIA GATES
L000564,HON. DOUG LAMBORN,2010Q2,SUPPLIES AND MATERIALS,06_30,06_30      S1    DY100600110,6/1/10,6/30/10,OFFICE SUPPLY (TRANSFER),402.28,2010,,,,06_30      S1    DY100600110
L000564,HON. DOUG LAMBORN,2010Q2,EQUIPMENT,06_30,06_30      S8 MA000959824,6/1/10,6/30/10,EQUIPMENT MAINTENANCE,119,2010,,,,06_30      S8 MA000959824
H001048,HON. DUNCAN HUNTER,2010Q2,SUPPLIES AND MATERIALS,06_30,06_30 S1 DY100600153,6/1/10,6/30/10,OFFICE SUPPLY (TRANSFER),"2,353.55",2010,,,,06_30 S1 DY100600153
H001048,HON. DUNCAN HUNTER,2010Q2,EQUIPMENT,06_30,06_30       S8    MA000959583,6/1/10,6/30/10,EQUIPMENT MAINTENANCE,322.5,2010,,,,06_30       S8    MA000959583
B000574,HON. EARL BLUMENAUER,2010Q2,SUPPLIES AND MATERIALS,06_30,06_30 S1 DY100600517,6/1/10,6/30/10,OFFICE SUPPLY (TRANSFER),116.97,2010,,,,06_30 S1 DY100600517
B000574,HON. EARL BLUMENAUER,2010Q2,EQUIPMENT,06_30,06_30       S8 MA000957983,6/1/10,6/30/10,EQUIPMENT MAINTENANCE,133.28,2010,,,,06_30       S8 MA000957983
P000422,HON. EARL POMEROY,2010Q2,SUPPLIES AND MATERIALS,06_30,06_30       S1    DY100600133,6/1/10,6/30/10,OFFICE SUPPLY (TRANSFER),564.58,2010,,,,06_30       S1    DY100600133
P000422,HON. EARL POMEROY,2010Q2,EQUIPMENT,06_30,06_30    S8 MA000959624,6/1/10,6/30/10,EQUIPMENT MAINTENANCE,254.07,2010,,,,06_30    S8 MA000959624
P000099,HON. ED PASTOR,2010Q2,SUPPLIES AND MATERIALS,06_30,06_30      S1    DY100600102,6/1/10,6/30/10,OFFICE SUPPLY (TRANSFER),367.77,2010,,,,06_30      S1    DY100600102
P000099,HON. ED PASTOR,2010Q2,EQUIPMENT,06_30,06_30      S8    MA000958062,6/1/10,6/30/10,EQUIPMENT MAINTENANCE,226.04,2010,,,,06_30      S8    MA000958062
P000593,HON. ED PERLMUTTER,2010Q2,TRAVEL,06_30,06_30   P1   10CO0700358                 AMERICAN COACH,6/8/10,6/8/10,"TAXI, PARKING, TOLLS",130.5,2010,,,,06_30   P1   10CO0700358                 AMERICAN COACH
P000593,HON. ED PERLMUTTER,2010Q2,TRAVEL,06_30,06_30   P1   10CO0700365                 BILL HOLEN,6/10/10,6/10/10,PRIVATE OWNED VEHICLE MILEAGE,110.81,2010,,,,06_30   P1   10CO0700365                 BILL HOLEN
P000593,HON. ED PERLMUTTER,2010Q2,TRAVEL,06_30,06_30   P1   10CO0700364                 JERRY PIFER,5/27/10,6/11/10,PRIVATE OWNED VEHICLE MILEAGE,102.49,2010,,,,06_30   P1   10CO0700364                 JERRY PIFER
P000593,HON. ED PERLMUTTER,2010Q2,TRAVEL,06_30,06_30   P1   10CO0700363                 SUZETTE HUDSON,6/5/10,6/6/10,PRIVATE OWNED VEHICLE MILEAGE,31.13,2010,,,,06_30   P1   10CO0700363                 SUZETTE HUDSON
P000593,HON. ED PERLMUTTER,2010Q2,PRINTING AND REPRODUCTION,06_30,06_30       P1     10CO0700367      C & D PRINTING,4/8/10,4/8/10,PRINTING AND REPRODUCTION,"1,475.00",2010,,,,06_30       P1     10CO0700367      C & D PRINTING
P000593,HON. ED PERLMUTTER,2010Q2,OTHER SERVICES,06_30,"06_30   P1   10CO0700362                  DCS CONGRESSIONAL, LLC",1/1/10,6/30/10,"WEB DEV,HOSTNG,EMAIL & REL SVC",750,2010,,,,"06_30   P1   10CO0700362                  DCS CONGRESSIONAL, LLC"
P000593,HON. ED PERLMUTTER,2010Q2,SUPPLIES AND MATERIALS,06_30,06_30 S1 DY100600459,6/1/10,6/30/10,OFFICE SUPPLY (TRANSFER),323.73,2010,,,,06_30 S1 DY100600459
P000593,HON. ED PERLMUTTER,2010Q2,SUPPLIES AND MATERIALS,06_30,"06_30 P1 10CO0700361         DCS CONGRESSIONAL, LLC",5/1/10,6/30/10,PUBLICATION REF MATERIAL,"1,000.00",2010,,,,"06_30 P1 10CO0700361         DCS CONGRESSIONAL, LLC"
P000593,HON. ED PERLMUTTER,2010Q2,SUPPLIES AND MATERIALS,06_30,06_30 P1 10CO0700360         DEER PARK WATER,5/1/10,5/31/10,BOTTLED WATER,59.69,2010,,,,06_30 P1 10CO0700360         DEER PARK WATER
P000593,HON. ED PERLMUTTER,2010Q2,SUPPLIES AND MATERIALS,06_30,06_30 P1 10CO0700366         QUILL CORPORATION,5/25/10,5/25/10,OFFICE SUPPLIES OUTSIDE,447.25,2010,,,,06_30 P1 10CO0700366         QUILL CORPORATION
P000593,HON. ED PERLMUTTER,2010Q2,SUPPLIES AND MATERIALS,06_30,06_30 P1 10CO0700359         ROCKY MOUNTAIN BOTTLED WATER,6/1/10,6/30/10,BOTTLED WATER,35.95,2010,,,,06_30 P1 10CO0700359         ROCKY MOUNTAIN BOTTLED WATER
P000593,HON. ED PERLMUTTER,2010Q2,EQUIPMENT,06_30,06_30       S8 MA000959407,6/1/10,6/30/10,EQUIPMENT MAINTENANCE,236,2010,,,,06_30       S8 MA000959407
W000413,HON. ED WHITFIELD,2010Q2,"RENT, COMMUNICATION, UTILITIES",06_30,"06_30   P1   10KY0100323                CITIZEN DIALOG, LLC",6/10/10,6/10/10,"TELECOM SVC, EQUIP & TOLLS","2,500.00",2010,,,,"06_30   P1   10KY0100323                CITIZEN DIALOG, LLC"
W000413,HON. ED WHITFIELD,2010Q2,"RENT, COMMUNICATION, UTILITIES",06_30,06_30   P1   10KY0100324                         DO,6/10/10,6/10/10,"TELECOM SVC, EQUIP & TOLLS","2,500.00",2010,,,,06_30   P1   10KY0100324                         DO
W000413,HON. ED WHITFIELD,2010Q2,"RENT, COMMUNICATION, UTILITIES",06_30,06_30   P1   10KY0100325                         DO,6/10/10,6/10/10,"TELECOM SVC, EQUIP & TOLLS","2,500.00",2010,,,,06_30   P1   10KY0100325                         DO
W000413,HON. ED WHITFIELD,2010Q2,SUPPLIES AND MATERIALS,06_30,06_30    S1    DY100600087,6/1/10,6/30/10,OFFICE SUPPLY (TRANSFER),811.54,2010,,,,06_30    S1    DY100600087
W000413,HON. ED WHITFIELD,2010Q2,SUPPLIES AND MATERIALS,06_30,06_30    P1    10KY0100319               JASON T HASERT,5/26/10,5/26/10,FOOD & BEVERAGE,10.2,2010,,,,06_30    P1    10KY0100319               JASON T HASERT
W000413,HON. ED WHITFIELD,2010Q2,EQUIPMENT,06_30,06_30    S8    MA000957810,6/1/10,6/30/10,EQUIPMENT MAINTENANCE,339.76,2010,,,,06_30    S8    MA000957810
J000126,HON. EDDIE BERNICE JOHNSON,2010Q2,"RENT, COMMUNICATION, UTILITIES",06_30,06_30 P1 10TX3000252          AT&T,4/29/10,5/28/10,"TELECOM SVC, EQUIP & TOLLS",758.6,2010,,,,06_30 P1 10TX3000252          AT&T
J000126,HON. EDDIE BERNICE JOHNSON,2010Q2,OTHER SERVICES,06_30,06_30   P1   10TX3000251                  ICONSTITUENT LLC,6/1/10,6/30/10,"WEB DEV,HOSTNG,EMAIL & REL SVC","1,149.00",2010,,,,06_30   P1   10TX3000251                  ICONSTITUENT LLC
J000126,HON. EDDIE BERNICE JOHNSON,2010Q2,SUPPLIES AND MATERIALS,06_30,06_30 S1 DY100600304,6/1/10,6/30/10,OFFICE SUPPLY (TRANSFER),721.97,2010,,,,06_30 S1 DY100600304
J000126,HON. EDDIE BERNICE JOHNSON,2010Q2,EQUIPMENT,06_30,06_30       S8 MA000958178,6/1/10,6/30/10,EQUIPMENT MAINTENANCE,212,2010,,,,06_30       S8 MA000958178
T000326,HON. EDOLPHUS TOWNS,2010Q2,SUPPLIES AND MATERIALS,06_30,06_30       S1    DY100600436,6/1/10,6/30/10,OFFICE SUPPLY (TRANSFER),"1,106.49",2010,,,,06_30       S1    DY100600436
T000326,HON. EDOLPHUS TOWNS,2010Q2,EQUIPMENT,06_30,06_30       S8 MA000959683,6/1/10,6/30/10,EQUIPMENT MAINTENANCE,520.37,2010,,,,06_30       S8 MA000959683
M000133,HON. EDWARD J MARKEY,2010Q2,SUPPLIES AND MATERIALS,06_30,06_30   S1   DY100600181,6/1/10,6/30/10,OFFICE SUPPLY (TRANSFER),212.48,2010,,,,06_30   S1   DY100600181
M000133,HON. EDWARD J MARKEY,2010Q2,EQUIPMENT,06_30,06_30   S8 MA000959611,6/1/10,6/30/10,EQUIPMENT MAINTENANCE,163,2010,,,,06_30   S8 MA000959611
R000487,HON. EDWARD R ROYCE,2010Q2,TRAVEL,06_30,06_30 P1 10CA4000364             DO,5/7/10,5/31/10,GASOLINE,83.23,2010,,,,06_30 P1 10CA4000364             DO
R000487,HON. EDWARD R ROYCE,2010Q2,TRAVEL,06_30,06_30 P1 10CA4000362        YOUNG O KIM,6/7/10,6/10/10,COMMERCIAL TRANSPORTATION,329.4,2010,,,,06_30 P1 10CA4000362        YOUNG O KIM
R000487,HON. EDWARD R ROYCE,2010Q2,TRAVEL,06_30,06_30 P1 10CA4000363             DO,6/7/10,6/10/10,TRAVEL REIMBURSEMENT,746.19,2010,,,,06_30 P1 10CA4000363             DO
R000487,HON. EDWARD R ROYCE,2010Q2,"RENT, COMMUNICATION, UTILITIES",06_30,06_30 P1 10CA4000360        AT&T MOBILITY,5/7/10,6/6/10,"TELECOM SVC, EQUIP & TOLLS",610.46,2010,,,,06_30 P1 10CA4000360        AT&T MOBILITY
R000487,HON. EDWARD R ROYCE,2010Q2,"RENT, COMMUNICATION, UTILITIES",06_30,06_30 P1 10CA4000361        UNITED PARCEL SERVICE,6/16/10,6/16/10,POSTAGE/COURIER/BOX RENTAL,6,2010,,,,06_30 P1 10CA4000361        UNITED PARCEL SERVICE
R000487,HON. EDWARD R ROYCE,2010Q2,"RENT, COMMUNICATION, UTILITIES",06_30,06_30 HV 10A90300878        UPS,2/27/10,2/27/10,POSTAGE/COURIER/BOX RENTAL,12.24,2010,,,,06_30 HV 10A90300878        UPS
R000487,HON. EDWARD R ROYCE,2010Q2,SUPPLIES AND MATERIALS,06_30,06_30      S1   DY100600457,6/1/10,6/30/10,OFFICE SUPPLY (TRANSFER),"3,768.13",2010,,,,06_30      S1   DY100600457
R000487,HON. EDWARD R ROYCE,2010Q2,EQUIPMENT,06_30,06_30      S8   MA000958670,6/1/10,6/30/10,EQUIPMENT MAINTENANCE,236.67,2010,,,,06_30      S8   MA000958670
N000147,HON. ELEANOR HOLMES NORTON,2010Q2,"RENT, COMMUNICATION, UTILITIES",06_30,"06_30 P1 10DC0000214        PROJECTION, INC",6/10/10,6/10/10,EQUIPMENT RENTAL,"1,525.00",2010,,,,"06_30 P1 10DC0000214        PROJECTION, INC"
N000147,HON. ELEANOR HOLMES NORTON,2010Q2,"RENT, COMMUNICATION, UTILITIES",06_30,06_30 P1 10DC0000213        SPRINT,3/22/10,4/21/10,"TELECOM SVC, EQUIP & TOLLS",11.98,2010,,,,06_30 P1 10DC0000213        SPRINT
N000147,HON. ELEANOR HOLMES NORTON,2010Q2,"RENT, COMMUNICATION, UTILITIES",06_30,06_30 P1 10DC0000212        VERIZON,5/11/10,6/10/10,"TELECOM SVC, EQUIP & TOLLS",264.61,2010,,,,06_30 P1 10DC0000212        VERIZON
N000147,HON. ELEANOR HOLMES NORTON,2010Q2,SUPPLIES AND MATERIALS,06_30,06_30 S1 DY100600407,6/1/10,6/30/10,OFFICE SUPPLY (TRANSFER),"1,309.81",2010,,,,06_30 S1 DY100600407
N000147,HON. ELEANOR HOLMES NORTON,2010Q2,SUPPLIES AND MATERIALS,06_30,06_30 P1 10DC0000210        THE WASHINGTON POST,7/1/10,12/14/10,PUBLICATION REF MATERIAL,129.36,2010,,,,06_30 P1 10DC0000210        THE WASHINGTON POST
N000147,HON. ELEANOR HOLMES NORTON,2010Q2,EQUIPMENT,06_30,06_30       S8     MA000959660,6/1/10,6/30/10,EQUIPMENT MAINTENANCE,349.94,2010,,,,06_30       S8     MA000959660
N000147,HON. ELEANOR HOLMES NORTON,2010Q2,EQUIPMENT,06_30,06_30       S8     PL000962209,6/1/10,6/30/10,COMP HARDWARE PURCH _ $25000,567.95,2010,,,,06_30       S8     PL000962209
N000147,HON. ELEANOR HOLMES NORTON,2010Q2,EQUIPMENT,06_30,06_30       S8     PL000962439,6/1/10,6/30/10,EQUIPMENT PURCHASE _ $25000,413.25,2010,,,,06_30       S8     PL000962439
C000984,HON. ELIJAH CUMMINGS,2010Q2,SUPPLIES AND MATERIALS,06_30,06_30 S1 DY100600240,6/1/10,6/30/10,OFFICE SUPPLY (TRANSFER),373.68,2010,,,,06_30 S1 DY100600240
C000984,HON. ELIJAH CUMMINGS,2010Q2,SUPPLIES AND MATERIALS,06_30,06_30 P1 10MD0700210         STAPLES CREDIT PLAN,6/2/10,6/10/10,OFFICE SUPPLIES OUTSIDE,751.01,2010,,,,06_30 P1 10MD0700210         STAPLES CREDIT PLAN
C000984,HON. ELIJAH CUMMINGS,2010Q2,EQUIPMENT,06_30,06_30       S8 MA000957877,6/1/10,6/30/10,EQUIPMENT MAINTENANCE,211.07,2010,,,,06_30       S8 MA000957877
E000179,HON. ELIOT L ENGEL,2010Q2,TRAVEL,06_30,06_30 P1 10NY1700185          JOSEPH R. O'BRIEN,6/18/10,6/18/10,TRAVEL REIMBURSEMENT,22.1,2010,,,,06_30 P1 10NY1700185          JOSEPH R. O'BRIEN
E000179,HON. ELIOT L ENGEL,2010Q2,"RENT, COMMUNICATION, UTILITIES",06_30,06_30   P1   10NY1700182                  JAF STATION,5/7/10,6/8/10,UTILITIES,221.82,2010,,,,06_30   P1   10NY1700182                  JAF STATION
E000179,HON. ELIOT L ENGEL,2010Q2,"RENT, COMMUNICATION, UTILITIES",06_30,06_30   P1   10NY1700183                           DO,5/7/10,6/8/10,UTILITIES,422.16,2010,,,,06_30   P1   10NY1700183                           DO
E000179,HON. ELIOT L ENGEL,2010Q2,"RENT, COMMUNICATION, UTILITIES",06_30,06_30   P1   10NY1700184                  ORANGE AND ROCKLAND UTILITES,5/10/10,6/8/10,UTILITIES,255.5,2010,,,,06_30   P1   10NY1700184                  ORANGE AND ROCKLAND UTILITES
E000179,HON. ELIOT L ENGEL,2010Q2,SUPPLIES AND MATERIALS,06_30,06_30 S1 DY100600437,6/1/10,6/30/10,OFFICE SUPPLY (TRANSFER),31.54,2010,,,,06_30 S1 DY100600437
E000179,HON. ELIOT L ENGEL,2010Q2,EQUIPMENT,06_30,06_30       S8 MA000957895,6/1/10,6/30/10,EQUIPMENT MAINTENANCE,391.64,2010,,,,06_30       S8 MA000957895
G000021,HON. ELTON GALLEGLY,2010Q2,SUPPLIES AND MATERIALS,06_30,06_30      S1    DY100600400,6/1/10,6/30/10,OFFICE SUPPLY (TRANSFER),424.83,2010,,,,06_30      S1    DY100600400
G000021,HON. ELTON GALLEGLY,2010Q2,EQUIPMENT,06_30,06_30      S8    MA000958983,6/1/10,6/30/10,EQUIPMENT MAINTENANCE,275.32,2010,,,,06_30      S8    MA000958983
C001061,HON. EMANUEL CLEAVER,2010Q2,SUPPLIES AND MATERIALS,06_30,06_30       S1    DY100600247,6/1/10,6/30/10,OFFICE SUPPLY (TRANSFER),692.9,2010,,,,06_30       S1    DY100600247
C001061,HON. EMANUEL CLEAVER,2010Q2,EQUIPMENT,06_30,06_30       S8 MA000958080,6/1/10,6/30/10,EQUIPMENT MAINTENANCE,601.27,2010,,,,06_30       S8 MA000958080
F000010,HON. ENI F H FALEOMAVAEGA,2010Q2,SUPPLIES AND MATERIALS,06_30,06_30     S1    DY100600005,6/1/10,6/30/10,OFFICE SUPPLY (TRANSFER),460.85,2010,,,,06_30     S1    DY100600005
F000010,HON. ENI F H FALEOMAVAEGA,2010Q2,SUPPLIES AND MATERIALS,06_30,06_30     C2    NW201018100            BOISE CASCADE,5/25/10,5/25/10,OFFICE SUPPLIES OUTSIDE,68.66,2010,,,,06_30     C2    NW201018100            BOISE CASCADE
F000010,HON. ENI F H FALEOMAVAEGA,2010Q2,SUPPLIES AND MATERIALS,06_30,06_30     C2    NW201018100                     DO,5/27/10,5/27/10,OFFICE SUPPLIES OUTSIDE,153.24,2010,,,,06_30     C2    NW201018100                     DO
F000010,HON. ENI F H FALEOMAVAEGA,2010Q2,EQUIPMENT,06_30,06_30     S8    MA000959964,6/1/10,6/30/10,EQUIPMENT MAINTENANCE,118.25,2010,,,,06_30     S8    MA000959964
C001046,HON. ERIC CANTOR,2010Q2,SUPPLIES AND MATERIALS,06_30,06_30 S1 DY100600394,6/1/10,6/30/10,OFFICE SUPPLY (TRANSFER),291.8,2010,,,,06_30 S1 DY100600394
C001046,HON. ERIC CANTOR,2010Q2,EQUIPMENT,06_30,06_30       S8 MA000959834,6/1/10,6/30/10,EQUIPMENT MAINTENANCE,460,2010,,,,06_30       S8 MA000959834
M001173,HON. ERIC J. J. MASSA,2010Q2,TRAVEL,06_30,06_30   P1 10NY2900320                           DO,3/12/10,4/16/10,PRIVATE OWNED VEHICLE MILEAGE,378.84,2010,,,,06_30   P1 10NY2900320                           DO
M001173,HON. ERIC J. J. MASSA,2010Q2,OTHER SERVICES,06_30,06_30      P1    10NY2900319                WILLIAM SCHMITZ,3/17/10,4/15/10,JANITORIAL & MAINTENANCE SVCS,40,2010,,,,06_30      P1    10NY2900319                WILLIAM SCHMITZ
M001173,HON. ERIC J. J. MASSA,2010Q2,SUPPLIES AND MATERIALS,06_30,06_30      S1    DY100600194,6/1/10,6/30/10,OFFICE SUPPLY (TRANSFER),945,2010,,,,06_30      S1    DY100600194
M001173,HON. ERIC J. J. MASSA,2010Q2,EQUIPMENT,06_30,06_30      S8    MA000959899,6/1/10,6/30/10,EQUIPMENT MAINTENANCE,445.97,2010,,,,06_30      S8    MA000959899
M001173,HON. ERIC J. J. MASSA,2010Q2,EQUIPMENT,06_30,06_30      S8    PL000962673,6/1/10,6/30/10,COMP HARDWARE PURCH _ $25000,"1,087.25",2010,,,,06_30      S8    PL000962673
P000594,HON. ERIK PAULSEN,2010Q2,SUPPLIES AND MATERIALS,06_30,06_30   S1   DY100600288,6/1/10,6/30/10,OFFICE SUPPLY (TRANSFER),465.52,2010,,,,06_30   S1   DY100600288
P000594,HON. ERIK PAULSEN,2010Q2,EQUIPMENT,06_30,06_30   S8 MA000957797,6/1/10,6/30/10,EQUIPMENT MAINTENANCE,126.42,2010,,,,06_30   S8 MA000957797
S000244,HON. F JAMES SENSENBRENNER JR,2010Q2,SUPPLIES AND MATERIALS,06_30,06_30      S1    DY100600528,6/1/10,6/30/10,OFFICE SUPPLY (TRANSFER),225.99,2010,,,,06_30      S1    DY100600528
S000244,HON. F JAMES SENSENBRENNER JR,2010Q2,SUPPLIES AND MATERIALS,06_30,06_30      C2    NW201018104              BOISE CASCADE,5/24/10,5/24/10,OFFICE SUPPLIES OUTSIDE,149.08,2010,,,,06_30      C2    NW201018104              BOISE CASCADE
S000244,HON. F JAMES SENSENBRENNER JR,2010Q2,EQUIPMENT,06_30,06_30      S8    MA000959966,6/1/10,6/30/10,EQUIPMENT MAINTENANCE,364.71,2010,,,,06_30      S8    MA000959966
S000244,HON. F JAMES SENSENBRENNER JR,2010Q2,EQUIPMENT,06_30,06_30      S8    PL000962647,6/1/10,6/30/10,COMP HARDWARE PURCH _ $25000,287.1,2010,,,,06_30      S8    PL000962647
S000810,HON. FORTNEY PETE STARK,2010Q2,SUPPLIES AND MATERIALS,06_30,06_30       S1    DY100600453,6/1/10,6/30/10,OFFICE SUPPLY (TRANSFER),415.52,2010,,,,06_30       S1    DY100600453
S000810,HON. FORTNEY PETE STARK,2010Q2,EQUIPMENT,06_30,06_30       S8    MA000959941,6/1/10,6/30/10,EQUIPMENT MAINTENANCE,87.67,2010,,,,06_30       S8    MA000959941
S000810,HON. FORTNEY PETE STARK,2010Q2,EQUIPMENT,06_30,06_30       S8    PL000962759,6/1/10,6/30/10,COMP HARDWARE PURCH _ $25000,31.04,2010,,,,06_30       S8    PL000962759
L000554,HON. FRANK A LOBIONDO,2010Q2,SUPPLIES AND MATERIALS,06_30,06_30   S1   DY100600099,6/1/10,6/30/10,OFFICE SUPPLY (TRANSFER),290.16,2010,,,,06_30   S1   DY100600099
L000554,HON. FRANK A LOBIONDO,2010Q2,SUPPLIES AND MATERIALS,06_30,06_30   P1   10NJ0200210      STAPLES,5/17/10,6/3/10,OFFICE SUPPLIES OUTSIDE,736.87,2010,,,,06_30   P1   10NJ0200210      STAPLES
L000554,HON. FRANK A LOBIONDO,2010Q2,EQUIPMENT,06_30,06_30   S8   MA000959874,4/1/10,4/30/10,EQUIPMENT MAINTENANCE,140,2010,,,,06_30   S8   MA000959874
L000554,HON. FRANK A LOBIONDO,2010Q2,EQUIPMENT,06_30,06_30   S8   MA000959877,6/1/10,6/30/10,EQUIPMENT MAINTENANCE,264.79,2010,,,,06_30   S8   MA000959877
L000554,HON. FRANK A LOBIONDO,2010Q2,EQUIPMENT,06_30,06_30   S8   MA000959878,2/1/10,2/28/10,EQUIPMENT MAINTENANCE,72.5,2010,,,,06_30   S8   MA000959878
L000554,HON. FRANK A LOBIONDO,2010Q2,EQUIPMENT,06_30,06_30   S8   MA000959889,3/1/10,3/31/10,EQUIPMENT MAINTENANCE,140,2010,,,,06_30   S8   MA000959889
L000554,HON. FRANK A LOBIONDO,2010Q2,EQUIPMENT,06_30,06_30   S8   MA000959890,5/1/10,5/31/10,EQUIPMENT MAINTENANCE,140,2010,,,,06_30   S8   MA000959890
L000491,HON. FRANK D LUCAS,2010Q2,TRAVEL,06_30,06_30 P1 10OK0300709         CITIBANK GOV CARD SERVICE,6/25/10,6/25/10,COMMERCIAL TRANSPORTATION,281.4,2010,,,,06_30 P1 10OK0300709         CITIBANK GOV CARD SERVICE
L000491,HON. FRANK D LUCAS,2010Q2,TRAVEL,06_30,06_30 P1 10OK0300710              DO,6/21/10,6/25/10,COMMERCIAL TRANSPORTATION,443.8,2010,,,,06_30 P1 10OK0300710              DO
L000491,HON. FRANK D LUCAS,2010Q2,TRAVEL,06_30,06_30 P1 10OK0300713              DO,6/21/10,6/21/10,COMMERCIAL TRANSPORTATION,155.4,2010,,,,06_30 P1 10OK0300713              DO
L000491,HON. FRANK D LUCAS,2010Q2,TRAVEL,06_30,06_30 P1 10OK0300714              DO,6/14/10,6/17/10,COMMERCIAL TRANSPORTATION,310.8,2010,,,,06_30 P1 10OK0300714              DO
L000491,HON. FRANK D LUCAS,2010Q2,TRAVEL,06_30,06_30 P1 10OK0300701         HON. FRANK D. LUCAS,6/21/10,6/21/10,GASOLINE,42.5,2010,,,,06_30 P1 10OK0300701         HON. FRANK D. LUCAS
L000491,HON. FRANK D LUCAS,2010Q2,TRAVEL,06_30,06_30 P1 10OK0300686         PEGGY S LUETKEMEYER,5/16/10,5/19/10,LODGING,647.92,2010,,,,06_30 P1 10OK0300686         PEGGY S LUETKEMEYER
L000491,HON. FRANK D LUCAS,2010Q2,TRAVEL,06_30,06_30 P1 10OK0300687              DO,5/3/10,5/5/10,LODGING,351,2010,,,,06_30 P1 10OK0300687              DO
L000491,HON. FRANK D LUCAS,2010Q2,TRAVEL,06_30,06_30 P1 10OK0300688              DO,5/3/10,5/6/10,PRIVATE OWNED VEHICLE MILEAGE,243,2010,,,,06_30 P1 10OK0300688              DO
L000491,HON. FRANK D LUCAS,2010Q2,TRAVEL,06_30,06_30 P1 10OK0300695              DO,5/16/10,5/19/10,"TAXI, PARKING, TOLLS",74.7,2010,,,,06_30 P1 10OK0300695              DO
L000491,HON. FRANK D LUCAS,2010Q2,TRAVEL,06_30,06_30 P1 10OK0300696              DO,5/3/10,5/6/10,MEALS,55.9,2010,,,,06_30 P1 10OK0300696              DO
L000491,HON. FRANK D LUCAS,2010Q2,TRAVEL,06_30,06_30 P1 10OK0300697              DO,5/16/10,5/19/10,MEALS,68.46,2010,,,,06_30 P1 10OK0300697              DO
L000491,HON. FRANK D LUCAS,2010Q2,TRAVEL,06_30,06_30   P1   10OK0300706                      DO,5/16/10,5/20/10,COMMERCIAL TRANSPORTATION,50,2010,,,,06_30   P1   10OK0300706                      DO
L000491,HON. FRANK D LUCAS,2010Q2,TRAVEL,06_30,06_30   P1   10OK0300707                      DO,5/16/10,5/20/10,COMMERCIAL TRANSPORTATION,560.8,2010,,,,06_30   P1   10OK0300707                      DO
L000491,HON. FRANK D LUCAS,2010Q2,TRAVEL,06_30,06_30   P1   10OK0300702                 SHERRI E GAMEL,6/14/10,6/14/10,"TAXI, PARKING, TOLLS",26,2010,,,,06_30   P1   10OK0300702                 SHERRI E GAMEL
L000491,HON. FRANK D LUCAS,2010Q2,TRAVEL,06_30,06_30   P1   10OK0300703                      DO,6/17/10,6/17/10,COMMERCIAL TRANSPORTATION,25,2010,,,,06_30   P1   10OK0300703                      DO
L000491,HON. FRANK D LUCAS,2010Q2,TRAVEL,06_30,06_30   P1   10OK0300704                      DO,6/14/10,6/16/10,LODGING,821.82,2010,,,,06_30   P1   10OK0300704                      DO
L000491,HON. FRANK D LUCAS,2010Q2,TRAVEL,06_30,06_30   P1   10OK0300705                 STACY A BUCK,5/1/10,5/31/10,"TAXI, PARKING, TOLLS",56.45,2010,,,,06_30   P1   10OK0300705                 STACY A BUCK
L000491,HON. FRANK D LUCAS,2010Q2,"RENT, COMMUNICATION, UTILITIES",06_30,06_30 P1 10OK0300712         OG&E ELECTRIC SERVICES,5/11/10,6/10/10,UTILITIES,53.52,2010,,,,06_30 P1 10OK0300712         OG&E ELECTRIC SERVICES
L000491,HON. FRANK D LUCAS,2010Q2,"RENT, COMMUNICATION, UTILITIES",06_30,06_30 P1 10OK0300698         PEGGY S LUETKEMEYER,3/15/10,4/14/10,"TELECOM SVC, EQUIP & TOLLS",109.19,2010,,,,06_30 P1 10OK0300698         PEGGY S LUETKEMEYER
L000491,HON. FRANK D LUCAS,2010Q2,"RENT, COMMUNICATION, UTILITIES",06_30,06_30 P1 10OK0300699                  DO,4/15/10,5/14/10,"TELECOM SVC, EQUIP & TOLLS",123.88,2010,,,,06_30 P1 10OK0300699                  DO
L000491,HON. FRANK D LUCAS,2010Q2,"RENT, COMMUNICATION, UTILITIES",06_30,06_30 P1 10OK0300700                  DO,5/15/10,6/14/10,"TELECOM SVC, EQUIP & TOLLS",125.9,2010,,,,06_30 P1 10OK0300700                  DO
L000491,HON. FRANK D LUCAS,2010Q2,"RENT, COMMUNICATION, UTILITIES",06_30,06_30 P1 10OK0300711         SUDDENLINK,6/17/10,7/16/10,UTILITIES,64.68,2010,,,,06_30 P1 10OK0300711         SUDDENLINK
L000491,HON. FRANK D LUCAS,2010Q2,PRINTING AND REPRODUCTION,06_30,06_30   P1   10OK0300715                  ACCURATE WORD LLC,6/16/10,6/16/10,PRINTING AND REPRODUCTION,78.95,2010,,,,06_30   P1   10OK0300715                  ACCURATE WORD LLC
L000491,HON. FRANK D LUCAS,2010Q2,OTHER SERVICES,06_30,06_30   P1   10OK0300693                  H.E.S.I. COMPANIES,6/1/10,6/28/10,SECURITY SERVICE,25,2010,,,,06_30   P1   10OK0300693                  H.E.S.I. COMPANIES
L000491,HON. FRANK D LUCAS,2010Q2,SUPPLIES AND MATERIALS,06_30,06_30   S1    DY100600336,6/1/10,6/30/10,OFFICE SUPPLY (TRANSFER),452.34,2010,,,,06_30   S1    DY100600336
L000491,HON. FRANK D LUCAS,2010Q2,SUPPLIES AND MATERIALS,06_30,06_30   P1    10OK0300691                  ALVA REVIEW-COURIER,8/12/10,8/11/11,PUBLICATION REF MATERIAL,90,2010,,,,06_30   P1    10OK0300691                  ALVA REVIEW-COURIER
L000491,HON. FRANK D LUCAS,2010Q2,SUPPLIES AND MATERIALS,06_30,06_30   C2    NW201018101                  BOISE CASCADE,5/6/10,5/6/10,OFFICE SUPPLIES OUTSIDE,99.95,2010,,,,06_30   C2    NW201018101                  BOISE CASCADE
L000491,HON. FRANK D LUCAS,2010Q2,SUPPLIES AND MATERIALS,06_30,06_30   C2    NW201018101                           DO,5/26/10,5/26/10,FOOD & BEVERAGE,23.67,2010,,,,06_30   C2    NW201018101                           DO
L000491,HON. FRANK D LUCAS,2010Q2,SUPPLIES AND MATERIALS,06_30,06_30   P1    10OK0300694                  KRISTEN KOPSHEVER,5/3/10,5/3/10,FOOD & BEVERAGE,10,2010,,,,06_30   P1    10OK0300694                  KRISTEN KOPSHEVER
L000491,HON. FRANK D LUCAS,2010Q2,SUPPLIES AND MATERIALS,06_30,06_30   P1    10OK0300689                  PEGGY S LUETKEMEYER,4/8/10,4/8/10,OFFICE SUPPLIES OUTSIDE,113.99,2010,,,,06_30   P1    10OK0300689                  PEGGY S LUETKEMEYER
L000491,HON. FRANK D LUCAS,2010Q2,SUPPLIES AND MATERIALS,06_30,06_30   P1    10OK0300690                           DO,4/23/10,4/23/10,OFFICE SUPPLIES OUTSIDE,10.82,2010,,,,06_30   P1    10OK0300690                           DO
L000491,HON. FRANK D LUCAS,2010Q2,SUPPLIES AND MATERIALS,06_30,06_30   P1    10OK0300692                  THE PERRY DAILY JOURNAL,7/4/10,7/3/11,PUBLICATION REF MATERIAL,104,2010,,,,06_30   P1    10OK0300692                  THE PERRY DAILY JOURNAL
L000491,HON. FRANK D LUCAS,2010Q2,EQUIPMENT,06_30,06_30   S8    MA000959677,6/1/10,6/30/10,EQUIPMENT MAINTENANCE,208.08,2010,,,,06_30   S8    MA000959677
L000491,HON. FRANK D LUCAS,2010Q2,EQUIPMENT,06_30,06_30   S8    PL000962733,6/1/10,6/30/10,COMP HARDWARE PURCH _ $25000,303.98,2010,,,,06_30   S8    PL000962733
K000371,HON. FRANK KRATOVIL JR.,2010Q2,SUPPLIES AND MATERIALS,06_30,06_30 S1 DY100600091,6/1/10,6/30/10,OFFICE SUPPLY (TRANSFER),630.93,2010,,,,06_30 S1 DY100600091
K000371,HON. FRANK KRATOVIL JR.,2010Q2,SUPPLIES AND MATERIALS,06_30,06_30 C2 NW201018100          BOISE CASCADE,5/24/10,5/24/10,OFFICE SUPPLIES OUTSIDE,63.98,2010,,,,06_30 C2 NW201018100          BOISE CASCADE
K000371,HON. FRANK KRATOVIL JR.,2010Q2,SUPPLIES AND MATERIALS,06_30,06_30 C2 NW201018100                   DO,5/17/10,5/17/10,OFFICE SUPPLIES OUTSIDE,358.85,2010,,,,06_30 C2 NW201018100                   DO
K000371,HON. FRANK KRATOVIL JR.,2010Q2,SUPPLIES AND MATERIALS,06_30,06_30 C2 NW201018100                   DO,5/24/10,5/24/10,OFFICE SUPPLIES OUTSIDE,121.04,2010,,,,06_30 C2 NW201018100                   DO
K000371,HON. FRANK KRATOVIL JR.,2010Q2,EQUIPMENT,06_30,06_30       S8     MA000957891,6/1/10,6/30/10,EQUIPMENT MAINTENANCE,502.56,2010,,,,06_30       S8     MA000957891
K000371,HON. FRANK KRATOVIL JR.,2010Q2,EQUIPMENT,06_30,06_30       S8     PL000962509,6/1/10,6/30/10,COMP HARDWARE PURCH _ $25000,569.39,2010,,,,06_30       S8     PL000962509
P000034,HON. FRANK PALLONE JR,2010Q2,SUPPLIES AND MATERIALS,06_30,06_30       S1    DY100600037,6/1/10,6/30/10,OFFICE SUPPLY (TRANSFER),14.36,2010,,,,06_30       S1    DY100600037
P000034,HON. FRANK PALLONE JR,2010Q2,EQUIPMENT,06_30,06_30       S8 MA000959775,6/1/10,6/30/10,EQUIPMENT MAINTENANCE,274.25,2010,,,,06_30       S8 MA000959775
W000672,HON. FRANK R WOLF,2010Q2,TRAVEL,06_30,06_30   P1   10VA1000284                 DONNA LEE CROWLEY,6/17/10,6/17/10,PRIVATE OWNED VEHICLE MILEAGE,36.5,2010,,,,06_30   P1   10VA1000284                 DONNA LEE CROWLEY
W000672,HON. FRANK R WOLF,2010Q2,TRAVEL,06_30,06_30   P1   10VA1000282                 MARY A CANNON,4/4/10,4/30/10,PRIVATE OWNED VEHICLE MILEAGE,384.5,2010,,,,06_30   P1   10VA1000282                 MARY A CANNON
W000672,HON. FRANK R WOLF,2010Q2,TRAVEL,06_30,06_30   P1   10VA1000283                      DO,4/8/10,4/28/10,"TAXI, PARKING, TOLLS",32.95,2010,,,,06_30   P1   10VA1000283                      DO
W000672,HON. FRANK R WOLF,2010Q2,TRAVEL,06_30,06_30   P1   10VA1000279                 THOMAS M CULLIGAN JR,6/1/10,6/14/10,PRIVATE OWNED VEHICLE MILEAGE,63.5,2010,,,,06_30   P1   10VA1000279                 THOMAS M CULLIGAN JR
W000672,HON. FRANK R WOLF,2010Q2,"RENT, COMMUNICATION, UTILITIES",06_30,06_30 P2 HCV1002175         AT&T MOBILITY,6/23/10,6/23/10,"TELECOM SVC, EQUIP & TOLLS",149,2010,,,,06_30 P2 HCV1002175         AT&T MOBILITY
W000672,HON. FRANK R WOLF,2010Q2,"RENT, COMMUNICATION, UTILITIES",06_30,06_30 P1 10VA1000285        COX COMMUNICATIONS,6/17/10,7/16/10,UTILITIES,90.85,2010,,,,06_30 P1 10VA1000285        COX COMMUNICATIONS
W000672,HON. FRANK R WOLF,2010Q2,PRINTING AND REPRODUCTION,06_30,06_30   P1   10VA1000286                THE FRANKING GROUP,6/16/10,6/16/10,PRINTING AND REPRODUCTION,"2,682.00",2010,,,,06_30   P1   10VA1000286                THE FRANKING GROUP
W000672,HON. FRANK R WOLF,2010Q2,SUPPLIES AND MATERIALS,06_30,06_30 S1 DY100600525,6/1/10,6/30/10,OFFICE SUPPLY (TRANSFER),"1,273.80",2010,,,,06_30 S1 DY100600525
W000672,HON. FRANK R WOLF,2010Q2,EQUIPMENT,06_30,06_30       S8     MA000959672,6/1/10,6/30/10,EQUIPMENT MAINTENANCE,657.27,2010,,,,06_30       S8     MA000959672
U000031,HON. FRED UPTON,2010Q2,SUPPLIES AND MATERIALS,06_30,06_30       S1 DY100600241,6/1/10,6/30/10,OFFICE SUPPLY (TRANSFER),"1,713.64",2010,,,,06_30       S1 DY100600241
U000031,HON. FRED UPTON,2010Q2,EQUIPMENT,06_30,06_30       S8 MA000958213,6/1/10,6/30/10,EQUIPMENT MAINTENANCE,268.3,2010,,,,06_30       S8 MA000958213
B001251,HON. G.K. BUTTERFIELD,2010Q2,SUPPLIES AND MATERIALS,06_30,06_30   S1   DY100600484,6/1/10,6/30/10,OFFICE SUPPLY (TRANSFER),862.61,2010,,,,06_30   S1   DY100600484
B001251,HON. G.K. BUTTERFIELD,2010Q2,EQUIPMENT,06_30,06_30   S8 MA000959578,6/1/10,6/30/10,EQUIPMENT MAINTENANCE,253.5,2010,,,,06_30   S8 MA000959578
G000554,HON. GABRIELLE GIFFORDS,2010Q2,FRANKED MAIL,06_30,06_30   SF DY100600375,6/20/10,7/1/10,FRANKED MAIL,19.9,2010,,,,06_30   SF DY100600375
G000554,HON. GABRIELLE GIFFORDS,2010Q2,SUPPLIES AND MATERIALS,06_30,06_30      SF    DY100600039,6/20/10,7/1/10,OFFICE SUPPLY (TRANSFER),46.25,2010,,,,06_30      SF    DY100600039
G000554,HON. GABRIELLE GIFFORDS,2010Q2,SUPPLIES AND MATERIALS,06_30,06_30      SF    DY100600711,6/20/10,7/1/10,OFFICE SUPPLY (TRANSFER),20.25,2010,,,,06_30      SF    DY100600711
G000554,HON. GABRIELLE GIFFORDS,2010Q2,SUPPLIES AND MATERIALS,06_30,06_30      S1    DY100600056,6/1/10,6/30/10,OFFICE SUPPLY (TRANSFER),403.36,2010,,,,06_30      S1    DY100600056
G000554,HON. GABRIELLE GIFFORDS,2010Q2,EQUIPMENT,06_30,06_30      S8    MA000959901,6/1/10,6/30/10,EQUIPMENT MAINTENANCE,133.75,2010,,,,06_30      S8    MA000959901
P000595,HON. GARY C. PETERS,2010Q2,"RENT, COMMUNICATION, UTILITIES",06_30,06_30   P1   10MI0900354                  COMCAST CABLEVISION,6/18/10,7/17/10,UTILITIES,144.75,2010,,,,06_30   P1   10MI0900354                  COMCAST CABLEVISION
P000595,HON. GARY C. PETERS,2010Q2,SUPPLIES AND MATERIALS,06_30,06_30 S1 DY100600283,6/1/10,6/30/10,OFFICE SUPPLY (TRANSFER),209.12,2010,,,,06_30 S1 DY100600283
P000595,HON. GARY C. PETERS,2010Q2,SUPPLIES AND MATERIALS,06_30,06_30 C2 NW201018100          BOISE CASCADE,5/20/10,5/20/10,OFFICE SUPPLIES OUTSIDE,119.08,2010,,,,06_30 C2 NW201018100          BOISE CASCADE
P000595,HON. GARY C. PETERS,2010Q2,SUPPLIES AND MATERIALS,06_30,06_30 C2 NW201018100                   DO,5/24/10,5/24/10,OFFICE SUPPLIES OUTSIDE,48.81,2010,,,,06_30 C2 NW201018100                   DO
P000595,HON. GARY C. PETERS,2010Q2,EQUIPMENT,06_30,06_30       S8     MA000958721,6/1/10,6/30/10,EQUIPMENT MAINTENANCE,108.21,2010,,,,06_30       S8     MA000958721
M001139,HON. GARY G. MILLER,2010Q2,SUPPLIES AND MATERIALS,06_30,06_30       S1    DY100600210,6/1/10,6/30/10,OFFICE SUPPLY (TRANSFER),"1,278.48",2010,,,,06_30       S1    DY100600210
M001139,HON. GARY G. MILLER,2010Q2,SUPPLIES AND MATERIALS,06_30,06_30       P1    10CA4200274               HON. GARY MILLER,6/17/10,6/17/10,OFFICE SUPPLIES OUTSIDE,239.24,2010,,,,06_30       P1    10CA4200274               HON. GARY MILLER
M001139,HON. GARY G. MILLER,2010Q2,SUPPLIES AND MATERIALS,06_30,06_30       P1    10CHS000146               US CAPITOL HISTORICAL SOCIETY,6/23/10,6/23/10,PUBLICATION REF MATERIAL,"1,610.00",2010,,,,06_30       P1    10CHS000146               US CAPITOL HISTORICAL SOCIETY
M001139,HON. GARY G. MILLER,2010Q2,EQUIPMENT,06_30,06_30       S8 MA000959553,6/1/10,6/30/10,EQUIPMENT MAINTENANCE,540.65,2010,,,,06_30       S8 MA000959553
A000022,HON. GARY L ACKERMAN,2010Q2,SUPPLIES AND MATERIALS,06_30,06_30   S1   DY100600354,6/1/10,6/30/10,OFFICE SUPPLY (TRANSFER),298.84,2010,,,,06_30   S1   DY100600354
A000022,HON. GARY L ACKERMAN,2010Q2,EQUIPMENT,06_30,06_30   S8 MA000959690,6/1/10,6/30/10,EQUIPMENT MAINTENANCE,213.68,2010,,,,06_30   S8 MA000959690
G000410,HON. GENE GREEN,2010Q2,SUPPLIES AND MATERIALS,06_30,06_30   S1 DY100600331,6/1/10,6/30/10,OFFICE SUPPLY (TRANSFER),426.75,2010,,,,06_30   S1 DY100600331
G000410,HON. GENE GREEN,2010Q2,EQUIPMENT,06_30,06_30   S8 MA000959566,6/1/10,6/30/10,EQUIPMENT MAINTENANCE,356.07,2010,,,,06_30   S8 MA000959566
T000074,HON. GENE TAYLOR,2010Q2,"RENT, COMMUNICATION, UTILITIES",06_30,06_30 P1 10MS04RW294                 DO,2/23/10,3/24/10,UTILITIES,123.81,2010,,,,06_30 P1 10MS04RW294                 DO
T000074,HON. GENE TAYLOR,2010Q2,SUPPLIES AND MATERIALS,06_30,06_30 S1 DY100600032,6/1/10,6/30/10,OFFICE SUPPLY (TRANSFER),241.77,2010,,,,06_30 S1 DY100600032
T000074,HON. GENE TAYLOR,2010Q2,EQUIPMENT,06_30,06_30       S8     MA000957854,6/1/10,6/30/10,EQUIPMENT MAINTENANCE,120,2010,,,,06_30       S8     MA000957854
T000074,HON. GENE TAYLOR,2010Q2,EQUIPMENT,06_30,06_30       S8     PL000962579,6/1/10,6/30/10,COMP HARDWARE PURCH _ $25000,23.55,2010,,,,06_30       S8     PL000962579
D000603,HON. GEOFF DAVIS,2010Q2,TRAVEL,06_30,06_30   P1   10KY0400326                 LAUREN B. O'BRIEN,6/7/10,6/8/10,TRAVEL REIMBURSEMENT,536.26,2010,,,,06_30   P1   10KY0400326                 LAUREN B. O'BRIEN
D000603,HON. GEOFF DAVIS,2010Q2,"RENT, COMMUNICATION, UTILITIES",06_30,"06_30 P1 10KY0400325         CITIZEN DIALOG, LLC",5/25/10,5/25/10,"TELECOM SVC, EQUIP & TOLLS","3,750.00",2010,,,,"06_30 P1 10KY0400325         CITIZEN DIALOG, LLC"
D000603,HON. GEOFF DAVIS,2010Q2,SUPPLIES AND MATERIALS,06_30,06_30 S1 DY100600475,6/1/10,6/30/10,OFFICE SUPPLY (TRANSFER),795.53,2010,,,,06_30 S1 DY100600475
D000603,HON. GEOFF DAVIS,2010Q2,EQUIPMENT,06_30,06_30       S8     MA000959962,6/1/10,6/30/10,EQUIPMENT MAINTENANCE,181.9,2010,,,,06_30       S8     MA000959962
D000603,HON. GEOFF DAVIS,2010Q2,FRANKED MAIL,06_30,06_30 SF DY100600348,12/1/09,12/31/09,FRANKED MAIL,5.7,2009,,,,06_30 SF DY100600348
D000603,HON. GEOFF DAVIS,2010Q2,SUPPLIES AND MATERIALS,06_30,06_30      SF    DY100600012,12/1/09,12/31/09,OFFICE SUPPLY (TRANSFER),13.5,2009,,,,06_30      SF    DY100600012
D000603,HON. GEOFF DAVIS,2010Q2,SUPPLIES AND MATERIALS,06_30,06_30      SF    DY100600685,12/1/09,12/31/09,OFFICE SUPPLY (TRANSFER),4.05,2009,,,,06_30      SF    DY100600685
M000725,HON. GEORGE MILLER,2010Q2,"RENT, COMMUNICATION, UTILITIES",06_30,06_30 P1 10CA0700459         AT&T MOBILITY,5/7/10,6/6/10,"TELECOM SVC, EQUIP & TOLLS",114.18,2010,,,,06_30 P1 10CA0700459         AT&T MOBILITY
M000725,HON. GEORGE MILLER,2010Q2,"RENT, COMMUNICATION, UTILITIES",06_30,06_30 P1 10CA0700460                  DO,5/7/10,6/6/10,"TELECOM SVC, EQUIP & TOLLS",135.69,2010,,,,06_30 P1 10CA0700460                  DO
M000725,HON. GEORGE MILLER,2010Q2,"RENT, COMMUNICATION, UTILITIES",06_30,06_30 P1 10CA0700461                  DO,5/7/10,6/6/10,"TELECOM SVC, EQUIP & TOLLS",102.04,2010,,,,06_30 P1 10CA0700461                  DO
M000725,HON. GEORGE MILLER,2010Q2,"RENT, COMMUNICATION, UTILITIES",06_30,06_30 P1 10CA0700462                  DO,5/7/10,6/6/10,"TELECOM SVC, EQUIP & TOLLS",138.12,2010,,,,06_30 P1 10CA0700462                  DO
M000725,HON. GEORGE MILLER,2010Q2,"RENT, COMMUNICATION, UTILITIES",06_30,06_30 P1 10CA0700463                  DO,5/7/10,6/6/10,"TELECOM SVC, EQUIP & TOLLS",545.19,2010,,,,06_30 P1 10CA0700463                  DO
M000725,HON. GEORGE MILLER,2010Q2,SUPPLIES AND MATERIALS,06_30,06_30       S1    DY100600008,6/1/10,6/30/10,OFFICE SUPPLY (TRANSFER),573.13,2010,,,,06_30       S1    DY100600008
M000725,HON. GEORGE MILLER,2010Q2,EQUIPMENT,06_30,06_30       S8    MA000959635,6/1/10,6/30/10,EQUIPMENT MAINTENANCE,251.25,2010,,,,06_30       S8    MA000959635
R000004,HON. GEORGE P RADANOVICH,2010Q2,TRAVEL,06_30,06_30   P1   10CA1900416                 COLIN SUEYRES,5/31/10,6/9/10,PRIVATE OWNED VEHICLE MILEAGE,160,2010,,,,06_30   P1   10CA1900416                 COLIN SUEYRES
R000004,HON. GEORGE P RADANOVICH,2010Q2,TRAVEL,06_30,06_30   P1   10CA1900419                 KIMBERLY KAUFMANN,1/5/10,6/15/10,PRIVATE OWNED VEHICLE MILEAGE,"1,096.00",2010,,,,06_30   P1   10CA1900419                 KIMBERLY KAUFMANN
R000004,HON. GEORGE P RADANOVICH,2010Q2,TRAVEL,06_30,06_30   P1   10CA1900417                 MICHELLE GIANNETTA,5/1/10,6/14/10,PRIVATE OWNED VEHICLE MILEAGE,143,2010,,,,06_30   P1   10CA1900417                 MICHELLE GIANNETTA
R000004,HON. GEORGE P RADANOVICH,2010Q2,TRAVEL,06_30,06_30   P1   10CA1900418                      DO,6/14/10,6/14/10,"TAXI, PARKING, TOLLS",14,2010,,,,06_30   P1   10CA1900418                      DO
R000004,HON. GEORGE P RADANOVICH,2010Q2,TRAVEL,06_30,06_30   P1   10CA1900415                 SARAH M DITRICH,3/3/10,6/1/10,PRIVATE OWNED VEHICLE MILEAGE,232,2010,,,,06_30   P1   10CA1900415                 SARAH M DITRICH
R000004,HON. GEORGE P RADANOVICH,2010Q2,"RENT, COMMUNICATION, UTILITIES",06_30,06_30 P1 10CA1900421        AT & T,5/5/10,6/4/10,"TELECOM SVC, EQUIP & TOLLS",322.63,2010,,,,06_30 P1 10CA1900421        AT & T
R000004,HON. GEORGE P RADANOVICH,2010Q2,"RENT, COMMUNICATION, UTILITIES",06_30,06_30 P1 10CA1900423                 DO,5/5/10,6/4/10,"TELECOM SVC, EQUIP & TOLLS",547.3,2010,,,,06_30 P1 10CA1900423                 DO
R000004,HON. GEORGE P RADANOVICH,2010Q2,"RENT, COMMUNICATION, UTILITIES",06_30,06_30 P1 10CA1900420        SKYTEL,4/28/10,5/26/10,"TELECOM SVC, EQUIP & TOLLS",35.04,2010,,,,06_30 P1 10CA1900420        SKYTEL
R000004,HON. GEORGE P RADANOVICH,2010Q2,SUPPLIES AND MATERIALS,06_30,06_30 S1 DY100600454,6/1/10,6/30/10,OFFICE SUPPLY (TRANSFER),554.7,2010,,,,06_30 S1 DY100600454
R000004,HON. GEORGE P RADANOVICH,2010Q2,SUPPLIES AND MATERIALS,06_30,06_30 P1 10CA1900422        THE FRESNO BEE,6/29/10,12/27/10,PUBLICATION REF MATERIAL,100.58,2010,,,,06_30 P1 10CA1900422        THE FRESNO BEE
R000004,HON. GEORGE P RADANOVICH,2010Q2,EQUIPMENT,06_30,06_30       S8 MA000959838,6/1/10,6/30/10,EQUIPMENT MAINTENANCE,168.62,2010,,,,06_30       S8 MA000959838
R000004,HON. GEORGE P RADANOVICH,2010Q2,PRINTING AND REPRODUCTION,06_30,06_30       P1 10CA1900414      US CAPITOL HISTORICAL SOCIETY,12/8/09,12/8/09,PRINTING AND REPRODUCTION,"1,100.00",2009,,,,06_30       P1 10CA1900414      US CAPITOL HISTORICAL SOCIETY
R000004,HON. GEORGE P RADANOVICH,2010Q2,SUPPLIES AND MATERIALS,06_30,06_30   P2 OSM39980                       CDW GOVERNMENT INC,4/1/09,4/1/09,OFFICE SUPPLIES OUTSIDE,200,2009,,,,06_30   P2 OSM39980                       CDW GOVERNMENT INC
R000004,HON. GEORGE P RADANOVICH,2010Q2,SUPPLIES AND MATERIALS,06_30,06_30   P2 OSM39980                           DO,4/1/09,4/1/09,OFFICE SUPPLIES OUTSIDE,12.99,2009,,,,06_30   P2 OSM39980                           DO
C001078,HON. GERALD E GERRY CONNOLLY,2010Q2,TRAVEL,06_30,06_30 P1 10VA1100132        SHARON E STARK,1/6/10,3/5/10,PRIVATE OWNED VEHICLE MILEAGE,74.3,2010,,,,06_30 P1 10VA1100132        SHARON E STARK
C001078,HON. GERALD E GERRY CONNOLLY,2010Q2,TRAVEL,06_30,06_30 P1 10VA1100133             DO,3/10/10,4/1/10,PRIVATE OWNED VEHICLE MILEAGE,56.25,2010,,,,06_30 P1 10VA1100133             DO
C001078,HON. GERALD E GERRY CONNOLLY,2010Q2,TRAVEL,06_30,06_30 P1 10VA1100134             DO,4/9/10,4/26/10,PRIVATE OWNED VEHICLE MILEAGE,81.4,2010,,,,06_30 P1 10VA1100134             DO
C001078,HON. GERALD E GERRY CONNOLLY,2010Q2,TRAVEL,06_30,06_30 P1 10VA1100135             DO,4/30/10,5/23/10,PRIVATE OWNED VEHICLE MILEAGE,109.75,2010,,,,06_30 P1 10VA1100135             DO
C001078,HON. GERALD E GERRY CONNOLLY,2010Q2,TRAVEL,06_30,06_30 P1 10VA1100136             DO,5/26/10,6/10/10,PRIVATE OWNED VEHICLE MILEAGE,72.05,2010,,,,06_30 P1 10VA1100136             DO
C001078,HON. GERALD E GERRY CONNOLLY,2010Q2,SUPPLIES AND MATERIALS,06_30,06_30 S1 DY100600333,6/1/10,6/30/10,OFFICE SUPPLY (TRANSFER),324.52,2010,,,,06_30 S1 DY100600333
C001078,HON. GERALD E GERRY CONNOLLY,2010Q2,EQUIPMENT,06_30,06_30      S8 MA000958648,6/1/10,6/30/10,EQUIPMENT MAINTENANCE,253.21,2010,,,,06_30      S8 MA000958648
B001247,HON. GINNY BROWN-WAITE,2010Q2,SUPPLIES AND MATERIALS,06_30,06_30   S1   DY100600408,6/1/10,6/30/10,OFFICE SUPPLY (TRANSFER),642.94,2010,,,,06_30   S1   DY100600408
B001247,HON. GINNY BROWN-WAITE,2010Q2,EQUIPMENT,06_30,06_30   S8   MA000959830,6/1/10,6/30/10,EQUIPMENT MAINTENANCE,406,2010,,,,06_30   S8   MA000959830
B001247,HON. GINNY BROWN-WAITE,2010Q2,EQUIPMENT,06_30,06_30   S8   PL000962702,6/1/10,6/30/10,COMP HARDWARE PURCH _ $25000,122.41,2010,,,,06_30   S8   PL000962702
N000183,HON. GLENN C. NYE III,2010Q2,TRAVEL,06_30,06_30   P1   10VA0200467   CITIBANK GOV CARD SERVICE,4/29/10,4/29/10,COMMERCIAL TRANSPORTATION,561.7,2010,,,,06_30   P1   10VA0200467   CITIBANK GOV CARD SERVICE
N000183,HON. GLENN C. NYE III,2010Q2,TRAVEL,06_30,06_30   P1   10VA0200473        DO,5/11/10,5/11/10,COMMERCIAL TRANSPORTATION,124.2,2010,,,,06_30   P1   10VA0200473        DO
N000183,HON. GLENN C. NYE III,2010Q2,TRAVEL,06_30,06_30   P1   10VA0200475        DO,5/6/10,5/6/10,COMMERCIAL TRANSPORTATION,561.7,2010,,,,06_30   P1   10VA0200475        DO
N000183,HON. GLENN C. NYE III,2010Q2,TRAVEL,06_30,06_30   P1   10VA0200477        DO,5/24/10,5/24/10,"TAXI, PARKING, TOLLS",90,2010,,,,06_30   P1   10VA0200477        DO
N000183,HON. GLENN C. NYE III,2010Q2,TRAVEL,06_30,06_30   P1   10VA0200478        DO,4/13/10,4/13/10,COMMERCIAL TRANSPORTATION,65.2,2010,,,,06_30   P1   10VA0200478        DO
N000183,HON. GLENN C. NYE III,2010Q2,TRAVEL,06_30,06_30   P1   10VA0200479        DO,6/8/10,6/8/10,COMMERCIAL TRANSPORTATION,124.4,2010,,,,06_30   P1   10VA0200479        DO
N000183,HON. GLENN C. NYE III,2010Q2,TRAVEL,06_30,06_30   P1   10VA0200480        DO,5/4/10,5/4/10,COMMERCIAL TRANSPORTATION,55.2,2010,,,,06_30   P1   10VA0200480        DO
N000183,HON. GLENN C. NYE III,2010Q2,TRAVEL,06_30,06_30   P1   10VA0200462   JAMAL D GUNN,3/17/10,5/21/10,"TAXI, PARKING, TOLLS",34,2010,,,,06_30   P1   10VA0200462   JAMAL D GUNN
N000183,HON. GLENN C. NYE III,2010Q2,TRAVEL,06_30,06_30   P1   10VA0200464        DO,4/26/10,4/26/10,"TAXI, PARKING, TOLLS",2,2010,,,,06_30   P1   10VA0200464        DO
N000183,HON. GLENN C. NYE III,2010Q2,TRAVEL,06_30,06_30   P1   10VA0200472        DO,5/3/10,5/31/10,PRIVATE OWNED VEHICLE MILEAGE,272.3,2010,,,,06_30   P1   10VA0200472        DO
N000183,HON. GLENN C. NYE III,2010Q2,TRAVEL,06_30,06_30   P1   10VA0200468   SHERRY L JOHNES,6/10/10,6/10/10,"TAXI, PARKING, TOLLS",17,2010,,,,06_30   P1   10VA0200468   SHERRY L JOHNES
N000183,HON. GLENN C. NYE III,2010Q2,TRAVEL,06_30,06_30 P1 10VA0200469                DO,6/10/10,6/10/10,PRIVATE OWNED VEHICLE MILEAGE,72,2010,,,,06_30 P1 10VA0200469                DO
N000183,HON. GLENN C. NYE III,2010Q2,"RENT, COMMUNICATION, UTILITIES",06_30,06_30   P1   10VA0200470                CHARTER COMMUNICATIONS,6/3/10,7/2/10,UTILITIES,171.65,2010,,,,06_30   P1   10VA0200470                CHARTER COMMUNICATIONS
N000183,HON. GLENN C. NYE III,2010Q2,PRINTING AND REPRODUCTION,06_30,06_30   P1   10VA0200466           DO,6/18/10,6/18/10,PRINTING AND REPRODUCTION,75,2010,,,,06_30   P1   10VA0200466           DO
N000183,HON. GLENN C. NYE III,2010Q2,OTHER SERVICES,06_30,06_30 P1 10VA0200461            ADT SECURITY SERVICES,5/1/10,5/31/10,SECURITY SERVICE,38.59,2010,,,,06_30 P1 10VA0200461            ADT SECURITY SERVICES
N000183,HON. GLENN C. NYE III,2010Q2,SUPPLIES AND MATERIALS,06_30,06_30      S1    DY100600504,6/1/10,6/30/10,OFFICE SUPPLY (TRANSFER),404.29,2010,,,,06_30      S1    DY100600504
N000183,HON. GLENN C. NYE III,2010Q2,SUPPLIES AND MATERIALS,06_30,06_30      C2    NW201018104              BOISE CASCADE,5/21/10,5/21/10,FOOD & BEVERAGE,2.57,2010,,,,06_30      C2    NW201018104              BOISE CASCADE
N000183,HON. GLENN C. NYE III,2010Q2,SUPPLIES AND MATERIALS,06_30,06_30      C2    NW201018104                       DO,5/21/10,5/21/10,OFFICE SUPPLIES OUTSIDE,171.2,2010,,,,06_30      C2    NW201018104                       DO
N000183,HON. GLENN C. NYE III,2010Q2,SUPPLIES AND MATERIALS,06_30,06_30      P1    10VA0200463              JAMAL D GUNN,3/10/10,5/20/10,OFFICE SUPPLIES OUTSIDE,208.3,2010,,,,06_30      P1    10VA0200463              JAMAL D GUNN
N000183,HON. GLENN C. NYE III,2010Q2,SUPPLIES AND MATERIALS,06_30,"06_30      P1    10VA0200471              MORE DIRECT, INC",3/12/10,3/12/10,OFFICE SUPPLIES OUTSIDE,89,2010,,,,"06_30      P1    10VA0200471              MORE DIRECT, INC"
N000183,HON. GLENN C. NYE III,2010Q2,SUPPLIES AND MATERIALS,06_30,06_30      P1    10VA0200465              STANDARD COFFEE SERVICE CO,6/23/10,6/23/10,FOOD & BEVERAGE,174.11,2010,,,,06_30      P1    10VA0200465              STANDARD COFFEE SERVICE CO
N000183,HON. GLENN C. NYE III,2010Q2,EQUIPMENT,06_30,06_30      S8    MA000959902,6/1/10,6/30/10,EQUIPMENT MAINTENANCE,222.33,2010,,,,06_30      S8    MA000959902
N000183,HON. GLENN C. NYE III,2010Q2,EQUIPMENT,06_30,06_30      S8    MA000959903,5/1/10,5/31/10,EQUIPMENT MAINTENANCE,6.13,2010,,,,06_30      S8    MA000959903
N000183,HON. GLENN C. NYE III,2010Q2,EQUIPMENT,06_30,06_30      S8    PL000962216,6/1/10,6/30/10,COMP HARDWARE PURCH _ $25000,88.26,2010,,,,06_30      S8    PL000962216
N000183,HON. GLENN C. NYE III,2010Q2,EQUIPMENT,06_30,06_30      P1    10VA0200476              GREATAMERICA LEASING CORP,7/10/10,7/10/10,OFC EQ LEASE (NON-COMP)_$25000,146.13,2010,,,,06_30      P1    10VA0200476              GREATAMERICA LEASING CORP
N000183,HON. GLENN C. NYE III,2010Q2,OTHER SERVICES,06_30,06_30       P1 10VA0200474                     DEXTERANET,8/1/09,12/31/09,TECHNOLOGY SERVICE CONTRACTS,"7,000.00",2009,,,,06_30       P1 10VA0200474                     DEXTERANET
T000467,HON. GLENN THOMPSON,2010Q2,TRAVEL,06_30,06_30   P1   10PA0500476                 JORDAN CLARK,5/12/10,5/12/10,"TAXI, PARKING, TOLLS",6,2010,,,,06_30   P1   10PA0500476                 JORDAN CLARK
T000467,HON. GLENN THOMPSON,2010Q2,TRAVEL,06_30,06_30   P1   10PA0500477                      DO,5/13/10,5/13/10,"TAXI, PARKING, TOLLS",6,2010,,,,06_30   P1   10PA0500477                      DO
T000467,HON. GLENN THOMPSON,2010Q2,TRAVEL,06_30,06_30   P1   10PA0500478                      DO,3/3/10,3/3/10,"TAXI, PARKING, TOLLS",10,2010,,,,06_30   P1   10PA0500478                      DO
T000467,HON. GLENN THOMPSON,2010Q2,TRAVEL,06_30,06_30   P1   10PA0500479                      DO,6/24/10,6/24/10,"TAXI, PARKING, TOLLS",7,2010,,,,06_30   P1   10PA0500479                      DO
T000467,HON. GLENN THOMPSON,2010Q2,SUPPLIES AND MATERIALS,06_30,06_30 S1 DY100600049,6/1/10,6/30/10,OFFICE SUPPLY (TRANSFER),270.53,2010,,,,06_30 S1 DY100600049
T000467,HON. GLENN THOMPSON,2010Q2,EQUIPMENT,06_30,06_30       S8    MA000958682,6/1/10,6/30/10,EQUIPMENT MAINTENANCE,90.4,2010,,,,06_30       S8    MA000958682
T000467,HON. GLENN THOMPSON,2010Q2,EQUIPMENT,06_30,06_30       S8    PL000962331,6/1/10,6/30/10,COMP HARDWARE PURCH _ $25000,88.26,2010,,,,06_30       S8    PL000962331
N000179,HON. GRACE F. NAPOLITANO,2010Q2,TRAVEL,06_30,06_30   P1   10CA3800276                 BENJAMIN CARDENAS,6/1/10,6/21/10,PRIVATE OWNED VEHICLE MILEAGE,149.91,2010,,,,06_30   P1   10CA3800276                 BENJAMIN CARDENAS
N000179,HON. GRACE F. NAPOLITANO,2010Q2,TRAVEL,06_30,06_30   P1   10CA3800277                      DO,6/5/10,6/8/10,COMMERCIAL TRANSPORTATION,46,2010,,,,06_30   P1   10CA3800277                      DO
N000179,HON. GRACE F. NAPOLITANO,2010Q2,TRAVEL,06_30,06_30   P1   10CA3800274                 HECTOR F. ELIZALDE,5/14/10,5/31/10,PRIVATE OWNED VEHICLE MILEAGE,78.58,2010,,,,06_30   P1   10CA3800274                 HECTOR F. ELIZALDE
N000179,HON. GRACE F. NAPOLITANO,2010Q2,TRAVEL,06_30,06_30   P1   10CA3800281                 JENNIFER A. SILVA,6/8/10,6/9/10,"TAXI, PARKING, TOLLS",27,2010,,,,06_30   P1   10CA3800281                 JENNIFER A. SILVA
N000179,HON. GRACE F. NAPOLITANO,2010Q2,TRAVEL,06_30,06_30   P1   10CA3800280                 LAUREN A VARGAS,6/8/10,6/8/10,"TAXI, PARKING, TOLLS",15,2010,,,,06_30   P1   10CA3800280                 LAUREN A VARGAS
N000179,HON. GRACE F. NAPOLITANO,2010Q2,TRAVEL,06_30,06_30   P1   10CA3800279                 NATHAN LANDERS,6/8/10,6/8/10,"TAXI, PARKING, TOLLS",9,2010,,,,06_30   P1   10CA3800279                 NATHAN LANDERS
N000179,HON. GRACE F. NAPOLITANO,2010Q2,"RENT, COMMUNICATION, UTILITIES",06_30,06_30 P1 10CA3800282          VERIZON FLORIDA INC,6/10/10,7/9/10,"TELECOM SVC, EQUIP & TOLLS",580.45,2010,,,,06_30 P1 10CA3800282          VERIZON FLORIDA INC
N000179,HON. GRACE F. NAPOLITANO,2010Q2,OTHER SERVICES,06_30,06_30       P1    10CA3800273                  J A SECURITY SYSTEMS CA ST. LI,5/1/10,5/31/10,SECURITY SERVICE,30,2010,,,,06_30       P1    10CA3800273                  J A SECURITY SYSTEMS CA ST. LI
N000179,HON. GRACE F. NAPOLITANO,2010Q2,SUPPLIES AND MATERIALS,06_30,06_30       S1     DY100600106,6/1/10,6/30/10,OFFICE SUPPLY (TRANSFER),"1,214.01",2010,,,,06_30       S1     DY100600106
N000179,HON. GRACE F. NAPOLITANO,2010Q2,SUPPLIES AND MATERIALS,06_30,06_30       P1     10CA3800275                ARROWHEAD,5/15/10,6/14/10,BOTTLED WATER,56.32,2010,,,,06_30       P1     10CA3800275                ARROWHEAD
N000179,HON. GRACE F. NAPOLITANO,2010Q2,EQUIPMENT,06_30,06_30       S8     MA000958286,6/1/10,6/30/10,EQUIPMENT MAINTENANCE,478.6,2010,,,,06_30       S8     MA000958286
W000791,HON. GREG WALDEN,2010Q2,TRAVEL,06_30,06_30   P1   10OR0200415   HON. GREG WALDEN,5/13/10,5/14/10,LODGING,190.13,2010,,,,06_30   P1   10OR0200415   HON. GREG WALDEN
W000791,HON. GREG WALDEN,2010Q2,TRAVEL,06_30,06_30 P1 10OR0200416            DO,4/26/10,5/13/10,"TAXI, PARKING, TOLLS",160,2010,,,,06_30 P1 10OR0200416            DO
W000791,HON. GREG WALDEN,2010Q2,TRAVEL,06_30,06_30 P1 10OR0200417            DO,5/26/10,5/26/10,MEALS,67.2,2010,,,,06_30 P1 10OR0200417            DO
W000791,HON. GREG WALDEN,2010Q2,TRAVEL,06_30,06_30 P1 10OR0200418            DO,6/8/10,6/11/10,COMMERCIAL TRANSPORTATION,960.6,2010,,,,06_30 P1 10OR0200418            DO
W000791,HON. GREG WALDEN,2010Q2,TRAVEL,06_30,06_30 P1 10OR0200419            DO,4/26/10,4/26/10,COMMERCIAL TRANSPORTATION,596.4,2010,,,,06_30 P1 10OR0200419            DO
W000791,HON. GREG WALDEN,2010Q2,TRAVEL,06_30,06_30 P1 10OR0200420            DO,5/21/10,5/22/10,LODGING,104.75,2010,,,,06_30 P1 10OR0200420            DO
W000791,HON. GREG WALDEN,2010Q2,PRINTING AND REPRODUCTION,06_30,06_30   P1   10OR0200421      NICK STRADER,3/12/10,3/12/10,PRINTING AND REPRODUCTION,220.5,2010,,,,06_30   P1   10OR0200421      NICK STRADER
W000791,HON. GREG WALDEN,2010Q2,SUPPLIES AND MATERIALS,06_30,06_30   S1    DY100600198,6/1/10,6/30/10,OFFICE SUPPLY (TRANSFER),896.81,2010,,,,06_30   S1    DY100600198
W000791,HON. GREG WALDEN,2010Q2,SUPPLIES AND MATERIALS,06_30,06_30   P1    10OR0200413                ERICA CHALKLEY,5/20/10,5/20/10,OFFICE SUPPLIES OUTSIDE,9.6,2010,,,,06_30   P1    10OR0200413                ERICA CHALKLEY
W000791,HON. GREG WALDEN,2010Q2,SUPPLIES AND MATERIALS,06_30,06_30   P1    10OR0200414                JOHN SNIDER,4/30/10,5/12/10,OFFICE SUPPLIES OUTSIDE,29.98,2010,,,,06_30   P1    10OR0200414                JOHN SNIDER
W000791,HON. GREG WALDEN,2010Q2,EQUIPMENT,06_30,06_30   S8    MA000959606,6/1/10,6/30/10,EQUIPMENT MAINTENANCE,438.41,2010,,,,06_30   S8    MA000959606
W000791,HON. GREG WALDEN,2010Q2,EQUIPMENT,06_30,06_30   S8    PL000962190,6/1/10,6/1/10,COMP HARDWARE PURCH _ $25000,113.42,2010,,,,06_30   S8    PL000962190
H001045,HON. GREGG HARPER,2010Q2,SUPPLIES AND MATERIALS,06_30,06_30 S1 DY100600483,6/1/10,6/30/10,OFFICE SUPPLY (TRANSFER),529.39,2010,,,,06_30 S1 DY100600483
H001045,HON. GREGG HARPER,2010Q2,EQUIPMENT,06_30,06_30       S8     MA000957860,6/1/10,6/30/10,EQUIPMENT MAINTENANCE,115.95,2010,,,,06_30       S8     MA000957860
S001177,HON. GREGORIO SABLAN,2010Q2,TRAVEL,06_30,06_30 P1 10MP0000954         CITIBANK GOV CARD SERVICE,6/14/10,6/16/10,CAR RENTAL,222.35,2010,,,,06_30 P1 10MP0000954         CITIBANK GOV CARD SERVICE
S001177,HON. GREGORIO SABLAN,2010Q2,TRAVEL,06_30,06_30 P1 10MP0000955              DO,3/25/10,3/25/10,COMMERCIAL TRANSPORTATION,"1,248.04",2010,,,,06_30 P1 10MP0000955              DO
S001177,HON. GREGORIO SABLAN,2010Q2,"RENT, COMMUNICATION, UTILITIES",06_30,06_30 P1 10MP0000956         FEDERAL EXPRESS,6/11/10,6/16/10,POSTAGE/COURIER/BOX RENTAL,116.55,2010,,,,06_30 P1 10MP0000956         FEDERAL EXPRESS
S001177,HON. GREGORIO SABLAN,2010Q2,SUPPLIES AND MATERIALS,06_30,06_30   S1   DY100600482,6/1/10,6/30/10,OFFICE SUPPLY (TRANSFER),789.51,2010,,,,06_30   S1   DY100600482
S001177,HON. GREGORIO SABLAN,2010Q2,SUPPLIES AND MATERIALS,06_30,06_30   P1   10MP0000957   HON. GREGORIO SABLAN,6/25/10,6/25/10,FOOD & BEVERAGE,73.47,2010,,,,06_30   P1   10MP0000957   HON. GREGORIO SABLAN
S001177,HON. GREGORIO SABLAN,2010Q2,SUPPLIES AND MATERIALS,06_30,"06_30   P1   10MP0000953   J.C. TENORIO ENTERPRISES, INC",6/22/10,6/22/10,OFFICE SUPPLIES OUTSIDE,69.53,2010,,,,"06_30   P1   10MP0000953   J.C. TENORIO ENTERPRISES, INC"
S001177,HON. GREGORIO SABLAN,2010Q2,SUPPLIES AND MATERIALS,06_30,06_30   P1   10MP0000950   PAULA BERMUDES-CASTRO,6/16/10,6/16/10,FOOD & BEVERAGE,46.97,2010,,,,06_30   P1   10MP0000950   PAULA BERMUDES-CASTRO
S001177,HON. GREGORIO SABLAN,2010Q2,SUPPLIES AND MATERIALS,06_30,06_30   P1   10MP0000951            DO,6/18/10,6/18/10,FOOD & BEVERAGE,27.5,2010,,,,06_30   P1   10MP0000951            DO
M001137,HON. GREGORY W. MEEKS,2010Q2,TRAVEL,06_30,06_30   P1   10NY0600314                 CANDACE SANDY,6/11/10,6/11/10,"TAXI, PARKING, TOLLS",20.5,2010,,,,06_30   P1   10NY0600314                 CANDACE SANDY
M001137,HON. GREGORY W. MEEKS,2010Q2,"RENT, COMMUNICATION, UTILITIES",06_30,06_30 P1 10NY0600318        LIPA,3/26/10,5/24/10,UTILITIES,128.79,2010,,,,06_30 P1 10NY0600318        LIPA
M001137,HON. GREGORY W. MEEKS,2010Q2,"RENT, COMMUNICATION, UTILITIES",06_30,06_30 P1 10NY0600319        VERIZON NEW YORK INC,4/4/10,5/3/10,"TELECOM SVC, EQUIP & TOLLS",729.54,2010,,,,06_30 P1 10NY0600319        VERIZON NEW YORK INC
M001137,HON. GREGORY W. MEEKS,2010Q2,OTHER SERVICES,06_30,"06_30   P1   10NY0600315                  DNTP GENERAL CLEANING, INC",5/1/10,5/31/10,JANITORIAL & MAINTENANCE SVCS,100,2010,,,,"06_30   P1   10NY0600315                  DNTP GENERAL CLEANING, INC"
M001137,HON. GREGORY W. MEEKS,2010Q2,SUPPLIES AND MATERIALS,06_30,06_30   S1   DY100600136,6/1/10,6/30/10,OFFICE SUPPLY (TRANSFER),"1,330.14",2010,,,,06_30   S1   DY100600136
M001137,HON. GREGORY W. MEEKS,2010Q2,SUPPLIES AND MATERIALS,06_30,06_30   C2   NW201018101      BOISE CASCADE,4/28/10,4/28/10,OFFICE SUPPLIES OUTSIDE,3.03,2010,,,,06_30   C2   NW201018101      BOISE CASCADE
M001137,HON. GREGORY W. MEEKS,2010Q2,SUPPLIES AND MATERIALS,06_30,06_30   C2   NW201018101               DO,5/24/10,5/24/10,FOOD & BEVERAGE,85.46,2010,,,,06_30   C2   NW201018101               DO
M001137,HON. GREGORY W. MEEKS,2010Q2,SUPPLIES AND MATERIALS,06_30,06_30 C2 NW201018101             DO,5/24/10,5/24/10,OFFICE SUPPLIES OUTSIDE,254.01,2010,,,,06_30 C2 NW201018101             DO
M001137,HON. GREGORY W. MEEKS,2010Q2,SUPPLIES AND MATERIALS,06_30,06_30 P1 10NY0600317        DEER PARK WATER,3/27/10,4/26/10,BOTTLED WATER,19.87,2010,,,,06_30 P1 10NY0600317        DEER PARK WATER
M001137,HON. GREGORY W. MEEKS,2010Q2,SUPPLIES AND MATERIALS,06_30,06_30 P1 10NY0600316        THE NEW YORK TIMES,5/7/10,11/4/10,PUBLICATION REF MATERIAL,161.2,2010,,,,06_30 P1 10NY0600316        THE NEW YORK TIMES
M001137,HON. GREGORY W. MEEKS,2010Q2,EQUIPMENT,06_30,06_30       S8    MA000959698,6/1/10,6/30/10,EQUIPMENT MAINTENANCE,242.09,2010,,,,06_30       S8    MA000959698
M001137,HON. GREGORY W. MEEKS,2010Q2,EQUIPMENT,06_30,06_30       S8    PL000962611,6/1/10,6/30/10,COMP HARDWARE PURCH _ $25000,122.71,2010,,,,06_30       S8    PL000962611
B001257,HON. GUS M. BILIRAKIS,2010Q2,TRAVEL,06_30,06_30   P1   10FL0900280               SHAWN FOSTER,5/1/10,5/27/10,PRIVATE OWNED VEHICLE MILEAGE,236.5,2010,,,,06_30   P1   10FL0900280               SHAWN FOSTER
B001257,HON. GUS M. BILIRAKIS,2010Q2,SUPPLIES AND MATERIALS,06_30,06_30       S1    DY100600410,6/1/10,6/30/10,OFFICE SUPPLY (TRANSFER),"2,742.26",2010,,,,06_30       S1    DY100600410
B001257,HON. GUS M. BILIRAKIS,2010Q2,SUPPLIES AND MATERIALS,06_30,06_30       C2    NW201018100                BOISE CASCADE,5/18/10,5/18/10,OFFICE SUPPLIES OUTSIDE,8.99,2010,,,,06_30       C2    NW201018100                BOISE CASCADE
B001257,HON. GUS M. BILIRAKIS,2010Q2,EQUIPMENT,06_30,06_30       S8 MA000959717,6/1/10,6/30/10,EQUIPMENT MAINTENANCE,370.82,2010,,,,06_30       S8 MA000959717
M001160,HON. GWEN MOORE,2010Q2,TRAVEL,06_30,06_30   P1    10WI0400151                  CITIBANK GOV CARD SERVICE,4/30/10,6/28/10,TRAVEL REIMBURSEMENT,"3,985.50",2010,,,,06_30   P1    10WI0400151                  CITIBANK GOV CARD SERVICE
M001160,HON. GWEN MOORE,2010Q2,TRAVEL,06_30,06_30   P1    10WI0400150                  STEFFANY STERN,6/8/10,6/8/10,"TAXI, PARKING, TOLLS",11,2010,,,,06_30   P1    10WI0400150                  STEFFANY STERN
M001160,HON. GWEN MOORE,2010Q2,"RENT, COMMUNICATION, UTILITIES",06_30,06_30 P2 HCV1002045         VERIZON WIRELESS,6/2/10,6/2/10,"TELECOM SVC, EQUIP & TOLLS",59.99,2010,,,,06_30 P2 HCV1002045         VERIZON WIRELESS
M001160,HON. GWEN MOORE,2010Q2,OTHER SERVICES,06_30,06_30   P1   10WI0400148                  CLEANING CONCEPT,6/15/10,6/15/10,JANITORIAL & MAINTENANCE SVCS,80,2010,,,,06_30   P1   10WI0400148                  CLEANING CONCEPT
M001160,HON. GWEN MOORE,2010Q2,SUPPLIES AND MATERIALS,06_30,06_30   S1   DY100600374,6/1/10,6/30/10,OFFICE SUPPLY (TRANSFER),238.78,2010,,,,06_30   S1   DY100600374
M001160,HON. GWEN MOORE,2010Q2,SUPPLIES AND MATERIALS,06_30,"06_30   P1   10WI0400147      DOW JONES & COMPANY, INC",7/31/10,7/31/11,PUBLICATION REF MATERIAL,441.48,2010,,,,"06_30   P1   10WI0400147      DOW JONES & COMPANY, INC"
M001160,HON. GWEN MOORE,2010Q2,SUPPLIES AND MATERIALS,06_30,"06_30   P1   10WI0400149      OFFICE COPYING EQUIPMENT, LTD",6/9/10,6/9/10,OFFICE SUPPLIES OUTSIDE,7.54,2010,,,,"06_30   P1   10WI0400149      OFFICE COPYING EQUIPMENT, LTD"
M001160,HON. GWEN MOORE,2010Q2,EQUIPMENT,06_30,06_30 S8 MA000958072,6/1/10,6/30/10,EQUIPMENT MAINTENANCE,236.01,2010,,,,06_30 S8 MA000958072
R000395,HON. HAROLD ROGERS,2010Q2,"RENT, COMMUNICATION, UTILITIES",06_30,06_30 P2 HCV1002130        AT&T MOBILITY,6/23/10,6/23/10,"TELECOM SVC, EQUIP & TOLLS",149.99,2010,,,,06_30 P2 HCV1002130        AT&T MOBILITY
R000395,HON. HAROLD ROGERS,2010Q2,SUPPLIES AND MATERIALS,06_30,06_30 S1 DY100600023,6/1/10,6/30/10,OFFICE SUPPLY (TRANSFER),178.52,2010,,,,06_30 S1 DY100600023
R000395,HON. HAROLD ROGERS,2010Q2,EQUIPMENT,06_30,06_30       S8    MA000959892,6/1/10,6/30/10,EQUIPMENT MAINTENANCE,389.66,2010,,,,06_30       S8    MA000959892
M001167,HON. HARRY E. MITCHELL,2010Q2,SUPPLIES AND MATERIALS,06_30,06_30     S1    DY100600449,6/1/10,6/30/10,OFFICE SUPPLY (TRANSFER),605.32,2010,,,,06_30     S1    DY100600449
M001167,HON. HARRY E. MITCHELL,2010Q2,EQUIPMENT,06_30,06_30     S8    MA000959300,6/1/10,6/30/10,EQUIPMENT MAINTENANCE,66,2010,,,,06_30     S8    MA000959300
T000466,HON. HARRY TEAGUE,2010Q2,SUPPLIES AND MATERIALS,06_30,06_30      S1    DY100600135,6/1/10,6/30/10,OFFICE SUPPLY (TRANSFER),363.66,2010,,,,06_30      S1    DY100600135
T000466,HON. HARRY TEAGUE,2010Q2,EQUIPMENT,06_30,06_30      S8    MA000958025,6/1/10,6/30/10,EQUIPMENT MAINTENANCE,107.58,2010,,,,06_30      S8    MA000958025
T000466,HON. HARRY TEAGUE,2010Q2,EQUIPMENT,06_30,06_30      S8    PL000962716,6/1/10,6/30/10,COMP HARDWARE PURCH _ $25000,902.93,2010,,,,06_30      S8    PL000962716
S001171,HON. HEATH SHULER,2010Q2,TRAVEL,06_30,06_30   P1   10NC1100454                      DO,6/9/10,6/9/10,"TAXI, PARKING, TOLLS",20,2010,,,,06_30   P1   10NC1100454                      DO
S001171,HON. HEATH SHULER,2010Q2,"RENT, COMMUNICATION, UTILITIES",06_30,06_30 P9 NC1103R1006        CHEROKEE COUNTY,1/3/10,6/30/10,DISTRICT OFFICE RENT - PRIVATE,"1,800.00",2010,,,,06_30 P9 NC1103R1006        CHEROKEE COUNTY
S001171,HON. HEATH SHULER,2010Q2,"RENT, COMMUNICATION, UTILITIES",06_30,06_30 P9 NC1104R1006        D & R PROPERTIES/SW COMMISSION,1/3/10,6/30/10,DISTRICT OFFICE RENT - PRIVATE,"1,801.50",2010,,,,06_30 P9 NC1104R1006        D & R PROPERTIES/SW COMMISSION
S001171,HON. HEATH SHULER,2010Q2,SUPPLIES AND MATERIALS,06_30,06_30 S1 DY100600185,6/1/10,6/30/10,OFFICE SUPPLY (TRANSFER),"1,000.04",2010,,,,06_30 S1 DY100600185
S001171,HON. HEATH SHULER,2010Q2,SUPPLIES AND MATERIALS,06_30,06_30 C2 NW201018101        BOISE CASCADE,5/19/10,5/19/10,OFFICE SUPPLIES OUTSIDE,115.45,2010,,,,06_30 C2 NW201018101        BOISE CASCADE
S001171,HON. HEATH SHULER,2010Q2,SUPPLIES AND MATERIALS,06_30,06_30 C2 NW201018101                 DO,5/26/10,5/26/10,OFFICE SUPPLIES OUTSIDE,58.19,2010,,,,06_30 C2 NW201018101                 DO
S001171,HON. HEATH SHULER,2010Q2,EQUIPMENT,06_30,06_30       S8 MA000958229,6/1/10,6/30/10,EQUIPMENT MAINTENANCE,287.95,2010,,,,06_30       S8 MA000958229
S001171,HON. HEATH SHULER,2010Q2,"RENT, COMMUNICATION, UTILITIES",06_30,06_30 P9 NC1104R1004          D & R PROPERTIES/SW COMMISSION,1/3/09,9/30/09,DISTRICT OFFICE RENT - PRIVATE,"2,702.25",2009,,,,06_30 P9 NC1104R1004          D & R PROPERTIES/SW COMMISSION
S001171,HON. HEATH SHULER,2010Q2,"RENT, COMMUNICATION, UTILITIES",06_30,06_30 P9 NC1104R1005               DO,10/1/09,12/31/09,DISTRICT OFFICE RENT - PRIVATE,900.75,2009,,,,06_30 P9 NC1104R1005               DO
W000215,HON. HENRY A WAXMAN,2010Q2,SUPPLIES AND MATERIALS,06_30,06_30 S1 DY100600011,6/1/10,6/30/10,OFFICE SUPPLY (TRANSFER),290.51,2010,,,,06_30 S1 DY100600011
W000215,HON. HENRY A WAXMAN,2010Q2,EQUIPMENT,06_30,06_30       S8 MA000958434,6/1/10,6/30/10,EQUIPMENT MAINTENANCE,115.42,2010,,,,06_30       S8 MA000958434
J000288,HON. HENRY C.HANK JOHNSON JR,2010Q2,SUPPLIES AND MATERIALS,06_30,06_30       S1 DY100600224,6/1/10,6/30/10,OFFICE SUPPLY (TRANSFER),513.97,2010,,,,06_30       S1 DY100600224
J000288,HON. HENRY C.HANK JOHNSON JR,2010Q2,EQUIPMENT,06_30,06_30       S8    MA000959376,6/1/10,6/30/10,EQUIPMENT MAINTENANCE,190,2010,,,,06_30       S8    MA000959376
J000288,HON. HENRY C.HANK JOHNSON JR,2010Q2,EQUIPMENT,06_30,06_30       S8    PL000962789,6/1/10,6/30/10,COMP HARDWARE PURCH _ $25000,120.44,2010,,,,06_30       S8    PL000962789
C001063,HON. HENRY CUELLAR,2010Q2,SUPPLIES AND MATERIALS,06_30,06_30   S1   DY100600343,6/1/10,6/30/10,OFFICE SUPPLY (TRANSFER),762.62,2010,,,,06_30   S1   DY100600343
C001063,HON. HENRY CUELLAR,2010Q2,SUPPLIES AND MATERIALS,06_30,06_30   C2   NW201018104   BOISE CASCADE,5/26/10,5/26/10,OFFICE SUPPLIES OUTSIDE,38.73,2010,,,,06_30   C2   NW201018104   BOISE CASCADE
C001063,HON. HENRY CUELLAR,2010Q2,SUPPLIES AND MATERIALS,06_30,06_30   HV   10A90300881   CHICK-FIL-A AT LAREDO,4/19/10,4/19/10,FOOD & BEVERAGE,330.69,2010,,,,06_30   HV   10A90300881   CHICK-FIL-A AT LAREDO
C001063,HON. HENRY CUELLAR,2010Q2,SUPPLIES AND MATERIALS,06_30,06_30 HV 10A90300880         CYNTHIA GAONA,3/15/10,3/17/10,FOOD & BEVERAGE,108.88,2010,,,,06_30 HV 10A90300880         CYNTHIA GAONA
C001063,HON. HENRY CUELLAR,2010Q2,SUPPLIES AND MATERIALS,06_30,06_30 HV 10A90300879         GILBERT LAFUENTE,1/12/10,1/12/10,FOOD & BEVERAGE,21.89,2010,,,,06_30 HV 10A90300879         GILBERT LAFUENTE
C001063,HON. HENRY CUELLAR,2010Q2,SUPPLIES AND MATERIALS,06_30,06_30 HV 10A90300882         HAGUE QUALITY WATER,2/20/10,3/19/10,BOTTLED WATER,63,2010,,,,06_30 HV 10A90300882         HAGUE QUALITY WATER
C001063,HON. HENRY CUELLAR,2010Q2,EQUIPMENT,06_30,06_30       S8    MA000959991,6/1/10,6/30/10,EQUIPMENT MAINTENANCE,190,2010,,,,06_30       S8    MA000959991
B001235,"HON. HENRY E. BROWN, JR.",2010Q2,SUPPLIES AND MATERIALS,06_30,06_30      S1    DY100600147,6/1/10,6/30/10,OFFICE SUPPLY (TRANSFER),558.41,2010,,,,06_30      S1    DY100600147
B001235,"HON. HENRY E. BROWN, JR.",2010Q2,EQUIPMENT,06_30,06_30      S8    MA000959094,6/1/10,6/30/10,EQUIPMENT MAINTENANCE,96.58,2010,,,,06_30      S8    MA000959094
M000508,HON. HOWARD BUCK MCKEON,2010Q2,SUPPLIES AND MATERIALS,06_30,06_30 S1 DY100600010,6/1/10,6/30/10,OFFICE SUPPLY (TRANSFER),927.21,2010,,,,06_30 S1 DY100600010
M000508,HON. HOWARD BUCK MCKEON,2010Q2,EQUIPMENT,06_30,06_30   S8    MA000959829,6/1/10,6/30/10,EQUIPMENT MAINTENANCE,502.43,2010,,,,06_30   S8    MA000959829
C000556,HON. HOWARD COBLE,2010Q2,"RENT, COMMUNICATION, UTILITIES",06_30,06_30   P1 10NC0600222                    POSTMASTER,6/30/10,6/30/11,POSTAGE/COURIER/BOX RENTAL,96,2010,,,,06_30   P1 10NC0600222                    POSTMASTER
C000556,HON. HOWARD COBLE,2010Q2,SUPPLIES AND MATERIALS,06_30,06_30   S1   DY100600096,6/1/10,6/30/10,OFFICE SUPPLY (TRANSFER),"1,189.81",2010,,,,06_30   S1   DY100600096
C000556,HON. HOWARD COBLE,2010Q2,EQUIPMENT,06_30,06_30 S8 MA000959894,6/1/10,6/30/10,EQUIPMENT MAINTENANCE,192.33,2010,,,,06_30 S8 MA000959894
C000556,HON. HOWARD COBLE,2010Q2,EQUIPMENT,06_30,06_30 S8 PL000962492,6/1/10,6/30/10,EQUIPMENT PURCHASE _ $25000,81.46,2010,,,,06_30 S8 PL000962492
B000410,HON. HOWARD L BERMAN,2010Q2,SUPPLIES AND MATERIALS,06_30,06_30 S1 DY100600456,6/1/10,6/30/10,OFFICE SUPPLY (TRANSFER),480.05,2010,,,,06_30 S1 DY100600456
B000410,HON. HOWARD L BERMAN,2010Q2,EQUIPMENT,06_30,06_30       S8     MA000959949,6/1/10,6/30/10,EQUIPMENT MAINTENANCE,250.08,2010,,,,06_30       S8     MA000959949
B000410,HON. HOWARD L BERMAN,2010Q2,EQUIPMENT,06_30,06_30       S8     PL000962214,6/1/10,6/30/10,EQUIPMENT PURCHASE _ $25000,65.42,2010,,,,06_30       S8     PL000962214
B000410,HON. HOWARD L BERMAN,2010Q2,EQUIPMENT,06_30,06_30       S8     PL000962690,6/1/10,6/30/10,COMP HARDWARE PURCH _ $25000,36.25,2010,,,,06_30       S8     PL000962690
S000465,HON. IKE SKELTON,2010Q2,TRAVEL,06_30,06_30 P1 10MO0400758         CITIBANK GOV CARD SERVICE,5/27/10,6/7/10,COMMERCIAL TRANSPORTATION,430.4,2010,,,,06_30 P1 10MO0400758         CITIBANK GOV CARD SERVICE
S000465,HON. IKE SKELTON,2010Q2,TRAVEL,06_30,06_30 P1 10MO0400759              DO,4/23/10,4/23/10,COMMERCIAL TRANSPORTATION,30,2010,,,,06_30 P1 10MO0400759              DO
S000465,HON. IKE SKELTON,2010Q2,TRAVEL,06_30,06_30 P1 10MO0400760              DO,4/23/10,4/23/10,COMMERCIAL TRANSPORTATION,30,2010,,,,06_30 P1 10MO0400760              DO
S000465,HON. IKE SKELTON,2010Q2,TRAVEL,06_30,06_30 P1 10MO0400761              DO,4/23/10,4/23/10,COMMERCIAL TRANSPORTATION,30,2010,,,,06_30 P1 10MO0400761              DO
S000465,HON. IKE SKELTON,2010Q2,TRAVEL,06_30,06_30 P1 10MO0400762              DO,5/14/10,5/14/10,COMMERCIAL TRANSPORTATION,30,2010,,,,06_30 P1 10MO0400762              DO
S000465,HON. IKE SKELTON,2010Q2,TRAVEL,06_30,06_30 P1 10MO0400763              DO,5/13/10,5/18/10,COMMERCIAL TRANSPORTATION,304.4,2010,,,,06_30 P1 10MO0400763              DO
S000465,HON. IKE SKELTON,2010Q2,TRAVEL,06_30,06_30 P1 10MO0400764              DO,5/6/10,5/11/10,COMMERCIAL TRANSPORTATION,409.4,2010,,,,06_30 P1 10MO0400764              DO
S000465,HON. IKE SKELTON,2010Q2,TRAVEL,06_30,06_30 P1 10MO0400765              DO,5/20/10,5/24/10,COMMERCIAL TRANSPORTATION,535.4,2010,,,,06_30 P1 10MO0400765              DO
S000465,HON. IKE SKELTON,2010Q2,TRAVEL,06_30,06_30 P1 10MO0400766              DO,4/23/10,4/23/10,COMMERCIAL TRANSPORTATION,30,2010,,,,06_30 P1 10MO0400766              DO
S000465,HON. IKE SKELTON,2010Q2,TRAVEL,06_30,06_30 P1 10MO0400767              DO,5/6/10,5/7/10,LODGING,80.34,2010,,,,06_30 P1 10MO0400767              DO
S000465,HON. IKE SKELTON,2010Q2,TRAVEL,06_30,06_30 P1 10MO0400768              DO,5/28/10,6/7/10,COMMERCIAL TRANSPORTATION,105,2010,,,,06_30 P1 10MO0400768              DO
S000465,HON. IKE SKELTON,2010Q2,TRAVEL,06_30,06_30 P1 10MO0400769              DO,5/21/10,5/24/10,COMMERCIAL TRANSPORTATION,535.4,2010,,,,06_30 P1 10MO0400769              DO
S000465,HON. IKE SKELTON,2010Q2,TRAVEL,06_30,06_30 P1 10MO0400770              DO,5/12/10,5/12/10,COMMERCIAL TRANSPORTATION,30,2010,,,,06_30 P1 10MO0400770              DO
S000465,HON. IKE SKELTON,2010Q2,TRAVEL,06_30,06_30 P1 10MO0400771              DO,5/16/10,5/17/10,COMMERCIAL TRANSPORTATION,460.1,2010,,,,06_30 P1 10MO0400771              DO
S000465,HON. IKE SKELTON,2010Q2,TRAVEL,06_30,06_30 P1 10MO0400772              DO,5/4/10,5/4/10,COMMERCIAL TRANSPORTATION,30,2010,,,,06_30 P1 10MO0400772              DO
S000465,HON. IKE SKELTON,2010Q2,TRAVEL,06_30,06_30 P1 10MO0400773              DO,5/21/10,5/24/10,COMMERCIAL TRANSPORTATION,535.4,2010,,,,06_30 P1 10MO0400773              DO
S000465,HON. IKE SKELTON,2010Q2,TRAVEL,06_30,06_30 P1 10MO0400774              DO,6/6/10,6/6/10,MEALS,13.84,2010,,,,06_30 P1 10MO0400774              DO
S000465,HON. IKE SKELTON,2010Q2,TRAVEL,06_30,06_30 P1 10MO0400775              DO,5/6/10,5/7/10,LODGING,80.34,2010,,,,06_30 P1 10MO0400775              DO
S000465,HON. IKE SKELTON,2010Q2,TRAVEL,06_30,06_30 P1 10MO0400776              DO,5/2/10,5/4/10,LODGING,73.15,2010,,,,06_30 P1 10MO0400776              DO
S000465,HON. IKE SKELTON,2010Q2,TRAVEL,06_30,06_30 P1 10MO0400777              DO,5/2/10,5/4/10,LODGING,76.81,2010,,,,06_30 P1 10MO0400777              DO
S000465,HON. IKE SKELTON,2010Q2,TRAVEL,06_30,06_30 P1 10MO0400778              DO,5/2/10,5/2/10,MEALS,35.97,2010,,,,06_30 P1 10MO0400778              DO
S000465,HON. IKE SKELTON,2010Q2,TRAVEL,06_30,06_30 P1 10MO0400779              DO,5/2/10,5/4/10,LODGING,76.81,2010,,,,06_30 P1 10MO0400779              DO
S000465,HON. IKE SKELTON,2010Q2,TRAVEL,06_30,06_30 P1 10MO0400780              DO,5/4/10,5/4/10,COMMERCIAL TRANSPORTATION,30,2010,,,,06_30 P1 10MO0400780              DO
S000465,HON. IKE SKELTON,2010Q2,TRAVEL,06_30,06_30 P1 10MO0400795              DO,5/7/10,5/7/10,MEALS,26.66,2010,,,,06_30 P1 10MO0400795              DO
S000465,HON. IKE SKELTON,2010Q2,SUPPLIES AND MATERIALS,06_30,06_30 S1 DY100600031,6/1/10,6/30/10,OFFICE SUPPLY (TRANSFER),666.24,2010,,,,06_30 S1 DY100600031
S000465,HON. IKE SKELTON,2010Q2,EQUIPMENT,06_30,06_30       S8     MA000957926,6/1/10,6/30/10,EQUIPMENT MAINTENANCE,154.23,2010,,,,06_30       S8     MA000957926
S000465,HON. IKE SKELTON,2010Q2,EQUIPMENT,06_30,06_30       S8     PL000962688,6/1/10,6/30/10,COMP HARDWARE PURCH _ $25000,40.61,2010,,,,06_30       S8     PL000962688
R000435,HON. ILEANA ROS-LEHTINEN,2010Q2,SUPPLIES AND MATERIALS,06_30,06_30      S1    DY100600069,6/1/10,6/30/10,OFFICE SUPPLY (TRANSFER),99.09,2010,,,,06_30      S1    DY100600069
R000435,HON. ILEANA ROS-LEHTINEN,2010Q2,EQUIPMENT,06_30,06_30      S8 MA000959610,6/1/10,6/30/10,EQUIPMENT MAINTENANCE,707.41,2010,,,,06_30      S8 MA000959610
B001239,HON. J. GRESHAM BARRETT,2010Q2,TRAVEL,06_30,06_30 P1 10SC0300260         EMILY S TURNER,5/26/10,6/18/10,MEALS,83.44,2010,,,,06_30 P1 10SC0300260         EMILY S TURNER
B001239,HON. J. GRESHAM BARRETT,2010Q2,TRAVEL,06_30,06_30 P1 10SC0300261              DO,5/26/10,5/27/10,LODGING,229.88,2010,,,,06_30 P1 10SC0300261              DO
B001239,HON. J. GRESHAM BARRETT,2010Q2,TRAVEL,06_30,06_30 P1 10SC0300262              DO,6/17/10,6/18/10,LODGING,93.85,2010,,,,06_30 P1 10SC0300262              DO
B001239,HON. J. GRESHAM BARRETT,2010Q2,SUPPLIES AND MATERIALS,06_30,06_30 S1 DY100600309,6/1/10,6/30/10,OFFICE SUPPLY (TRANSFER),465.66,2010,,,,06_30 S1 DY100600309
B001239,HON. J. GRESHAM BARRETT,2010Q2,EQUIPMENT,06_30,06_30       S8 MA000957968,6/1/10,6/30/10,EQUIPMENT MAINTENANCE,291.83,2010,,,,06_30       S8 MA000957968
F000445,HON. J. RANDY FORBES,2010Q2,SUPPLIES AND MATERIALS,06_30,06_30 S1 DY100600332,6/1/10,6/30/10,OFFICE SUPPLY (TRANSFER),"1,294.33",2010,,,,06_30 S1 DY100600332
F000445,HON. J. RANDY FORBES,2010Q2,EQUIPMENT,06_30,06_30       S8     MA000959799,6/1/10,6/30/10,EQUIPMENT MAINTENANCE,232.95,2010,,,,06_30       S8     MA000959799
K000220,HON. JACK KINGSTON,2010Q2,"RENT, COMMUNICATION, UTILITIES",06_30,06_30 P1 10GA0100571         GEORGIA POWER COMPANY,5/5/10,6/3/10,UTILITIES,208.19,2010,,,,06_30 P1 10GA0100571         GEORGIA POWER COMPANY
K000220,HON. JACK KINGSTON,2010Q2,"RENT, COMMUNICATION, UTILITIES",06_30,06_30 P1 10GA0100572                  DO,5/5/10,6/3/10,UTILITIES,97.43,2010,,,,06_30 P1 10GA0100572                  DO
